Workbook

Sheet AusOpen
AJ2: Year: | AK2: 2018
G3: ="Australian Open " & AK2 -> Australian Open 2018
N4: 0
N5: 0 | AB5: 2018-11-18T17:59:15
A6: Grp | B6: No. | C6: 2015/ | D6: Name | G6: Betfair | H6: P1 | I6: True P1 | J6: P2 | K6: True P2 | L6: P3 | M6: True P3 | N6: P4 | O6: True P4 | P6: P5 | Q6: True P5 | R6: EV | S6: Buddy EV | T6: Total EV | U6: 28000 | X6: 32000 | AA6: 36000 | AD6: 19075 | AI6: Prizemoney
C7: Buddy rank | I7: 0.45 | K7: 0.225 | M7: 0.175 | O7: 0.1 | Q7: 0.05 | AI7: Group: | AJ7: 1 | AK7: 2 | AL7: 3 | AM7: 4
A8: 1 | B8: 1 | C8: 72.3 | D8: =INDEX(BFnames,MATCH(B8,Lookups!A$2:A$145,0),2) -> Cameron Smith | G8: =INDEX(BFnames,MATCH(B8,Lookups!A$2:A$145,0),4) -> 8.201780656 | H8: =IF(G8<>"Scr",1/G8,"") -> 0.1219247432 | I8: =IF(H8<>"",+H8/$H$153,0) -> 0.1103569164 | J8: =(1-I8)*I8/(1-I8/92) -> 0.09829617678 | K8: =IF(J8<>"",+J8/$J$153,0) -> 0.1026087776 | L8: =(1-I8-K8)*(I8+K8)/(1-(I8+K8)/92) -> 0.1680002015 | M8: =IF(L8<>"",+L8/$L$153,0) -> 0.09142625755 | N8: =(1-I8-K8-M8)*(I8+K8+M8)/(1-(I8+K8+M8)/92) -> 0.2124403733 | O8: =IF(N8<>"",+N8/$N$153,0) -> 0.08013338215 | P8: =(1-I8-K8-M8-O8)*(I8+K8+M8+O8)/(1-(I8+K8+M8+O8)/92) -> 0.2376589262 | Q8: =IF(P8<>"",+P8/$P$153,0) -> 0.06967003784 | R8: =+I$7*I8+K$7*K8+M$7*M8+O$7*O8+Q$7*Q8 -> 0.1002440225 | S8: =INDEX(Group4,44-ROW(),16) -> 0.01001570004 | T8: =+R8+S8 -> 0.1102597226 | U8: =ROUND(+$R8*U$6,0) -> 2807 | V8: =INDEX(Group4,44-ROW(),21) -> 69 | W8: =+U8+V8 -> 2876 | X8: =ROUND(+$R8*X$6,0) -> 3208 | Y8: =INDEX(Group4,44-ROW(),24) -> 79 | Z8: =+X8+Y8 -> 3287 | AA8: =ROUND(+$R8*AA$6,0) -> 3609 | AB8: =INDEX(Group4,44-ROW(),27) -> 89 | AC8: =+AA8+AB8 -> 3698 | AD8: =ROUND(+$R8*AD$6,0) -> 1912 | AE8: =INDEX(Group4,44-ROW(),30) -> 47 | AF8: =+AD8+AE8 -> 1959 | AG8: M | AH8: 1975 | AI8: 2012 | AJ8: =40700*0.05 -> 2035 | AK8: =40700*0.85 -> 34595 | AL8: =40700*0.05 -> 2035 | AM8: =40700*0.05 -> 2035 | AN8: =SUM(AJ8:AM8) -> 40700
A9: 1 | B9: 2 | D9: =INDEX(BFnames,MATCH(B9,Lookups!A$2:A$145,0),2) -> Keegan Bradley | G9: =INDEX(BFnames,MATCH(B9,Lookups!A$2:A$145,0),4) -> 11.12013536 | H9: 0.08992696287 | I9: 0.08139498239 | J9: 0.07483604879 | K9: 0.07811937086 | L9: 0.1343023848 | M9: 0.07308779578 | N9: 0.1789508279 | O9: 0.06750098791 | P9: 0.210728639 | Q9: 0.06177538747 | R9: 0.07683383295 | S9: 0.01001570004 | T9: 0.08684953298 | U9: =ROUND(+$R9*U$6,0) -> 2151 | V9: 69 | W9: =+U9+V9 -> 2220 | X9: =ROUND(+$R9*X$6,0) -> 2459 | Y9: 79 | Z9: =+X9+Y9 -> 2538 | AA9: =ROUND(+$R9*AA$6,0) -> 2766 | AB9: 89 | AC9: =+AA9+AB9 -> 2855 | AD9: =ROUND(+$R9*AD$6,0) -> 1466 | AE9: 47 | AF9: =+AD9+AE9 -> 1513 | AI9: 2013 | AJ9: =44150*0.85 -> 37527.5 | AM9: =44150*0.15 -> 6622.5 | AN9: =SUM(AJ9:AM9) -> 44150
A10: 1 | B10: 3 | D10: =INDEX(BFnames,MATCH(B10,Lookups!A$2:A$145,0),2) -> Matt Kuchar | G10: =INDEX(BFnames,MATCH(B10,Lookups!A$2:A$145,0),4) -> 11.62094907 | H10: 0.08605149146 | I10: 0.07788720322 | J10: 0.0718816418 | K10: 0.07503534358 | L10: 0.129752917 | M10: 0.07061196057 | N10: 0.1739895779 | O10: 0.06562958402 | P10: 0.2061963128 | Q10: 0.06044672988 | R10: 0.07387458175 | S10: 0.0104409315 | T10: 0.08431551325 | U10: 2068 | V10: 72 | W10: 2140 | X10: 2364 | Y10: 83 | Z10: 2447 | AA10: 2659 | AB10: 93 | AC10: 2752 | AD10: 1409 | AE10: 49 | AF10: 1458 | AG10: G | AH10: 1450 | AI10: 2014 | AJ10: =37550/2 -> 18775 | AK10: =37550*0.275 -> 10326.25 | AL10: 8448.75 | AN10: =SUM(AJ10:AM10) -> 37550
A11: 1 | B11: 4 | D11: =INDEX(BFnames,MATCH(B11,Lookups!A$2:A$145,0),2) -> Brandt Snedeker | G11: =INDEX(BFnames,MATCH(B11,Lookups!A$2:A$145,0),4) -> 12.1002845 | H11: 0.08264268501 | I11: 0.07480181334 | J11: 0.06926281711 | K11: 0.0723016218 | L11: 0.1256649465 | M11: 0.06838727371 | N11: 0.1694513675 | O11: 0.06391775244 | P11: 0.2019527132 | Q11: 0.05920271289 | R11: 0.0712483647 | S11: 0.01055294099 | T11: 0.08180130568 | U11: 1995 | V11: 73 | W11: 2068 | X11: 2280 | Y11: 84 | Z11: 2364 | AA11: 2565 | AB11: 94 | AC11: 2659 | AD11: 1359 | AE11: 50 | AF11: 1409 | AG11: G | AH11: 1325 | AI11: 2015 | AJ11: 34510 | AK11: 5075 | AM11: 1015 | AN11: =SUM(AJ11:AM11) -> 40600
A12: 1 | B12: 5 | D12: =INDEX(BFnames,MATCH(B12,Lookups!A$2:A$145,0),2) -> Byeong Hun An | G12: =INDEX(BFnames,MATCH(B12,Lookups!A$2:A$145,0),4) -> 16.1483871 | H12: 0.06192568917 | I12: 0.05605037932 | J12: 0.05294098824 | K12: 0.05526369658 | L12: 0.09904308817 | M12: 0.05389957158 | N12: 0.1381662171 | O12: 0.05211686509 | P12: 0.1705007327 | Q12: 0.04998252198 | R12: 0.05480024006 | S12: 0.01058131983 | T12: 0.06538155989 | U12: 1534 | V12: 73 | W12: 1607 | X12: 1754 | Y12: 84 | Z12: 1838 | AA12: 1973 | AB12: 94 | AC12: 2067 | AD12: 1045 | AE12: 50 | AF12: 1095 | AI12: 2018 | AJ12: =19075*0.785 -> 14973.875 | AK12: =19075*0.195 -> 3719.625 | AL12: =19075*0.02 -> 381.5 | AN12: =SUM(AJ12:AM12) -> 19075
A13: 1 | B13: 6 | D13: =INDEX(BFnames,MATCH(B13,Lookups!A$2:A$145,0),2) -> Abraham Ancer | G13: =INDEX(BFnames,MATCH(B13,Lookups!A$2:A$145,0),4) -> 16.82603939 | H13: 0.05943169257 | I13: 0.05379300508 | J13: 0.05092909626 | K13: 0.05316353579 | L13: 0.09562801359 | M13: 0.05204107686 | N13: 0.1339488704 | O13: 0.05052606457 | P13: 0.166001566 | Q13: 0.04866358513 | R13: 0.052761622 | S13: 0.01090386649 | T13: 0.06366548849 | U13: 1477 | V13: 76 | W13: 1553 | X13: 1688 | Y13: 86 | Z13: 1774 | AA13: 1899 | AB13: 97 | AC13: 1996 | AD13: 1006 | AE13: 51 | AF13: 1057 | AG13: G | AH13: 950
A14: 1 | B14: 7 | D14: =INDEX(BFnames,MATCH(B14,Lookups!A$2:A$145,0),2) -> Cameron Davis | G14: =INDEX(BFnames,MATCH(B14,Lookups!A$2:A$145,0),4) -> 21.68201754 | H14: 0.04612116921 | I14: 0.04174534129 | J14: 0.04002082737 | K14: 0.04177668257 | L14: 0.07661565076 | M14: 0.041694487 | N14: 0.1096866251 | O14: 0.04137424591 | P14: 0.1390901367 | Q14: 0.04077446296 | R14: 0.04165784012 | S14: 0.01108822819 | T14: 0.05274606831 | U14: 1166 | V14: 77 | W14: 1243 | X14: 1333 | Y14: 88 | Z14: 1421 | AA14: 1500 | AB14: 99 | AC14: 1599 | AD14: 795 | AE14: 52 | AF14: 847 | AG14: G | AH14: 875
A15: 1 | B15: 8 | D15: =INDEX(BFnames,MATCH(B15,Lookups!A$2:A$145,0),2) -> Anirban Lahiri | G15: =INDEX(BFnames,MATCH(B15,Lookups!A$2:A$145,0),4) -> 33.35483871 | H15: 0.02998065764 | I15: 0.02713618945 | J15: 0.02640760582 | K15: 0.02756620086 | L15: 0.05174080343 | M15: 0.02815751396 | N15: 0.07606264644 | O15: 0.02869114292 | P15: 0.09922772581 | Q15: 0.02908874294 | R15: 0.02766479683 | S15: 0.01111956288 | T15: 0.03878435971 | U15: 775 | V15: 77 | W15: 852 | X15: 885 | Y15: 88 | Z15: 973 | AA15: 996 | AB15: 99 | AC15: 1095 | AD15: 528 | AE15: 52 | AF15: 580 | AG15: G | AH15: 525
A16: 1 | B16: 9 | D16: =INDEX(BFnames,MATCH(B16,Lookups!A$2:A$145,0),2) -> Brendan Steele | G16: =INDEX(BFnames,MATCH(B16,Lookups!A$2:A$145,0),4) -> 38.14334471 | H16: 0.02621689334 | I16: 0.02372951898 | J16: 0.02317240575 | K16: 0.02418906113 | L16: 0.04564616478 | M16: 0.02484079173 | N16: 0.06751884379 | O16: 0.02546838544 | P16: 0.08867374131 | Q16: 0.02599482802 | R16: 0.02431454079 | S16: 0.01149764595 | T16: 0.03581218675 | U16: 681 | V16: 80 | W16: 761 | X16: 778 | Y16: 91 | Z16: 869 | AA16: 875 | AB16: 102 | AC16: 977 | AD16: 464 | AE16: 54 | AF16: 518 | AG16: G | AH16: 475
A17: 1 | B17: 10 | C17: 81.5 | D17: =INDEX(BFnames,MATCH(B17,Lookups!A$2:A$145,0),2) -> Nicolas Colsaerts | G17: =INDEX(BFnames,MATCH(B17,Lookups!A$2:A$145,0),4) -> 68.81188119 | H17: 0.0145323741 | I17: 0.01315358927 | J17: 0.01298242851 | K17: 0.01355201355 | L17: 0.02599996082 | M17: 0.01414926347 | N17: 0.03920315532 | O17: 0.01478759135 | P17: 0.05257817432 | Q17: 0.0154133634 | R17: 0.01369386663 | S17: 0.01182107554 | T17: 0.02551494218 | U17: 383 | V17: 82 | W17: 465 | X17: 438 | Y17: 94 | Z17: 532 | AA17: 493 | AB17: 105 | AC17: 598 | AD17: 261 | AE17: 56 | AF17: 317
A18: 1 | B18: 11 | C18: 765 | D18: =INDEX(BFnames,MATCH(B18,Lookups!A$2:A$145,0),2) -> Dimitrios Papadatos | G18: =INDEX(BFnames,MATCH(B18,Lookups!A$2:A$145,0),4) -> 592 | H18: 0.001689189189 | I18: 0.001528924362 | J18: 0.001526612122 | K18: 0.001593589994 | L18: 0.003112869912 | M18: 0.001694033958 | N18: 0.004793600139 | O18: 0.001808165678 | P18: 0.006581301061 | Q18: 0.001929317368 | R18: 0.00162031209 | S18: 0.01195601002 | T18: 0.01357632211 | U18: 45 | V18: 83 | W18: 128 | X18: 52 | Y18: 95 | Z18: 147 | AA18: 58 | AB18: 107 | AC18: 165 | AD18: 31 | AE18: 56 | AF18: 87 | AI18: Cost
A19: 1 | B19: 12 | C19: 55 | D19: =INDEX(BFnames,MATCH(B19,Lookups!A$2:A$145,0),2) -> Marcus Fraser | G19: =INDEX(BFnames,MATCH(B19,Lookups!A$2:A$145,0),4) -> 64.07894737 | H19: 0.01560574949 | I19: 0.01412512626 | J19: 0.01392774545 | K19: 0.01453880489 | L19: 0.02785098758 | M19: 0.01515659827 | N19: 0.04192025766 | O19: 0.01581249352 | P19: 0.05611329731 | Q19: 0.01644968952 | R19: 0.01468367644 | S19: 0.0121495683 | T19: 0.02683324474 | U19: 411 | V19: 84 | W19: 495 | X19: 470 | Y19: 96 | Z19: 566 | AA19: 529 | AB19: 108 | AC19: 637 | AD19: 280 | AE19: 57 | AF19: 337 | AI19: 2012 | AJ19: 27350 | AK19: 6600 | AL19: 5200 | AM19: 2550 | AN19: =SUM(AJ19:AM19) -> 41700 | AO19: 7
A20: 2 | B20: 13 | C20: 93 | D20: =INDEX(BFnames,MATCH(B20,Lookups!A$2:A$145,0),2) -> Rod Pampling | G20: =INDEX(BFnames,MATCH(B20,Lookups!A$2:A$145,0),4) -> 89.2 | H20: 0.01121076233 | I20: 0.01014712132 | J20: 0.01004526519 | K20: 0.0104859865 | L20: 0.02021191567 | M20: 0.01099939042 | N20: 0.03064241913 | O20: 0.01155844646 | P20: 0.04134489706 | Q20: 0.01212031287 | R20: 0.01061230517 | S20: 0.0124968363 | T20: 0.02310914147 | U20: 297 | V20: 87 | W20: 384 | X20: 340 | Y20: 99 | Z20: 439 | AA20: 382 | AB20: 112 | AC20: 494 | AD20: 202 | AE20: 59 | AF20: 261 | AG20: W | AH20: 300 | AI20: 2013 | AJ20: 32850 | AK20: 6150 | AL20: 3750 | AM20: 2400 | AN20: =SUM(AJ20:AM20) -> 45150 | AO20: 10
A21: 2 | B21: 14 | C21: 25.2 | D21: =INDEX(BFnames,MATCH(B21,Lookups!A$2:A$145,0),2) -> John Senden | G21: =INDEX(BFnames,MATCH(B21,Lookups!A$2:A$145,0),4) -> 68.07692308 | H21: 0.01468926554 | I21: 0.01329559535 | J21: 0.01312071867 | K21: 0.01369637099 | L21: 0.0262711078 | M21: 0.01429682254 | N21: 0.03960179773 | O21: 0.0149379609 | P21: 0.05309775364 | Q21: 0.01556567878 | R21: 0.01383872536 | S21: 0.01251386863 | T21: 0.02635259398 | U21: 387 | V21: 87 | W21: 474 | X21: 443 | Y21: 99 | Z21: 542 | AA21: 498 | AB21: 112 | AC21: 610 | AD21: 264 | AE21: 59 | AF21: 323 | AG21: M | AH21: 350 | AI21: 2014 | AJ21: 26500 | AK21: 6150 | AL21: 4050 | AM21: 1850 | AN21: =SUM(AJ21:AM21) -> 38550 | AO21: 10
A22: 2 | B22: 15 | D22: =INDEX(BFnames,MATCH(B22,Lookups!A$2:A$145,0),2) -> Matthew Griffin | G22: =INDEX(BFnames,MATCH(B22,Lookups!A$2:A$145,0),4) -> 85.59782609 | H22: 0.01168253968 | I22: 0.01057413796 | J22: 0.01046352821 | K22: 0.01092260019 | L22: 0.0210395445 | M22: 0.01144978873 | N22: 0.03187246723 | O22: 0.01202242566 | P22: 0.04296774818 | Q22: 0.01259605389 | R22: 0.01105170541 | S22: 0.01257671962 | T22: 0.02362842503 | U22: 309 | V22: 87 | W22: 396 | X22: 354 | Y22: 100 | Z22: 454 | AA22: 398 | AB22: 112 | AC22: 510 | AD22: 211 | AE22: 59 | AF22: 270 | AG22: M | AH22: 325 | AI22: 2015 | AJ22: 28100 | AK22: 6775 | AL22: 4025 | AM22: 2700 | AN22: =SUM(AJ22:AM22) -> 41600 | AO22: 13
A23: 2 | B23: 16 | D23: =INDEX(BFnames,MATCH(B23,Lookups!A$2:A$145,0),2) -> Nick Voke | G23: =INDEX(BFnames,MATCH(B23,Lookups!A$2:A$145,0),4) -> 83 | H23: 0.01204819277 | I23: 0.01090509906 | J23: 0.01078745655 | K23: 0.01126074042 | L23: 0.0216797384 | M23: 0.01179818434 | N23: 0.03282258615 | O23: 0.01238081443 | P23: 0.04421926959 | Q23: 0.0129629391 | R23: 0.01139187183 | S23: 0.01264566671 | T23: 0.02403753854 | U23: 319 | V23: 88 | W23: 407 | X23: 365 | Y23: 100 | Z23: 465 | AA23: 410 | AB23: 113 | AC23: 523 | AD23: 217 | AE23: 60 | AF23: 277 | AI23: 2018 | AJ23: 11150 | AK23: 3650 | AL23: 3325 | AM23: 1950 | AN23: =SUM(AJ23:AM23) -> 20075 | AO23: 12
A24: 2 | B24: 17 | C24: 601 | D24: =INDEX(BFnames,MATCH(B24,Lookups!A$2:A$145,0),2) -> Rhein Gibson | G24: =INDEX(BFnames,MATCH(B24,Lookups!A$2:A$145,0),4) -> 251.0606061 | H24: 0.003983101992 | I24: 0.003605198109 | J24: 0.003592341428 | K24: 0.003749950149 | L24: 0.007301633797 | M24: 0.003973572924 | N24: 0.01120176062 | O24: 0.004225350157 | P24: 0.0153147314 | Q24: 0.004489534365 | R24: 0.003808464928 | S24: 0.0126576306 | T24: 0.01646609553 | U24: 107 | V24: 88 | W24: 195 | X24: 122 | Y24: 100 | Z24: 222 | AA24: 137 | AB24: 113 | AC24: 250 | AD24: 73 | AE24: 60 | AF24: 133
A25: 2 | B25: 18 | D25: =INDEX(BFnames,MATCH(B25,Lookups!A$2:A$145,0),2) -> Anthony Quayle | G25: =INDEX(BFnames,MATCH(B25,Lookups!A$2:A$145,0),4) -> 159.4252874 | H25: 0.006272530642 | I25: 0.005677413145 | J25: 0.005645528517 | K25: 0.005893217814 | L25: 0.01143819001 | M25: 0.006224700308 | N25: 0.01748203896 | O25: 0.006594296963 | P25: 0.02380108404 | Q25: 0.006977320198 | R25: 0.005978428184 | S25: 0.01273958918 | T25: 0.01871801737 | U25: 167 | V25: 88 | W25: 255 | X25: 191 | Y25: 101 | Z25: 292 | AA25: 215 | AB25: 114 | AC25: 329 | AD25: 114 | AE25: 60 | AF25: 174
A26: 2 | B26: 19 | D26: =INDEX(BFnames,MATCH(B26,Lookups!A$2:A$145,0),2) -> Cameron Percy | G26: =INDEX(BFnames,MATCH(B26,Lookups!A$2:A$145,0),4) -> 65.9375 | H26: 0.01516587678 | I26: 0.01372698726 | J26: 0.01354057742 | K26: 0.01413465043 | L26: 0.02709357195 | M26: 0.01474441021 | N26: 0.04080967191 | O26: 0.01539357601 | P26: 0.05467013326 | Q26: 0.01602662401 | R26: 0.0142784012 | S26: 0.01299195804 | T26: 0.02727035924 | U26: 400 | V26: 90 | W26: 490 | X26: 457 | Y26: 103 | Z26: 560 | AA26: 514 | AB26: 116 | AC26: 630 | AD26: 272 | AE26: 61 | AF26: 333
A27: 2 | B27: 20 | D27: =INDEX(BFnames,MATCH(B27,Lookups!A$2:A$145,0),2) -> Zach Murray | G27: =INDEX(BFnames,MATCH(B27,Lookups!A$2:A$145,0),4) -> 107.5609756 | H27: 0.009297052154 | I27: 0.008414977802 | J27: 0.008344929238 | K27: 0.00871105079 | L27: 0.01683586177 | M27: 0.009162130882 | N27: 0.02560440837 | O27: 0.009658088095 | P27: 0.03466766021 | Q27: 0.0101628718 | R27: 0.008824051743 | S27: 0.01376451821 | T27: 0.02258856996 | U27: 247 | V27: 96 | W27: 343 | X27: 282 | Y27: 109 | Z27: 391 | AA27: 318 | AB27: 123 | AC27: 441 | AD27: 168 | AE27: 65 | AF27: 233 | AG27: J | AH27: 250
A28: 2 | B28: 21 | C28: 1200 | D28: =INDEX(BFnames,MATCH(B28,Lookups!A$2:A$145,0),2) -> Brett Coletta | G28: =INDEX(BFnames,MATCH(B28,Lookups!A$2:A$145,0),4) -> 114.4736842 | H28: 0.008735632184 | I28: 0.00790682355 | J28: 0.007844979918 | K28: 0.008189166926 | L28: 0.01583968082 | M28: 0.008620005958 | N28: 0.02411159359 | O28: 0.009094992221 | P28: 0.03267981588 | Q28: 0.009580132527 | R28: 0.008297640047 | S28: 0.01391048904 | T28: 0.02220812909 | U28: 232 | V28: 97 | W28: 329 | X28: 266 | Y28: 111 | Z28: 377 | AA28: 299 | AB28: 124 | AC28: 423 | AD28: 158 | AE28: 66 | AF28: 224
A29: 2 | B29: 22 | D29: =INDEX(BFnames,MATCH(B29,Lookups!A$2:A$145,0),2) -> Cameron John | G29: =INDEX(BFnames,MATCH(B29,Lookups!A$2:A$145,0),4) -> 73.07692308 | H29: 0.01368421053 | I29: 0.01238589672 | J29: 0.01223413336 | K29: 0.01277088805 | L29: 0.02453062869 | M29: 0.01334964813 | N29: 0.03703919021 | O29: 0.01397133481 | P29: 0.04975223081 | Q29: 0.01458493421 | R29: 0.01290967195 | S29: 0.01416927397 | T29: 0.02707894592 | U29: 361 | V29: 99 | W29: 460 | X29: 413 | Y29: 113 | Z29: 526 | AA29: 465 | AB29: 127 | AC29: 592 | AD29: 246 | AE29: 67 | AF29: 313 | AG29: M | AH29: 350 | AI29: Result
A30: 2 | B30: 23 | C30: 84.1 | D30: =INDEX(BFnames,MATCH(B30,Lookups!A$2:A$145,0),2) -> Greg Chalmers | G30: =INDEX(BFnames,MATCH(B30,Lookups!A$2:A$145,0),4) -> 98.83561644 | H30: 0.01011781012 | I30: 0.009157864895 | J30: 0.00907490174 | K30: 0.009473049766 | L30: 0.01828750708 | M30: 0.009952120993 | N30: 0.02777467491 | O30: 0.01047672155 | P30: 0.03755003491 | Q30: 0.01100784387 | R30: 0.009592160923 | S30: 0.01431531736 | T30: 0.02390747828 | U30: 269 | V30: 100 | W30: 369 | X30: 307 | Y30: 114 | Z30: 421 | AA30: 345 | AB30: 128 | AC30: 473 | AD30: 183 | AE30: 68 | AF30: 251 | AI30: 2012 | AJ30: =+AJ8-AJ19 -> -25315 | AK30: =+AK8-AK19 -> 27995 | AL30: -3165 | AM30: -515 | AN30: -1000
A31: 2 | B31: 24 | D31: =INDEX(BFnames,MATCH(B31,Lookups!A$2:A$145,0),2) -> Jake McLeod | G31: =INDEX(BFnames,MATCH(B31,Lookups!A$2:A$145,0),4) -> 85.43478261 | H31: 0.01170483461 | I31: 0.01059431761 | J31: 0.01048328526 | K31: 0.01094322405 | L31: 0.02107861054 | M31: 0.0114710486 | N31: 0.03193047953 | O31: 0.01204430814 | P31: 0.04304421373 | Q31: 0.01261846987 | R31: 0.01107245615 | S31: 0.01485573017 | T31: 0.02592818632 | U31: 310 | V31: 103 | W31: 413 | X31: 354 | Y31: 118 | Z31: 472 | AA31: 399 | AB31: 133 | AC31: 532 | AD31: 211 | AE31: 70 | AF31: 281 | AG31: M | AH31: 300 | AI31: 2013 | AJ31: =+AJ9-AJ20 -> 4677.5 | AK31: =+AK9-AK20 -> -6150 | AL31: -3750 | AM31: 4222.5 | AN31: -1000
A32: 3 | B32: 25 | C32: 735 | D32: =INDEX(BFnames,MATCH(B32,Lookups!A$2:A$145,0),2) -> Jordan Zunic | G32: =INDEX(BFnames,MATCH(B32,Lookups!A$2:A$145,0),4) -> 132.5 | H32: 0.007547169811 | I32: 0.006831118658 | J32: 0.006784958268 | K32: 0.007082638377 | L32: 0.0137222397 | M32: 0.007467687597 | N32: 0.02092914254 | O32: 0.007894558603 | P32: 0.02842796514 | Q32: 0.008333696693 | R32: 0.007180583055 | S32: 0.01491202348 | T32: 0.02209260653 | U32: 201 | V32: 104 | W32: 305 | X32: 230 | Y32: 119 | Z32: 349 | AA32: 259 | AB32: 133 | AC32: 392 | AD32: 137 | AE32: 71 | AF32: 208 | AI32: 2014 | AJ32: =+AJ10-AJ21 -> -7725 | AK32: 4176.25 | AL32: 4398.75 | AM32: -1850 | AN32: -1000
A33: 3 | B33: 26 | D33: =INDEX(BFnames,MATCH(B33,Lookups!A$2:A$145,0),2) -> Matthew Millar | G33: =INDEX(BFnames,MATCH(B33,Lookups!A$2:A$145,0),4) -> 84.95454545 | H33: 0.01177100054 | I33: 0.01065420593 | J33: 0.01054191465 | K33: 0.01100442572 | L33: 0.02119452494 | M33: 0.01153412959 | N33: 0.03210258417 | O33: 0.01210922672 | P33: 0.04327102506 | Q33: 0.01268495992 | R33: 0.0111340318 | S33: 0.0150834919 | T33: 0.02621752371 | U33: 312 | V33: 105 | W33: 417 | X33: 356 | Y33: 120 | Z33: 476 | AA33: 401 | AB33: 135 | AC33: 536 | AD33: 212 | AE33: 72 | AF33: 284 | AI33: 2015 | AJ33: =+AJ11-AJ22 -> 6410 | AK33: -1700 | AL33: -4025 | AM33: -1685 | AN33: -1000
A34: 3 | B34: 27 | C34: 246 | D34: =INDEX(BFnames,MATCH(B34,Lookups!A$2:A$145,0),2) -> Nick Cullen | G34: =INDEX(BFnames,MATCH(B34,Lookups!A$2:A$145,0),4) -> 91.25 | H34: 0.01095890411 | I34: 0.009919158599 | J34: 0.009821827851 | K34: 0.01025274617 | L34: 0.01976933365 | M34: 0.01075853584 | N34: 0.02998382903 | O34: 0.01131002357 | P34: 0.04047479078 | Q34: 0.01186524003 | R34: 0.01037749739 | S34: 0.01578294637 | T34: 0.02616044376 | U34: 291 | V34: 110 | W34: 401 | X34: 332 | Y34: 126 | Z34: 458 | AA34: 374 | AB34: 141 | AC34: 515 | AD34: 198 | AE34: 75 | AF34: 273 | AG34: G | AH34: 350 | AI34: 2018 | AJ34: =+AJ12-AJ23 -> 3823.875 | AK34: 69.625 | AL34: -2943.5 | AM34: -1950 | AN34: -1000
A35: 3 | B35: 28 | D35: =INDEX(BFnames,MATCH(B35,Lookups!A$2:A$145,0),2) -> Travis Smyth | G35: =INDEX(BFnames,MATCH(B35,Lookups!A$2:A$145,0),4) -> 532.3809524 | H35: 0.001878354204 | I35: 0.001700142009 | J35: 0.001697282892 | K35: 0.001771748694 | L35: 0.00345996725 | M35: 0.001882925461 | N35: 0.005326452132 | O35: 0.002009159641 | P35: 0.007310332808 | Q35: 0.002143034017 | R35: 0.001801286981 | S35: 0.01603538211 | T35: 0.01783666909 | U35: 50 | V35: 112 | W35: 162 | X35: 58 | Y35: 128 | Z35: 186 | AA35: 65 | AB35: 144 | AC35: 209 | AD35: 34 | AE35: 76 | AF35: 110 | AG35: J | AH35: 200
A36: 3 | B36: 29 | D36: =INDEX(BFnames,MATCH(B36,Lookups!A$2:A$145,0),2) -> Harrison Endycott | G36: =INDEX(BFnames,MATCH(B36,Lookups!A$2:A$145,0),4) -> 71.25 | H36: 0.01403508772 | I36: 0.01270348382 | J36: 0.01254383739 | K36: 0.01309417989 | L36: 0.02513919352 | M36: 0.0136808311 | N36: 0.03793622222 | O36: 0.01430969897 | P36: 0.05092479739 | Q36: 0.0149286737 | R36: 0.01323430722 | S36: 0.01616425237 | T36: 0.02939855959 | U36: 371 | V36: 113 | W36: 484 | X36: 423 | Y36: 129 | Z36: 552 | AA36: 476 | AB36: 145 | AC36: 621 | AD36: 252 | AE36: 77 | AF36: 329 | AG36: W | AH36: 350
A37: 3 | B37: 30 | D37: =INDEX(BFnames,MATCH(B37,Lookups!A$2:A$145,0),2) -> Adam Bland | G37: =INDEX(BFnames,MATCH(B37,Lookups!A$2:A$145,0),4) -> 195.0632911 | H37: 0.005126541207 | I37: 0.004640151496 | J37: 0.004618853448 | K37: 0.004821498881 | L37: 0.009373091515 | M37: 0.00510086697 | N37: 0.0143527223 | O37: 0.005413905855 | P37: 0.01958161757 | Q37: 0.005740377856 | R37: 0.004893966619 | S37: 0.01834851261 | T37: 0.02324247923 | U37: 137 | V37: 128 | W37: 265 | X37: 157 | Y37: 147 | Z37: 304 | AA37: 176 | AB37: 165 | AC37: 341 | AD37: 93 | AE37: 87 | AF37: 180
A38: 3 | B38: 31 | C38: 789 | D38: =INDEX(BFnames,MATCH(B38,Lookups!A$2:A$145,0),2) -> Ben Eccles | G38: =INDEX(BFnames,MATCH(B38,Lookups!A$2:A$145,0),4) -> 810.9090909 | H38: 0.001233183857 | I38: 0.001116183346 | J38: 0.001114951008 | K38: 0.001163867851 | L38: 0.002274908942 | M38: 0.001238012865 | N38: 0.003505821349 | O38: 0.001322410225 | P38: 0.004817297552 | Q38: 0.001412197337 | R38: 0.001183655913 | S38: 0.01879477327 | T38: 0.01997842919 | U38: 33 | V38: 131 | W38: 164 | X38: 38 | Y38: 150 | Z38: 188 | AA38: 43 | AB38: 169 | AC38: 212 | AD38: 23 | AE38: 90 | AF38: 113
A39: 3 | B39: 32 | D39: =INDEX(BFnames,MATCH(B39,Lookups!A$2:A$145,0),2) -> Deyen Lawson | G39: =INDEX(BFnames,MATCH(B39,Lookups!A$2:A$145,0),4) -> 143.8983051 | H39: =IF(G39<>"Scr",1/G39,"") -> 0.006949352179 | I39: 0.006290020036 | J39: =(1-I39)*I39/(1-I39/92) -> 0.006250883056 | K39: 0.006525131397 | L39: =(1-I39-K39)*(I39+K39)/(1-(I39+K39)/92) -> 0.01265268578 | M39: 0.006885632867 | N39: =(1-I39-K39-M39)*(I39+K39+M39)/(1-(I39+K39+M39)/92) -> 0.01931679988 | O39: 0.007286376323 | P39: =(1-I39-K39-M39-O39)*(I39+K39+M39+O39)/(1-(I39+K39+M39+O39)/92) -> 0.02626655878 | Q39: 0.007700077475 | R39: =+I$7*I39+K$7*K39+M$7*M39+O$7*O39+Q$7*Q39 -> 0.006617290838 | S39: 0.02072212468 | T39: =+R39+S39 -> 0.02733941552 | U39: 185 | V39: 145 | W39: =+U39+V39 -> 330 | X39: 212 | Y39: 166 | Z39: 378 | AA39: 238 | AB39: 187 | AC39: 425 | AD39: 126 | AE39: 99 | AF39: 225 | AG39: G | AH39: 250
A40: 3 | B40: 33 | C40: 1200 | D40: =INDEX(BFnames,MATCH(B40,Lookups!A$2:A$145,0),2) -> Douglas Klein | G40: =INDEX(BFnames,MATCH(B40,Lookups!A$2:A$145,0),4) -> 446.0526316 | H40: =IF(G40<>"Scr",1/G40,"") -> 0.002241887906 | I40: =IF(H40<>"",+H40/$H$153,0) -> 0.002029184805 | J40: =(1-I40)*I40/(1-I40/92) -> 0.00202511188 | K40: =IF(J40<>"",+J40/$J$153,0) -> 0.002113960699 | L40: =(1-I40-K40)*(I40+K40)/(1-(I40+K40)/92) -> 0.004126165668 | M40: =IF(L40<>"",+L40/$L$153,0) -> 0.002245472813 | N40: =(1-I40-K40-M40)*(I40+K40+M40)/(1-(I40+K40+M40)/92) -> 0.006348244704 | O40: =IF(N40<>"",+N40/$N$153,0) -> 0.002394583999 | P40: =(1-I40-K40-M40-O40)*(I40+K40+M40+O40)/(1-(I40+K40+M40+O40)/92) -> 0.008706888916 | Q40: =IF(P40<>"",+P40/$P$153,0) -> 0.002552436342 | R40: =+I$7*I40+K$7*K40+M$7*M40+O$7*O40+Q$7*Q40 -> 0.002148812279 | S40: 0.02151495917 | T40: 0.02366377145 | U40: 60 | V40: 151 | W40: 211 | X40: 69 | Y40: 172 | Z40: 241 | AA40: 77 | AB40: 194 | AC40: 271 | AD40: 41 | AE40: 103 | AF40: 144 | AI40: Total | AJ40: =SUM(AJ30:AJ39) -> -18128.625 | AK40: =SUM(AK30:AK39) -> 24390.875 | AL40: -9484.75 | AM40: -1777.5 | AN40: -5000
A41: 3 | B41: 34 | D41: =INDEX(BFnames,MATCH(B41,Lookups!A$2:A$145,0),2) -> Jarryd Felton | G41: =INDEX(BFnames,MATCH(B41,Lookups!A$2:A$145,0),4) -> 153.3333333 | H41: 0.00652173913 | I41: 0.005902977536 | J41: 0.005868508932 | K41: 0.006125981169 | L41: 0.01188581692 | M41: 0.006468300331 | N41: 0.01815876139 | O41: 0.006849559446 | P41: 0.02471116542 | Q41: 0.007244111793 | R41: 0.006213799746 | S41: 0.02275883486 | T41: 0.02897263461 | U41: 174 | V41: 160 | W41: 334 | X41: 199 | Y41: 183 | Z41: 382 | AA41: 224 | AB41: 206 | AC41: 430 | AD41: 119 | AE41: 109 | AF41: 228
A42: 3 | B42: 35 | D42: =INDEX(BFnames,MATCH(B42,Lookups!A$2:A$145,0),2) -> Mikko Ilonen | G42: =INDEX(BFnames,MATCH(B42,Lookups!A$2:A$145,0),4) -> 118.0769231 | H42: 0.008469055375 | I42: 0.007665538689 | J42: 0.007607412064 | K42: 0.007941176129 | L42: 0.01536575189 | M42: 0.008362092289 | N42: 0.02340039991 | O42: 0.008826727043 | P42: 0.03173129845 | Q42: 0.009302073349 | R42: 0.008047399562 | S42: 0.02895041624 | T42: 0.0369978158 | U42: 225 | V42: 205 | W42: 430 | X42: 258 | Y42: 234 | Z42: 492 | AA42: 290 | AB42: 263 | AC42: 553 | AD42: 154 | AE42: 140 | AF42: 294
A43: 3 | B43: 36 | C43: 169 | D43: =INDEX(BFnames,MATCH(B43,Lookups!A$2:A$145,0),2) -> Andrew Dodt | G43: =INDEX(BFnames,MATCH(B43,Lookups!A$2:A$145,0),4) -> 117.9032258 | H43: 0.008481532148 | I43: 0.007676831706 | J43: 0.007618533681 | K43: 0.007952785691 | L43: 0.01538794667 | M43: 0.008374170762 | N43: 0.02343372042 | O43: 0.008839295677 | P43: 0.03177575931 | Q43: 0.009315107112 | R43: 0.008059115855 | S43: 0.03393929629 | T43: 0.04199841214 | U43: 226 | V43: 242 | W43: 468 | X43: 258 | Y43: 276 | Z43: 534 | AA43: 290 | AB43: 311 | AC43: 601 | AD43: 154 | AE43: 165 | AF43: 319
A44: 4C | B44: 114 | C44: =RANK($G44,$G$44:$G$152,1)+36 -> 37 | D44: =INDEX(BFnames,MATCH(B44,Lookups!A$2:A$145,0),2) -> Campbell Rawson | G44: =INDEX(BFnames,MATCH(B44,Lookups!A$2:A$145,0),4) -> 110 | H44: =IF(G44<>"Scr",1/G44,"") -> 0.009090909091 | I44: =IF(H44<>"",+H44/$H$153,0) -> 0.008228392929 | J44: =(1-I44)*I44/(1-I44/92) -> 0.008161416428 | K44: =IF(J44<>"",+J44/$J$153,0) -> 0.008519486624 | L44: =(1-I44-K44)*(I44+K44)/(1-(I44+K44)/92) -> 0.01647038639 | M44: =IF(L44<>"",+L44/$L$153,0) -> 0.008963237985 | N44: =(1-I44-K44-M44)*(I44+K44+M44)/(1-(I44+K44+M44)/92) -> 0.02505705864 | O44: =IF(N44<>"",+N44/$N$153,0) -> 0.009451625524 | P44: =(1-I44-K44-M44-O44)*(I44+K44+M44+O44)/(1-(I44+K44+M44+O44)/92) -> 0.03393929629 | Q44: =IF(P44<>"",+P44/$P$153,0) -> 0.009949350923 | R44: =+I$7*I44+K$7*K44+M$7*M44+O$7*O44+Q$7*Q44 -> 0.008630858054 | U44: =ROUND(+$R44*U$6,0) -> 242 | X44: =ROUND(+$R44*X$6,0) -> 276 | AA44: =ROUND(+$R44*AA$6,0) -> 311 | AD44: =ROUND(+$R44*AD$6,0) -> 165
A45: 4C | B45: 103 | C45: =RANK($G45,$G$44:$G$152,1)+36 -> 38 | D45: =INDEX(BFnames,MATCH(B45,Lookups!A$2:A$145,0),2) -> David Micheluzzi | G45: =INDEX(BFnames,MATCH(B45,Lookups!A$2:A$145,0),4) -> 130 | H45: =IF(G45<>"Scr",1/G45,"") -> 0.007692307692 | I45: =IF(H45<>"",+H45/$H$153,0) -> 0.006962486324 | J45: =(1-I45)*I45/(1-I45/92) -> 0.006914533395 | K45: =IF(J45<>"",+J45/$J$153,0) -> 0.007217898424 | L45: =(1-I45-K45)*(I45+K45)/(1-(I45+K45)/92) -> 0.01398145646 | M45: =IF(L45<>"",+L45/$L$153,0) -> 0.007608754203 | N45: =(1-I45-K45-M45)*(I45+K45+M45)/(1-(I45+K45+M45)/92) -> 0.02131942163 | O45: =IF(N45<>"",+N45/$N$153,0) -> 0.008041773482 | P45: =(1-I45-K45-M45-O45)*(I45+K45+M45+O45)/(1-(I45+K45+M45+O45)/92) -> 0.02895041624 | Q45: =IF(P45<>"",+P45/$P$153,0) -> 0.008486853944 | R45: =+I$7*I45+K$7*K45+M$7*M45+O$7*O45+Q$7*Q45 -> 0.007317198022 | U45: =ROUND(+$R45*U$6,0) -> 205 | X45: =ROUND(+$R45*X$6,0) -> 234 | AA45: =ROUND(+$R45*AA$6,0) -> 263 | AD45: =ROUND(+$R45*AD$6,0) -> 140
A46: 4D | B46: 121 | C46: =RANK($G46,$G$44:$G$152,1)+36 -> 39 | D46: =INDEX(BFnames,MATCH(B46,Lookups!A$2:A$145,0),2) -> Aaron Pike | G46: =INDEX(BFnames,MATCH(B46,Lookups!A$2:A$145,0),4) -> 167 | H46: =IF(G46<>"Scr",1/G46,"") -> 0.005988023952 | I46: =IF(H46<>"",+H46/$H$153,0) -> 0.005419899534 | J46: =(1-I46)*I46/(1-I46/92) -> 0.005390841808 | K46: =IF(J46<>"",+J46/$J$153,0) -> 0.005627357099 | L46: =(1-I46-K46)*(I46+K46)/(1-(I46+K46)/92) -> 0.0109265268 | M46: =IF(L46<>"",+L46/$L$153,0) -> 0.005946251517 | N46: =(1-I46-K46-M46)*(I46+K46+M46)/(1-(I46+K46+M46)/92) -> 0.01670781497 | O46: =IF(N46<>"",+N46/$N$153,0) -> 0.006302256489 | P46: =(1-I46-K46-M46-O46)*(I46+K46+M46+O46)/(1-(I46+K46+M46+O46)/92) -> 0.02275883486 | Q46: =IF(P46<>"",+P46/$P$153,0) -> 0.006671783432 | R46: =+I$7*I46+K$7*K46+M$7*M46+O$7*O46+Q$7*Q46 -> 0.005709518974 | U46: =ROUND(+$R46*U$6,0) -> 160 | X46: =ROUND(+$R46*X$6,0) -> 183 | AA46: =ROUND(+$R46*AA$6,0) -> 206 | AD46: =ROUND(+$R46*AD$6,0) -> 109
A47: 4D | B47: 119 | C47: =RANK($G47,$G$44:$G$152,1)+36 -> 40 | D47: =INDEX(BFnames,MATCH(B47,Lookups!A$2:A$145,0),2) -> Dylan Perry | G47: =INDEX(BFnames,MATCH(B47,Lookups!A$2:A$145,0),4) -> 177 | H47: =IF(G47<>"Scr",1/G47,"") -> 0.005649717514 | I47: =IF(H47<>"",+H47/$H$153,0) -> 0.005113690521 | J47: =(1-I47)*I47/(1-I47/92) -> 0.005087823489 | K47: =IF(J47<>"",+J47/$J$153,0) -> 0.005311044296 | L47: =(1-I47-K47)*(I47+K47)/(1-(I47+K47)/92) -> 0.01031722879 | M47: =IF(L47<>"",+L47/$L$153,0) -> 0.005614669554 | N47: =(1-I47-K47-M47)*(I47+K47+M47)/(1-(I47+K47+M47)/92) -> 0.01578489384 | O47: =IF(N47<>"",+N47/$N$153,0) -> 0.005954126845 | P47: =(1-I47-K47-M47-O47)*(I47+K47+M47+O47)/(1-(I47+K47+M47+O47)/92) -> 0.02151495917 | Q47: =IF(P47<>"",+P47/$P$153,0) -> 0.006307139578 | R47: =+I$7*I47+K$7*K47+M$7*M47+O$7*O47+Q$7*Q47 -> 0.005389482536 | U47: =ROUND(+$R47*U$6,0) -> 151 | X47: =ROUND(+$R47*X$6,0) -> 172 | AA47: =ROUND(+$R47*AA$6,0) -> 194 | AD47: =ROUND(+$R47*AD$6,0) -> 103
A48: 4D | B48: 122 | C48: =RANK($G48,$G$44:$G$152,1)+36 -> 41 | D48: =INDEX(BFnames,MATCH(B48,Lookups!A$2:A$145,0),2) -> Aron Price | G48: =INDEX(BFnames,MATCH(B48,Lookups!A$2:A$145,0),4) -> 184 | H48: =IF(G48<>"Scr",1/G48,"") -> 0.005434782609 | I48: =IF(H48<>"",+H48/$H$153,0) -> 0.004919147947 | J48: =(1-I48)*I48/(1-I48/92) -> 0.004895211672 | K48: =IF(J48<>"",+J48/$J$153,0) -> 0.005109981917 | L48: =(1-I48-K48)*(I48+K48)/(1-(I48+K48)/92) -> 0.009929628869 | M48: =IF(L48<>"",+L48/$L$153,0) -> 0.005403736413 | N48: =(1-I48-K48-M48)*(I48+K48+M48)/(1-(I48+K48+M48)/92) -> 0.01519724223 | O48: =IF(N48<>"",+N48/$N$153,0) -> 0.005732462243 | P48: =(1-I48-K48-M48-O48)*(I48+K48+M48+O48)/(1-(I48+K48+M48+O48)/92) -> 0.02072212468 | Q48: =IF(P48<>"",+P48/$P$153,0) -> 0.006074719067 | R48: =+I$7*I48+K$7*K48+M$7*M48+O$7*O48+Q$7*Q48 -> 0.005185998557 | U48: =ROUND(+$R48*U$6,0) -> 145 | X48: =ROUND(+$R48*X$6,0) -> 166 | AA48: =ROUND(+$R48*AA$6,0) -> 187 | AD48: =ROUND(+$R48*AD$6,0) -> 99
A49: 4B | B49: 76 | C49: =RANK($G49,$G$44:$G$152,1)+36 -> 42 | D49: =INDEX(BFnames,MATCH(B49,Lookups!A$2:A$145,0),2) -> Jake Higginbottom | G49: =INDEX(BFnames,MATCH(B49,Lookups!A$2:A$145,0),4) -> 203.4782609 | H49: =IF(G49<>"Scr",1/G49,"") -> 0.004914529915 | I49: =IF(H49<>"",+H49/$H$153,0) -> 0.004448255152 | J49: =(1-I49)*I49/(1-I49/92) -> 0.004428682307 | K49: =IF(J49<>"",+J49/$J$153,0) -> 0.004622984259 | L49: =(1-I49-K49)*(I49+K49)/(1-(I49+K49)/92) -> 0.008989838428 | M49: =IF(L49<>"",+L49/$L$153,0) -> 0.00489229939 | N49: =(1-I49-K49-M49)*(I49+K49+M49)/(1-(I49+K49+M49)/92) -> 0.01377064846 | O49: =IF(N49<>"",+N49/$N$153,0) -> 0.005194345209 | P49: =(1-I49-K49-M49-O49)*(I49+K49+M49+O49)/(1-(I49+K49+M49+O49)/92) -> 0.01879477327 | Q49: =IF(P49<>"",+P49/$P$153,0) -> 0.005509713379 | R49: =+I$7*I49+K$7*K49+M$7*M49+O$7*O49+Q$7*Q49 -> 0.00469295886 | U49: =ROUND(+$R49*U$6,0) -> 131 | X49: =ROUND(+$R49*X$6,0) -> 150 | AA49: =ROUND(+$R49*AA$6,0) -> 169 | AD49: =ROUND(+$R49*AD$6,0) -> 90
A50: 4A | B50: 37 | C50: =RANK($G50,$G$44:$G$152,1)+36 -> 43 | D50: =INDEX(BFnames,MATCH(B50,Lookups!A$2:A$145,0),2) -> Jamie Arnold | G50: =INDEX(BFnames,MATCH(B50,Lookups!A$2:A$145,0),4) -> 208.5714286 | H50: =IF(G50<>"Scr",1/G50,"") -> 0.004794520548 | I50: =IF(H50<>"",+H50/$H$153,0) -> 0.004339631887 | J50: =(1-I50)*I50/(1-I50/92) -> 0.004321003303 | K50: =IF(J50<>"",+J50/$J$153,0) -> 0.004510580997 | L50: =(1-I50-K50)*(I50+K50)/(1-(I50+K50)/92) -> 0.008772730535 | M50: =IF(L50<>"",+L50/$L$153,0) -> 0.004774148566 | N50: =(1-I50-K50-M50)*(I50+K50+M50)/(1-(I50+K50+M50)/92) -> 0.01344072867 | O50: =IF(N50<>"",+N50/$N$153,0) -> 0.00506989811 | P50: =(1-I50-K50-M50-O50)*(I50+K50+M50+O50)/(1-(I50+K50+M50+O50)/92) -> 0.01834851261 | Q50: =IF(P50<>"",+P50/$P$153,0) -> 0.005378891457 | R50: =+I$7*I50+K$7*K50+M$7*M50+O$7*O50+Q$7*Q50 -> 0.004579125456 | U50: =ROUND(+$R50*U$6,0) -> 128 | X50: =ROUND(+$R50*X$6,0) -> 147 | AA50: =ROUND(+$R50*AA$6,0) -> 165 | AD50: =ROUND(+$R50*AD$6,0) -> 87
A51: 4D | B51: 120 | C51: =RANK($G51,$G$44:$G$152,1)+36 -> 44 | D51: =INDEX(BFnames,MATCH(B51,Lookups!A$2:A$145,0),2) -> Blake Proverbs | G51: =INDEX(BFnames,MATCH(B51,Lookups!A$2:A$145,0),4) -> 237.5555556 | H51: =IF(G51<>"Scr",1/G51,"") -> 0.004209541628 | I51: =IF(H51<>"",+H51/$H$153,0) -> 0.003810153882 | J51: =(1-I51)*I51/(1-I51/92) -> 0.003795793811 | K51: =IF(J51<>"",+J51/$J$153,0) -> 0.003962328707 | L51: =(1-I51-K51)*(I51+K51)/(1-(I51+K51)/92) -> 0.007712722701 | M51: =IF(L51<>"",+L51/$L$153,0) -> 0.004197288846 | N51: =(1-I51-K51-M51)*(I51+K51+M51)/(1-(I51+K51+M51)/92) -> 0.01182803491 | O51: =IF(N51<>"",+N51/$N$153,0) -> 0.004461583391 | P51: =(1-I51-K51-M51-O51)*(I51+K51+M51+O51)/(1-(I51+K51+M51+O51)/92) -> 0.01616425237 | Q51: =IF(P51<>"",+P51/$P$153,0) -> 0.004738572593 | R51: =+I$7*I51+K$7*K51+M$7*M51+O$7*O51+Q$7*Q51 -> 0.004023705723 | U51: =ROUND(+$R51*U$6,0) -> 113 | X51: =ROUND(+$R51*X$6,0) -> 129 | AA51: =ROUND(+$R51*AA$6,0) -> 145 | AD51: =ROUND(+$R51*AD$6,0) -> 77
A52: 4A | B52: 45 | C52: =RANK($G52,$G$44:$G$152,1)+36 -> 45 | D52: =INDEX(BFnames,MATCH(B52,Lookups!A$2:A$145,0),2) -> Mark Brown | G52: =INDEX(BFnames,MATCH(B52,Lookups!A$2:A$145,0),4) -> 239.5121951 | H52: =IF(G52<>"Scr",1/G52,"") -> 0.004175152749 | I52: =IF(H52<>"",+H52/$H$153,0) -> 0.00377902771 | J52: =(1-I52)*I52/(1-I52/92) -> 0.003764901308 | K52: =IF(J52<>"",+J52/$J$153,0) -> 0.00393008084 | L52: =(1-I52-K52)*(I52+K52)/(1-(I52+K52)/92) -> 0.007650319251 | M52: =IF(L52<>"",+L52/$L$153,0) -> 0.004163328685 | N52: =(1-I52-K52-M52)*(I52+K52+M52)/(1-(I52+K52+M52)/92) -> 0.01173299659 | O52: =IF(N52<>"",+N52/$N$153,0) -> 0.004425734548 | P52: =(1-I52-K52-M52-O52)*(I52+K52+M52+O52)/(1-(I52+K52+M52+O52)/92) -> 0.01603538211 | Q52: =IF(P52<>"",+P52/$P$153,0) -> 0.004700794102 | R52: =+I$7*I52+K$7*K52+M$7*M52+O$7*O52+Q$7*Q52 -> 0.003991026338 | U52: =ROUND(+$R52*U$6,0) -> 112 | X52: =ROUND(+$R52*X$6,0) -> 128 | AA52: =ROUND(+$R52*AA$6,0) -> 144 | AD52: =ROUND(+$R52*AD$6,0) -> 76
A53: 4C | B53: 107 | C53: =RANK($G53,$G$44:$G$152,1)+36 -> 46 | D53: =INDEX(BFnames,MATCH(B53,Lookups!A$2:A$145,0),2) -> Jason Norris | G53: =INDEX(BFnames,MATCH(B53,Lookups!A$2:A$145,0),4) -> 243.4375 | H53: =IF(G53<>"Scr",1/G53,"") -> 0.004107830552 | I53: =IF(H53<>"",+H53/$H$153,0) -> 0.003718092825 | J53: =(1-I53)*I53/(1-I53/92) -> 0.003704418322 | K53: =IF(J53<>"",+J53/$J$153,0) -> 0.003866944252 | L53: =(1-I53-K53)*(I53+K53)/(1-(I53+K53)/92) -> 0.007528124954 | M53: =IF(L53<>"",+L53/$L$153,0) -> 0.00409683015 | N53: =(1-I53-K53-M53)*(I53+K53+M53)/(1-(I53+K53+M53)/92) -> 0.01154686739 | O53: =IF(N53<>"",+N53/$N$153,0) -> 0.004355525847 | P53: =(1-I53-K53-M53-O53)*(I53+K53+M53+O53)/(1-(I53+K53+M53+O53)/92) -> 0.01578294637 | Q53: =IF(P53<>"",+P53/$P$153,0) -> 0.004626792221 | R53: =+I$7*I53+K$7*K53+M$7*M53+O$7*O53+Q$7*Q53 -> 0.0039270417 | U53: =ROUND(+$R53*U$6,0) -> 110 | X53: =ROUND(+$R53*X$6,0) -> 126 | AA53: =ROUND(+$R53*AA$6,0) -> 141 | AD53: =ROUND(+$R53*AD$6,0) -> 75
A54: 4A | B54: 58 | C54: =RANK($G54,$G$44:$G$152,1)+36 -> 47 | D54: =INDEX(BFnames,MATCH(B54,Lookups!A$2:A$145,0),2) -> Ryan Chisnall | G54: =INDEX(BFnames,MATCH(B54,Lookups!A$2:A$145,0),4) -> 255 | H54: =IF(G54<>"Scr",1/G54,"") -> 0.003921568627 | I54: =IF(H54<>"",+H54/$H$153,0) -> 0.003549502832 | J54: =(1-I54)*I54/(1-I54/92) -> 0.003537040326 | K54: =IF(J54<>"",+J54/$J$153,0) -> 0.003692222792 | L54: =(1-I54-K54)*(I54+K54)/(1-(I54+K54)/92) -> 0.007189848978 | M54: =IF(L54<>"",+L54/$L$153,0) -> 0.003912739261 | N54: =(1-I54-K54-M54)*(I54+K54+M54)/(1-(I54+K54+M54)/92) -> 0.01103138029 | O54: =IF(N54<>"",+N54/$N$153,0) -> 0.004161081994 | P54: =(1-I54-K54-M54-O54)*(I54+K54+M54+O54)/(1-(I54+K54+M54+O54)/92) -> 0.0150834919 | Q54: =IF(P54<>"",+P54/$P$153,0) -> 0.004421746191 | R54: =+I$7*I54+K$7*K54+M$7*M54+O$7*O54+Q$7*Q54 -> 0.003749951282 | U54: =ROUND(+$R54*U$6,0) -> 105 | X54: =ROUND(+$R54*X$6,0) -> 120 | AA54: =ROUND(+$R54*AA$6,0) -> 135 | AD54: =ROUND(+$R54*AD$6,0) -> 72
A55: 4B | B55: 87 | C55: =RANK($G55,$G$44:$G$152,1)+36 -> 48 | D55: =INDEX(BFnames,MATCH(B55,Lookups!A$2:A$145,0),2) -> Takumi Kanaya | G55: =INDEX(BFnames,MATCH(B55,Lookups!A$2:A$145,0),4) -> 258 | H55: =IF(G55<>"Scr",1/G55,"") -> 0.003875968992 | I55: =IF(H55<>"",+H55/$H$153,0) -> 0.003508229543 | J55: =(1-I55)*I55/(1-I55/92) -> 0.003496055184 | K55: =IF(J55<>"",+J55/$J$153,0) -> 0.003649439486 | L55: =(1-I55-K55)*(I55+K55)/(1-(I55+K55)/92) -> 0.007106989732 | M55: =IF(L55<>"",+L55/$L$153,0) -> 0.00386764699 | N55: =(1-I55-K55-M55)*(I55+K55+M55)/(1-(I55+K55+M55)/92) -> 0.01090506529 | O55: =IF(N55<>"",+N55/$N$153,0) -> 0.004113435458 | P55: =(1-I55-K55-M55-O55)*(I55+K55+M55+O55)/(1-(I55+K55+M55+O55)/92) -> 0.01491202348 | Q55: =IF(P55<>"",+P55/$P$153,0) -> 0.004371479989 | R55: =+I$7*I55+K$7*K55+M$7*M55+O$7*O55+Q$7*Q55 -> 0.003706582947 | U55: =ROUND(+$R55*U$6,0) -> 104 | X55: =ROUND(+$R55*X$6,0) -> 119 | AA55: =ROUND(+$R55*AA$6,0) -> 133 | AD55: =ROUND(+$R55*AD$6,0) -> 71
A56: 4C | B56: 112 | C56: =RANK($G56,$G$44:$G$152,1)+36 -> 49 | D56: =INDEX(BFnames,MATCH(B56,Lookups!A$2:A$145,0),2) -> Callan OReilly | G56: =INDEX(BFnames,MATCH(B56,Lookups!A$2:A$145,0),4) -> 259 | H56: =IF(G56<>"Scr",1/G56,"") -> 0.003861003861 | I56: =IF(H56<>"",+H56/$H$153,0) -> 0.003494684255 | J56: =(1-I56)*I56/(1-I56/92) -> 0.003482603727 | K56: =IF(J56<>"",+J56/$J$153,0) -> 0.003635397866 | L56: =(1-I56-K56)*(I56+K56)/(1-(I56+K56)/92) -> 0.007079792741 | M56: =IF(L56<>"",+L56/$L$153,0) -> 0.003852846298 | N56: =(1-I56-K56-M56)*(I56+K56+M56)/(1-(I56+K56+M56)/92) -> 0.0108636006 | O56: =IF(N56<>"",+N56/$N$153,0) -> 0.004097794804 | P56: =(1-I56-K56-M56-O56)*(I56+K56+M56+O56)/(1-(I56+K56+M56+O56)/92) -> 0.01485573017 | Q56: =IF(P56<>"",+P56/$P$153,0) -> 0.00435497753 | R56: =+I$7*I56+K$7*K56+M$7*M56+O$7*O56+Q$7*Q56 -> 0.003692348894 | U56: =ROUND(+$R56*U$6,0) -> 103 | X56: =ROUND(+$R56*X$6,0) -> 118 | AA56: =ROUND(+$R56*AA$6,0) -> 133 | AD56: =ROUND(+$R56*AD$6,0) -> 70
A57: 4B | B57: 69 | C57: =RANK($G57,$G$44:$G$152,1)+36 -> 50 | D57: =INDEX(BFnames,MATCH(B57,Lookups!A$2:A$145,0),2) -> Peter Fowler | G57: =INDEX(BFnames,MATCH(B57,Lookups!A$2:A$145,0),4) -> 269 | H57: =IF(G57<>"Scr",1/G57,"") -> 0.003717472119 | I57: =IF(H57<>"",+H57/$H$153,0) -> 0.003364770343 | J57: =(1-I57)*I57/(1-I57/92) -> 0.003353571315 | K57: =IF(J57<>"",+J57/$J$153,0) -> 0.003500704347 | L57: =(1-I57-K57)*(I57+K57)/(1-(I57+K57)/92) -> 0.006818848801 | M57: =IF(L57<>"",+L57/$L$153,0) -> 0.003710839755 | N57: =(1-I57-K57-M57)*(I57+K57+M57)/(1-(I57+K57+M57)/92) -> 0.01046565915 | O57: =IF(N57<>"",+N57/$N$153,0) -> 0.003947689654 | P57: =(1-I57-K57-M57-O57)*(I57+K57+M57+O57)/(1-(I57+K57+M57+O57)/92) -> 0.01431531736 | Q57: =IF(P57<>"",+P57/$P$153,0) -> 0.004196554777 | R57: =+I$7*I57+K$7*K57+M$7*M57+O$7*O57+Q$7*Q57 -> 0.003555798794 | U57: =ROUND(+$R57*U$6,0) -> 100 | X57: =ROUND(+$R57*X$6,0) -> 114 | AA57: =ROUND(+$R57*AA$6,0) -> 128 | AD57: =ROUND(+$R57*AD$6,0) -> 68
A58: 4C | B58: 102 | C58: =RANK($G58,$G$44:$G$152,1)+36 -> 51 | D58: =INDEX(BFnames,MATCH(B58,Lookups!A$2:A$145,0),2) -> David McKenzie | G58: =INDEX(BFnames,MATCH(B58,Lookups!A$2:A$145,0),4) -> 271.8333333 | H58: =IF(G58<>"Scr",1/G58,"") -> 0.003678724709 | I58: =IF(H58<>"",+H58/$H$153,0) -> 0.003329699162 | J58: =(1-I58)*I58/(1-I58/92) -> 0.003318732378 | K58: =IF(J58<>"",+J58/$J$153,0) -> 0.003464336902 | L58: =(1-I58-K58)*(I58+K58)/(1-(I58+K58)/92) -> 0.006748375493 | M58: =IF(L58<>"",+L58/$L$153,0) -> 0.003672487951 | N58: =(1-I58-K58-M58)*(I58+K58+M58)/(1-(I58+K58+M58)/92) -> 0.0103581543 | O58: =IF(N58<>"",+N58/$N$153,0) -> 0.003907138384 | P58: =(1-I58-K58-M58-O58)*(I58+K58+M58+O58)/(1-(I58+K58+M58+O58)/92) -> 0.01416927397 | Q58: =IF(P58<>"",+P58/$P$153,0) -> 0.004153741959 | R58: =+I$7*I58+K$7*K58+M$7*M58+O$7*O58+Q$7*Q58 -> 0.003518926754 | U58: =ROUND(+$R58*U$6,0) -> 99 | X58: =ROUND(+$R58*X$6,0) -> 113 | AA58: =ROUND(+$R58*AA$6,0) -> 127 | AD58: =ROUND(+$R58*AD$6,0) -> 67
A59: 4C | B59: 98 | C59: =RANK($G59,$G$44:$G$152,1)+36 -> 52 | D59: =INDEX(BFnames,MATCH(B59,Lookups!A$2:A$145,0),2) -> Jordan Mullaney | G59: =INDEX(BFnames,MATCH(B59,Lookups!A$2:A$145,0),4) -> 277 | H59: =IF(G59<>"Scr",1/G59,"") -> 0.003610108303 | I59: =IF(H59<>"",+H59/$H$153,0) -> 0.00326759286 | J59: =(1-I59)*I59/(1-I59/92) -> 0.003257031378 | K59: =IF(J59<>"",+J59/$J$153,0) -> 0.003399928861 | L59: =(1-I59-K59)*(I59+K59)/(1-(I59+K59)/92) -> 0.006623545903 | M59: =IF(L59<>"",+L59/$L$153,0) -> 0.003604555281 | N59: =(1-I59-K59-M59)*(I59+K59+M59)/(1-(I59+K59+M59)/92) -> 0.01016769669 | O59: =IF(N59<>"",+N59/$N$153,0) -> 0.00383529699 | P59: =(1-I59-K59-M59-O59)*(I59+K59+M59+O59)/(1-(I59+K59+M59+O59)/92) -> 0.01391048904 | Q59: =IF(P59<>"",+P59/$P$153,0) -> 0.004077878804 | R59: =+I$7*I59+K$7*K59+M$7*M59+O$7*O59+Q$7*Q59 -> 0.003453621594 | U59: =ROUND(+$R59*U$6,0) -> 97 | X59: =ROUND(+$R59*X$6,0) -> 111 | AA59: =ROUND(+$R59*AA$6,0) -> 124 | AD59: =ROUND(+$R59*AD$6,0) -> 66
A60: 4B | B60: 80 | C60: =RANK($G60,$G$44:$G$152,1)+36 -> 53 | D60: =INDEX(BFnames,MATCH(B60,Lookups!A$2:A$145,0),2) -> Daniel Hillier | G60: =INDEX(BFnames,MATCH(B60,Lookups!A$2:A$145,0),4) -> 280 | H60: =IF(G60<>"Scr",1/G60,"") -> 0.003571428571 | I60: =IF(H60<>"",+H60/$H$153,0) -> 0.003232582936 | J60: =(1-I60)*I60/(1-I60/92) -> 0.003222246563 | K60: =IF(J60<>"",+J60/$J$153,0) -> 0.003363617913 | L60: =(1-I60-K60)*(I60+K60)/(1-(I60+K60)/92) -> 0.006553160831 | M60: =IF(L60<>"",+L60/$L$153,0) -> 0.003566251495 | N60: =(1-I60-K60-M60)*(I60+K60+M60)/(1-(I60+K60+M60)/92) -> 0.01006028818 | O60: =IF(N60<>"",+N60/$N$153,0) -> 0.003794782059 | P60: =(1-I60-K60-M60-O60)*(I60+K60+M60+O60)/(1-(I60+K60+M60+O60)/92) -> 0.01376451821 | Q60: =IF(P60<>"",+P60/$P$153,0) -> 0.004035087258 | R60: =+I$7*I60+K$7*K60+M$7*M60+O$7*O60+Q$7*Q60 -> 0.003416802932 | U60: =ROUND(+$R60*U$6,0) -> 96 | X60: =ROUND(+$R60*X$6,0) -> 109 | AA60: =ROUND(+$R60*AA$6,0) -> 123 | AD60: =ROUND(+$R60*AD$6,0) -> 65
A61: 4A | B61: 48 | C61: =RANK($G61,$G$44:$G$152,1)+36 -> 54 | D61: =INDEX(BFnames,MATCH(B61,Lookups!A$2:A$145,0),2) -> Zach Bauchou | G61: =INDEX(BFnames,MATCH(B61,Lookups!A$2:A$145,0),4) -> 297 | H61: =IF(G61<>"Scr",1/G61,"") -> 0.003367003367 | I61: =IF(H61<>"",+H61/$H$153,0) -> 0.003047552937 | J61: =(1-I61)*I61/(1-I61/92) -> 0.003038366005 | K61: =IF(J61<>"",+J61/$J$153,0) -> 0.003171669865 | L61: =(1-I61-K61)*(I61+K61)/(1-(I61+K61)/92) -> 0.006180961904 | M61: =IF(L61<>"",+L61/$L$153,0) -> 0.003363699625 | N61: =(1-I61-K61-M61)*(I61+K61+M61)/(1-(I61+K61+M61)/92) -> 0.009492078741 | O61: =IF(N61<>"",+N61/$N$153,0) -> 0.003580451122 | P61: =(1-I61-K61-M61-O61)*(I61+K61+M61+O61)/(1-(I61+K61+M61+O61)/92) -> 0.01299195804 | Q61: =IF(P61<>"",+P61/$P$153,0) -> 0.00380861019 | R61: =+I$7*I61+K$7*K61+M$7*M61+O$7*O61+Q$7*Q61 -> 0.003222147597 | U61: =ROUND(+$R61*U$6,0) -> 90 | X61: =ROUND(+$R61*X$6,0) -> 103 | AA61: =ROUND(+$R61*AA$6,0) -> 116 | AD61: =ROUND(+$R61*AD$6,0) -> 61
A62: 4B | B62: 86 | C62: =RANK($G62,$G$44:$G$152,1)+36 -> 55 | D62: =INDEX(BFnames,MATCH(B62,Lookups!A$2:A$145,0),2) -> Rick Kulacz | G62: =INDEX(BFnames,MATCH(B62,Lookups!A$2:A$145,0),4) -> 303 | H62: =IF(G62<>"Scr",1/G62,"") -> 0.003300330033 | I62: =IF(H62<>"",+H62/$H$153,0) -> 0.002987205354 | J62: =(1-I62)*I62/(1-I62/92) -> 0.002978378665 | K62: =IF(J62<>"",+J62/$J$153,0) -> 0.003109050668 | L62: =(1-I62-K62)*(I62+K62)/(1-(I62+K62)/92) -> 0.006059493208 | M62: =IF(L62<>"",+L62/$L$153,0) -> 0.003297595965 | N62: =(1-I62-K62-M62)*(I62+K62+M62)/(1-(I62+K62+M62)/92) -> 0.009306557797 | O62: =IF(N62<>"",+N62/$N$153,0) -> 0.003510471859 | P62: =(1-I62-K62-M62-O62)*(I62+K62+M62+O62)/(1-(I62+K62+M62+O62)/92) -> 0.01273958918 | Q62: =IF(P62<>"",+P62/$P$153,0) -> 0.003734627917 | R62: =+I$7*I62+K$7*K62+M$7*M62+O$7*O62+Q$7*Q62 -> 0.003158636685 | U62: =ROUND(+$R62*U$6,0) -> 88 | X62: =ROUND(+$R62*X$6,0) -> 101 | AA62: =ROUND(+$R62*AA$6,0) -> 114 | AD62: =ROUND(+$R62*AD$6,0) -> 60
A63: 4B | B63: 81 | C63: =RANK($G63,$G$44:$G$152,1)+36 -> 56 | D63: =INDEX(BFnames,MATCH(B63,Lookups!A$2:A$145,0),2) -> Tim Hart | G63: =INDEX(BFnames,MATCH(B63,Lookups!A$2:A$145,0),4) -> 305 | H63: =IF(G63<>"Scr",1/G63,"") -> 0.003278688525 | I63: =IF(H63<>"",+H63/$H$153,0) -> 0.002967617122 | J63: =(1-I63)*I63/(1-I63/92) -> 0.002958905815 | K63: =IF(J63<>"",+J63/$J$153,0) -> 0.003088723475 | L63: =(1-I63-K63)*(I63+K63)/(1-(I63+K63)/92) -> 0.006020057635 | M63: =IF(L63<>"",+L63/$L$153,0) -> 0.003276134997 | N63: =(1-I63-K63-M63)*(I63+K63+M63)/(1-(I63+K63+M63)/92) -> 0.00924631844 | O63: =IF(N63<>"",+N63/$N$153,0) -> 0.003487749326 | P63: =(1-I63-K63-M63-O63)*(I63+K63+M63+O63)/(1-(I63+K63+M63+O63)/92) -> 0.0126576306 | Q63: =IF(P63<>"",+P63/$P$153,0) -> 0.003710601646 | R63: =+I$7*I63+K$7*K63+M$7*M63+O$7*O63+Q$7*Q63 -> 0.003138019126 | U63: =ROUND(+$R63*U$6,0) -> 88 | X63: =ROUND(+$R63*X$6,0) -> 100 | AA63: =ROUND(+$R63*AA$6,0) -> 113 | AD63: =ROUND(+$R63*AD$6,0) -> 60
A64: 4D | B64: 141 | C64: =RANK($G64,$G$44:$G$152,1)+36 -> 57 | D64: =INDEX(BFnames,MATCH(B64,Lookups!A$2:A$145,0),2) -> Jack Wilson | G64: =INDEX(BFnames,MATCH(B64,Lookups!A$2:A$145,0),4) -> 305.2941176 | H64: =IF(G64<>"Scr",1/G64,"") -> 0.003275529865 | I64: =IF(H64<>"",+H64/$H$153,0) -> 0.002964758146 | J64: =(1-I64)*I64/(1-I64/92) -> 0.002956063616 | K64: =IF(J64<>"",+J64/$J$153,0) -> 0.003085756579 | L64: =(1-I64-K64)*(I64+K64)/(1-(I64+K64)/92) -> 0.006014301536 | M64: =IF(L64<>"",+L64/$L$153,0) -> 0.003273002509 | N64: =(1-I64-K64-M64)*(I64+K64+M64)/(1-(I64+K64+M64)/92) -> 0.009237525415 | O64: =IF(N64<>"",+N64/$N$153,0) -> 0.003484432561 | P64: =(1-I64-K64-M64-O64)*(I64+K64+M64+O64)/(1-(I64+K64+M64+O64)/92) -> 0.01264566671 | Q64: =IF(P64<>"",+P64/$P$153,0) -> 0.003707094415 | R64: =+I$7*I64+K$7*K64+M$7*M64+O$7*O64+Q$7*Q64 -> 0.003135009812 | U64: =ROUND(+$R64*U$6,0) -> 88 | X64: =ROUND(+$R64*X$6,0) -> 100 | AA64: =ROUND(+$R64*AA$6,0) -> 113 | AD64: =ROUND(+$R64*AD$6,0) -> 60
A65: 4D | B65: 138 | C65: =RANK($G65,$G$44:$G$152,1)+36 -> 58 | D65: =INDEX(BFnames,MATCH(B65,Lookups!A$2:A$145,0),2) -> Peter Wilson | G65: =INDEX(BFnames,MATCH(B65,Lookups!A$2:A$145,0),4) -> 307 | H65: =IF(G65<>"Scr",1/G65,"") -> 0.00325732899 | I65: =IF(H65<>"",+H65/$H$153,0) -> 0.002948284111 | J65: =(1-I65)*I65/(1-I65/92) -> 0.002939685939 | K65: =IF(J65<>"",+J65/$J$153,0) -> 0.003068660355 | L65: =(1-I65-K65)*(I65+K65)/(1-(I65+K65)/92) -> 0.005981132021 | M65: =IF(L65<>"",+L65/$L$153,0) -> 0.003254951551 | N65: =(1-I65-K65-M65)*(I65+K65+M65)/(1-(I65+K65+M65)/92) -> 0.009186853827 | O65: =IF(N65<>"",+N65/$N$153,0) -> 0.00346531903 | P65: =(1-I65-K65-M65-O65)*(I65+K65+M65+O65)/(1-(I65+K65+M65+O65)/92) -> 0.01257671962 | Q65: =IF(P65<>"",+P65/$P$153,0) -> 0.003686882483 | R65: =+I$7*I65+K$7*K65+M$7*M65+O$7*O65+Q$7*Q65 -> 0.003117668979 | U65: =ROUND(+$R65*U$6,0) -> 87 | X65: =ROUND(+$R65*X$6,0) -> 100 | AA65: =ROUND(+$R65*AA$6,0) -> 112 | AD65: =ROUND(+$R65*AD$6,0) -> 59
A66: 4D | B66: 123 | C66: =RANK($G66,$G$44:$G$152,1)+36 -> 59 | D66: =INDEX(BFnames,MATCH(B66,Lookups!A$2:A$145,0),2) -> Terry Pilkadaris | G66: =INDEX(BFnames,MATCH(B66,Lookups!A$2:A$145,0),4) -> 308.5714286 | H66: =IF(G66<>"Scr",1/G66,"") -> 0.003240740741 | I66: =IF(H66<>"",+H66/$H$153,0) -> 0.002933269701 | J66: =(1-I66)*I66/(1-I66/92) -> 0.002924758881 | K66: =IF(J66<>"",+J66/$J$153,0) -> 0.003053078395 | L66: =(1-I66-K66)*(I66+K66)/(1-(I66+K66)/92) -> 0.005950898952 | M66: =IF(L66<>"",+L66/$L$153,0) -> 0.003238498617 | N66: =(1-I66-K66-M66)*(I66+K66+M66)/(1-(I66+K66+M66)/92) -> 0.009140665451 | O66: =IF(N66<>"",+N66/$N$153,0) -> 0.003447896585 | P66: =(1-I66-K66-M66-O66)*(I66+K66+M66+O66)/(1-(I66+K66+M66+O66)/92) -> 0.01251386863 | Q66: =IF(P66<>"",+P66/$P$153,0) -> 0.003668457628 | R66: =+I$7*I66+K$7*K66+M$7*M66+O$7*O66+Q$7*Q66 -> 0.003101863802 | U66: =ROUND(+$R66*U$6,0) -> 87 | X66: =ROUND(+$R66*X$6,0) -> 99 | AA66: =ROUND(+$R66*AA$6,0) -> 112 | AD66: =ROUND(+$R66*AD$6,0) -> 59
A67: 4A | B67: 46 | C67: =RANK($G67,$G$44:$G$152,1)+36 -> 60 | D67: =INDEX(BFnames,MATCH(B67,Lookups!A$2:A$145,0),2) -> Adam Blyth | G67: =INDEX(BFnames,MATCH(B67,Lookups!A$2:A$145,0),4) -> 309 | H67: =IF(G67<>"Scr",1/G67,"") -> 0.003236245955 | I67: =IF(H67<>"",+H67/$H$153,0) -> 0.002929201366 | J67: =(1-I67)*I67/(1-I67/92) -> 0.002920714139 | K67: =IF(J67<>"",+J67/$J$153,0) -> 0.003048856195 | L67: =(1-I67-K67)*(I67+K67)/(1-(I67+K67)/92) -> 0.00594270654 | M67: =IF(L67<>"",+L67/$L$153,0) -> 0.003234040279 | N67: =(1-I67-K67-M67)*(I67+K67+M67)/(1-(I67+K67+M67)/92) -> 0.009128149109 | O67: =IF(N67<>"",+N67/$N$153,0) -> 0.003443175369 | P67: =(1-I67-K67-M67-O67)*(I67+K67+M67+O67)/(1-(I67+K67+M67+O67)/92) -> 0.0124968363 | Q67: =IF(P67<>"",+P67/$P$153,0) -> 0.003663464579 | R67: =+I$7*I67+K$7*K67+M$7*M67+O$7*O67+Q$7*Q67 -> 0.003097581073 | U67: =ROUND(+$R67*U$6,0) -> 87 | X67: =ROUND(+$R67*X$6,0) -> 99 | AA67: =ROUND(+$R67*AA$6,0) -> 112 | AD67: =ROUND(+$R67*AD$6,0) -> 59
A68: 4D | B68: 140 | C68: =RANK($G68,$G$44:$G$152,1)+36 -> 61 | D68: =INDEX(BFnames,MATCH(B68,Lookups!A$2:A$145,0),2) -> Shae Wools Cobb | G68: =INDEX(BFnames,MATCH(B68,Lookups!A$2:A$145,0),4) -> 318 | H68: =IF(G68<>"Scr",1/G68,"") -> 0.003144654088 | I68: =IF(H68<>"",+H68/$H$153,0) -> 0.002846299441 | J68: =(1-I68)*I68/(1-I68/92) -> 0.002838285831 | K68: =IF(J68<>"",+J68/$J$153,0) -> 0.002962811466 | L68: =(1-I68-K68)*(I68+K68)/(1-(I68+K68)/92) -> 0.005775729832 | M68: =IF(L68<>"",+L68/$L$153,0) -> 0.00314317101 | N68: =(1-I68-K68-M68)*(I68+K68+M68)/(1-(I68+K68+M68)/92) -> 0.008873001975 | O68: =IF(N68<>"",+N68/$N$153,0) -> 0.003346932821 | P68: =(1-I68-K68-M68-O68)*(I68+K68+M68+O68)/(1-(I68+K68+M68+O68)/92) -> 0.0121495683 | Q68: =IF(P68<>"",+P68/$P$153,0) -> 0.00356166249 | R68: =+I$7*I68+K$7*K68+M$7*M68+O$7*O68+Q$7*Q68 -> 0.003010298662 | U68: =ROUND(+$R68*U$6,0) -> 84 | X68: =ROUND(+$R68*X$6,0) -> 96 | AA68: =ROUND(+$R68*AA$6,0) -> 108 | AD68: =ROUND(+$R68*AD$6,0) -> 57
A69: 4D | B69: 144 | C69: =RANK($G69,$G$44:$G$152,1)+36 -> 62 | D69: =INDEX(BFnames,MATCH(B69,Lookups!A$2:A$145,0),2) -> Josh Younger | G69: =INDEX(BFnames,MATCH(B69,Lookups!A$2:A$145,0),4) -> 323.2432432 | H69: =IF(G69<>"Scr",1/G69,"") -> 0.003093645485 | I69: =IF(H69<>"",+H69/$H$153,0) -> 0.00280013037 | J69: =(1-I69)*I69/(1-I69/92) -> 0.002792374629 | K69: =IF(J69<>"",+J69/$J$153,0) -> 0.002914885977 | L69: =(1-I69-K69)*(I69+K69)/(1-(I69+K69)/92) -> 0.005682707943 | M69: =IF(L69<>"",+L69/$L$153,0) -> 0.003092548195 | N69: =(1-I69-K69-M69)*(I69+K69+M69)/(1-(I69+K69+M69)/92) -> 0.008730827189 | O69: =IF(N69<>"",+N69/$N$153,0) -> 0.003293303907 | P69: =(1-I69-K69-M69-O69)*(I69+K69+M69+O69)/(1-(I69+K69+M69+O69)/92) -> 0.01195601002 | Q69: =IF(P69<>"",+P69/$P$153,0) -> 0.003504920618 | R69: =+I$7*I69+K$7*K69+M$7*M69+O$7*O69+Q$7*Q69 -> 0.002961680367 | U69: =ROUND(+$R69*U$6,0) -> 83 | X69: =ROUND(+$R69*X$6,0) -> 95 | AA69: =ROUND(+$R69*AA$6,0) -> 107 | AD69: =ROUND(+$R69*AD$6,0) -> 56
A70: 4A | B70: 42 | C70: =RANK($G70,$G$44:$G$152,1)+36 -> 63 | D70: =INDEX(BFnames,MATCH(B70,Lookups!A$2:A$145,0),2) -> Dawson Armstrong | G70: =INDEX(BFnames,MATCH(B70,Lookups!A$2:A$145,0),4) -> 327 | H70: =IF(G70<>"Scr",1/G70,"") -> 0.003058103976 | I70: =IF(H70<>"",+H70/$H$153,0) -> 0.002767960924 | J70: =(1-I70)*I70/(1-I70/92) -> 0.002760382367 | K70: =IF(J70<>"",+J70/$J$153,0) -> 0.002881490101 | L70: =(1-I70-K70)*(I70+K70)/(1-(I70+K70)/92) -> 0.005617879706 | M70: =IF(L70<>"",+L70/$L$153,0) -> 0.003057268457 | N70: =(1-I70-K70-M70)*(I70+K70+M70)/(1-(I70+K70+M70)/92) -> 0.00863172941 | O70: =IF(N70<>"",+N70/$N$153,0) -> 0.003255923818 | P70: =(1-I70-K70-M70-O70)*(I70+K70+M70+O70)/(1-(I70+K70+M70+O70)/92) -> 0.01182107554 | Q70: =IF(P70<>"",+P70/$P$153,0) -> 0.003465364393 | R70: =+I$7*I70+K$7*K70+M$7*M70+O$7*O70+Q$7*Q70 -> 0.00292780027 | U70: =ROUND(+$R70*U$6,0) -> 82 | X70: =ROUND(+$R70*X$6,0) -> 94 | AA70: =ROUND(+$R70*AA$6,0) -> 105 | AD70: =ROUND(+$R70*AD$6,0) -> 56
A71: 4B | B71: 74 | C71: =RANK($G71,$G$44:$G$152,1)+36 -> 64 | D71: =INDEX(BFnames,MATCH(B71,Lookups!A$2:A$145,0),2) -> Daniel Gale | G71: =INDEX(BFnames,MATCH(B71,Lookups!A$2:A$145,0),4) -> 336.3636364 | H71: =IF(G71<>"Scr",1/G71,"") -> 0.002972972973 | I71: =IF(H71<>"",+H71/$H$153,0) -> 0.002690906877 | J71: =(1-I71)*I71/(1-I71/92) -> 0.002683744394 | K71: =IF(J71<>"",+J71/$J$153,0) -> 0.00280148975 | L71: =(1-I71-K71)*(I71+K71)/(1-(I71+K71)/92) -> 0.00546255632 | M71: =IF(L71<>"",+L71/$L$153,0) -> 0.002972740964 | N71: =(1-I71-K71-M71)*(I71+K71+M71)/(1-(I71+K71+M71)/92) -> 0.00839425141 | O71: =IF(N71<>"",+N71/$N$153,0) -> 0.00316634614 | P71: =(1-I71-K71-M71-O71)*(I71+K71+M71+O71)/(1-(I71+K71+M71+O71)/92) -> 0.01149764595 | Q71: =IF(P71<>"",+P71/$P$153,0) -> 0.003370550568 | R71: =+I$7*I71+K$7*K71+M$7*M71+O$7*O71+Q$7*Q71 -> 0.002846635099 | U71: =ROUND(+$R71*U$6,0) -> 80 | X71: =ROUND(+$R71*X$6,0) -> 91 | AA71: =ROUND(+$R71*AA$6,0) -> 102 | AD71: =ROUND(+$R71*AD$6,0) -> 54
A72: 4B | B72: 82 | C72: =RANK($G72,$G$44:$G$152,1)+36 -> 65 | D72: =INDEX(BFnames,MATCH(B72,Lookups!A$2:A$145,0),2) -> Mark Hensby | G72: =INDEX(BFnames,MATCH(B72,Lookups!A$2:A$145,0),4) -> 348 | H72: =IF(G72<>"Scr",1/G72,"") -> 0.002873563218 | I72: =IF(H72<>"",+H72/$H$153,0) -> 0.002600928799 | J72: =(1-I72)*I72/(1-I72/92) -> 0.00259423731 | K72: =IF(J72<>"",+J72/$J$153,0) -> 0.002708055674 | L72: =(1-I72-K72)*(I72+K72)/(1-(I72+K72)/92) -> 0.00528110391 | M72: =IF(L72<>"",+L72/$L$153,0) -> 0.002873993971 | N72: =(1-I72-K72-M72)*(I72+K72+M72)/(1-(I72+K72+M72)/92) -> 0.008116739254 | O72: =IF(N72<>"",+N72/$N$153,0) -> 0.003061667414 | P72: =(1-I72-K72-M72-O72)*(I72+K72+M72+O72)/(1-(I72+K72+M72+O72)/92) -> 0.01111956288 | Q72: =IF(P72<>"",+P72/$P$153,0) -> 0.003259715 | R72: =+I$7*I72+K$7*K72+M$7*M72+O$7*O72+Q$7*Q72 -> 0.002751831923 | U72: =ROUND(+$R72*U$6,0) -> 77 | X72: =ROUND(+$R72*X$6,0) -> 88 | AA72: =ROUND(+$R72*AA$6,0) -> 99 | AD72: =ROUND(+$R72*AD$6,0) -> 52
A73: 4C | B73: 109 | C73: =RANK($G73,$G$44:$G$152,1)+36 -> 66 | D73: =INDEX(BFnames,MATCH(B73,Lookups!A$2:A$145,0),2) -> Keita Nakajima | G73: =INDEX(BFnames,MATCH(B73,Lookups!A$2:A$145,0),4) -> 349 | H73: =IF(G73<>"Scr",1/G73,"") -> 0.002865329513 | I73: =IF(H73<>"",+H73/$H$153,0) -> 0.002593476281 | J73: =(1-I73)*I73/(1-I73/92) -> 0.002586823084 | K73: =IF(J73<>"",+J73/$J$153,0) -> 0.00270031616 | L73: =(1-I73-K73)*(I73+K73)/(1-(I73+K73)/92) -> 0.005266071219 | M73: =IF(L73<>"",+L73/$L$153,0) -> 0.002865813131 | N73: =(1-I73-K73-M73)*(I73+K73+M73)/(1-(I73+K73+M73)/92) -> 0.008093744254 | O73: =IF(N73<>"",+N73/$N$153,0) -> 0.003052993605 | P73: =(1-I73-K73-M73-O73)*(I73+K73+M73+O73)/(1-(I73+K73+M73+O73)/92) -> 0.01108822819 | Q73: =IF(P73<>"",+P73/$P$153,0) -> 0.003250529192 | R73: =+I$7*I73+K$7*K73+M$7*M73+O$7*O73+Q$7*Q73 -> 0.002743978581 | U73: =ROUND(+$R73*U$6,0) -> 77 | X73: =ROUND(+$R73*X$6,0) -> 88 | AA73: =ROUND(+$R73*AA$6,0) -> 99 | AD73: =ROUND(+$R73*AD$6,0) -> 52
A74: 4C | B74: 95 | C74: =RANK($G74,$G$44:$G$152,1)+36 -> 67 | D74: =INDEX(BFnames,MATCH(B74,Lookups!A$2:A$145,0),2) -> Troy Moses | G74: =INDEX(BFnames,MATCH(B74,Lookups!A$2:A$145,0),4) -> 355 | H74: =IF(G74<>"Scr",1/G74,"") -> 0.002816901408 | I74: =IF(H74<>"",+H74/$H$153,0) -> 0.002549642879 | J74: =(1-I74)*I74/(1-I74/92) -> 0.002543212682 | K74: =IF(J74<>"",+J74/$J$153,0) -> 0.002654792415 | L74: =(1-I74-K74)*(I74+K74)/(1-(I74+K74)/92) -> 0.005177642046 | M74: =IF(L74<>"",+L74/$L$153,0) -> 0.002817689687 | N74: =(1-I74-K74-M74)*(I74+K74+M74)/(1-(I74+K74+M74)/92) -> 0.007958464446 | O74: =IF(N74<>"",+N74/$N$153,0) -> 0.003001965505 | P74: =(1-I74-K74-M74-O74)*(I74+K74+M74+O74)/(1-(I74+K74+M74+O74)/92) -> 0.01090386649 | Q74: =IF(P74<>"",+P74/$P$153,0) -> 0.003196483311 | R74: =+I$7*I74+K$7*K74+M$7*M74+O$7*O74+Q$7*Q74 -> 0.002697784 | U74: =ROUND(+$R74*U$6,0) -> 76 | X74: =ROUND(+$R74*X$6,0) -> 86 | AA74: =ROUND(+$R74*AA$6,0) -> 97 | AD74: =ROUND(+$R74*AD$6,0) -> 51
A75: 4A | B75: 63 | C75: =RANK($G75,$G$44:$G$152,1)+36 -> 68 | D75: =INDEX(BFnames,MATCH(B75,Lookups!A$2:A$145,0),2) -> Charlie Dann | G75: =INDEX(BFnames,MATCH(B75,Lookups!A$2:A$145,0),4) -> 366 | H75: =IF(G75<>"Scr",1/G75,"") -> 0.002732240437 | I75: =IF(H75<>"",+H75/$H$153,0) -> 0.002473014268 | J75: =(1-I75)*I75/(1-I75/92) -> 0.002466964782 | K75: =IF(J75<>"",+J75/$J$153,0) -> 0.00257519925 | L75: =(1-I75-K75)*(I75+K75)/(1-(I75+K75)/92) -> 0.00502300468 | M75: =IF(L75<>"",+L75/$L$153,0) -> 0.002733535528 | N75: =(1-I75-K75-M75)*(I75+K75+M75)/(1-(I75+K75+M75)/92) -> 0.007721846574 | O75: =IF(N75<>"",+N75/$N$153,0) -> 0.002912712271 | P75: =(1-I75-K75-M75-O75)*(I75+K75+M75+O75)/(1-(I75+K75+M75+O75)/92) -> 0.01058131983 | Q75: =IF(P75<>"",+P75/$P$153,0) -> 0.003101928317 | R75: =+I$7*I75+K$7*K75+M$7*M75+O$7*O75+Q$7*Q75 -> 0.002617012612 | U75: =ROUND(+$R75*U$6,0) -> 73 | X75: =ROUND(+$R75*X$6,0) -> 84 | AA75: =ROUND(+$R75*AA$6,0) -> 94 | AD75: =ROUND(+$R75*AD$6,0) -> 50
A76: 4B | B76: 64 | C76: =RANK($G76,$G$44:$G$152,1)+36 -> 69 | D76: =INDEX(BFnames,MATCH(B76,Lookups!A$2:A$145,0),2) -> Andrew Evans | G76: =INDEX(BFnames,MATCH(B76,Lookups!A$2:A$145,0),4) -> 367 | H76: =IF(G76<>"Scr",1/G76,"") -> 0.00272479564 | I76: =IF(H76<>"",+H76/$H$153,0) -> 0.00246627581 | J76: =(1-I76)*I76/(1-I76/92) -> 0.002460259246 | K76: =IF(J76<>"",+J76/$J$153,0) -> 0.002568199519 | L76: =(1-I76-K76)*(I76+K76)/(1-(I76+K76)/92) -> 0.005009403514 | M76: =IF(L76<>"",+L76/$L$153,0) -> 0.002726133729 | N76: =(1-I76-K76-M76)*(I76+K76+M76)/(1-(I76+K76+M76)/92) -> 0.00770103162 | O76: =IF(N76<>"",+N76/$N$153,0) -> 0.002904860785 | P76: =(1-I76-K76-M76-O76)*(I76+K76+M76+O76)/(1-(I76+K76+M76+O76)/92) -> 0.01055294099 | Q76: =IF(P76<>"",+P76/$P$153,0) -> 0.003093609021 | R76: =+I$7*I76+K$7*K76+M$7*M76+O$7*O76+Q$7*Q76 -> 0.002609908938 | U76: =ROUND(+$R76*U$6,0) -> 73 | X76: =ROUND(+$R76*X$6,0) -> 84 | AA76: =ROUND(+$R76*AA$6,0) -> 94 | AD76: =ROUND(+$R76*AD$6,0) -> 50
A77: 4C | B77: 100 | C77: =RANK($G77,$G$44:$G$152,1)+36 -> 70 | D77: =INDEX(BFnames,MATCH(B77,Lookups!A$2:A$145,0),2) -> Antonio Murdaca | G77: =INDEX(BFnames,MATCH(B77,Lookups!A$2:A$145,0),4) -> 371 | H77: =IF(G77<>"Scr",1/G77,"") -> 0.00269541779 | I77: =IF(H77<>"",+H77/$H$153,0) -> 0.002439685235 | J77: =(1-I77)*I77/(1-I77/92) -> 0.002433797711 | K77: =IF(J77<>"",+J77/$J$153,0) -> 0.002540577022 | L77: =(1-I77-K77)*(I77+K77)/(1-(I77+K77)/92) -> 0.004955727515 | M77: =IF(L77<>"",+L77/$L$153,0) -> 0.002696923075 | N77: =(1-I77-K77-M77)*(I77+K77+M77)/(1-(I77+K77+M77)/92) -> 0.007618881935 | O77: =IF(N77<>"",+N77/$N$153,0) -> 0.002873873587 | P77: =(1-I77-K77-M77-O77)*(I77+K77+M77+O77)/(1-(I77+K77+M77+O77)/92) -> 0.0104409315 | Q77: =IF(P77<>"",+P77/$P$153,0) -> 0.003060773286 | R77: =+I$7*I77+K$7*K77+M$7*M77+O$7*O77+Q$7*Q77 -> 0.002581875747 | U77: =ROUND(+$R77*U$6,0) -> 72 | X77: =ROUND(+$R77*X$6,0) -> 83 | AA77: =ROUND(+$R77*AA$6,0) -> 93 | AD77: =ROUND(+$R77*AD$6,0) -> 49
A78: 4C | B78: 96 | C78: =RANK($G78,$G$44:$G$152,1)+36 -> 71 | D78: =INDEX(BFnames,MATCH(B78,Lookups!A$2:A$145,0),2) -> Taylor Macdonald | G78: =INDEX(BFnames,MATCH(B78,Lookups!A$2:A$145,0),4) -> 387 | H78: =IF(G78<>"Scr",1/G78,"") -> 0.002583979328 | I78: =IF(H78<>"",+H78/$H$153,0) -> 0.002338819696 | J78: =(1-I78)*I78/(1-I78/92) -> 0.002333408938 | K78: =IF(J78<>"",+J78/$J$153,0) -> 0.002435783838 | L78: =(1-I78-K78)*(I78+K78)/(1-(I78+K78)/92) -> 0.004752053316 | M78: =IF(L78<>"",+L78/$L$153,0) -> 0.002586082912 | N78: =(1-I78-K78-M78)*(I78+K78+M78)/(1-(I78+K78+M78)/92) -> 0.007307091363 | O78: =IF(N78<>"",+N78/$N$153,0) -> 0.002756264901 | P78: =(1-I78-K78-M78-O78)*(I78+K78+M78+O78)/(1-(I78+K78+M78+O78)/92) -> 0.01001570004 | Q78: =IF(P78<>"",+P78/$P$153,0) -> 0.002936116105 | R78: =+I$7*I78+K$7*K78+M$7*M78+O$7*O78+Q$7*Q78 -> 0.002475517032 | U78: =ROUND(+$R78*U$6,0) -> 69 | X78: =ROUND(+$R78*X$6,0) -> 79 | AA78: =ROUND(+$R78*AA$6,0) -> 89 | AD78: =ROUND(+$R78*AD$6,0) -> 47
A79: 4C | B79: 99 | C79: =RANK($G79,$G$44:$G$152,1)+36 -> 71 | D79: =INDEX(BFnames,MATCH(B79,Lookups!A$2:A$145,0),2) -> Jack Munro | G79: =INDEX(BFnames,MATCH(B79,Lookups!A$2:A$145,0),4) -> 387 | H79: =IF(G79<>"Scr",1/G79,"") -> 0.002583979328 | I79: =IF(H79<>"",+H79/$H$153,0) -> 0.002338819696 | J79: =(1-I79)*I79/(1-I79/92) -> 0.002333408938 | K79: =IF(J79<>"",+J79/$J$153,0) -> 0.002435783838 | L79: =(1-I79-K79)*(I79+K79)/(1-(I79+K79)/92) -> 0.004752053316 | M79: =IF(L79<>"",+L79/$L$153,0) -> 0.002586082912 | N79: =(1-I79-K79-M79)*(I79+K79+M79)/(1-(I79+K79+M79)/92) -> 0.007307091363 | O79: =IF(N79<>"",+N79/$N$153,0) -> 0.002756264901 | P79: =(1-I79-K79-M79-O79)*(I79+K79+M79+O79)/(1-(I79+K79+M79+O79)/92) -> 0.01001570004 | Q79: =IF(P79<>"",+P79/$P$153,0) -> 0.002936116105 | R79: =+I$7*I79+K$7*K79+M$7*M79+O$7*O79+Q$7*Q79 -> 0.002475517032 | U79: =ROUND(+$R79*U$6,0) -> 69 | X79: =ROUND(+$R79*X$6,0) -> 79 | AA79: =ROUND(+$R79*AA$6,0) -> 89 | AD79: =ROUND(+$R79*AD$6,0) -> 47
A80: 4A | B80: 38 | C80: =RANK($G80,$G$44:$G$152,1)+36 -> 132 | D80: =INDEX(BFnames,MATCH(B80,Lookups!A$2:A$145,0),2) -> James Anstiss | G80: =INDEX(BFnames,MATCH(B80,Lookups!A$2:A$145,0),4) -> 1090 | H80: =IF(G80<>"Scr",1/G80,"") -> 0.0009174311927 | I80: =IF(H80<>"",+H80/$H$153,0) -> 0.0008303882772 | J80: =(1-I80)*I80/(1-I80/92) -> 0.0008297062214 | K80: =IF(J80<>"",+J80/$J$153,0) -> 0.0008661083671 | L80: =(1-I80-K80)*(I80+K80)/(1-(I80+K80)/92) -> 0.001693649775 | M80: =IF(L80<>"",+L80/$L$153,0) -> 0.0009216897306 | N80: =(1-I80-K80-M80)*(I80+K80+M80)/(1-(I80+K80+M80)/92) -> 0.002611405792 | O80: =IF(N80<>"",+N80/$N$153,0) -> 0.0009850329999 | P80: =(1-I80-K80-M80-O80)*(I80+K80+M80+O80)/(1-(I80+K80+M80+O80)/92) -> 0.003590376804 | Q80: =IF(P80<>"",+P80/$P$153,0) -> 0.001052523849 | R80: =+I$7*I80+K$7*K80+M$7*M80+O$7*O80+Q$7*Q80 -> 0.0008809743026 | U80: =ROUND(+$R80*U$6,0) -> 25 | X80: =ROUND(+$R80*X$6,0) -> 28 | AA80: =ROUND(+$R80*AA$6,0) -> 32 | AD80: =ROUND(+$R80*AD$6,0) -> 17
A81: 4A | B81: 39 | C81: =RANK($G81,$G$44:$G$152,1)+36 -> 139 | D81: =INDEX(BFnames,MATCH(B81,Lookups!A$2:A$145,0),2) -> Sam An | G81: =INDEX(BFnames,MATCH(B81,Lookups!A$2:A$145,0),4) -> 1110 | H81: =IF(G81<>"Scr",1/G81,"") -> 0.0009009009009 | I81: =IF(H81<>"",+H81/$H$153,0) -> 0.0008154263263 | J81: =(1-I81)*I81/(1-I81/92) -> 0.0008147686277 | K81: =IF(J81<>"",+J81/$J$153,0) -> 0.0008505154083 | L81: =(1-I81-K81)*(I81+K81)/(1-(I81+K81)/92) -> 0.00166319649 | M81: =IF(L81<>"",+L81/$L$153,0) -> 0.0009051169538 | N81: =(1-I81-K81-M81)*(I81+K81+M81)/(1-(I81+K81+M81)/92) -> 0.002564520014 | O81: =IF(N81<>"",+N81/$N$153,0) -> 0.0009673474919 | P81: =(1-I81-K81-M81-O81)*(I81+K81+M81+O81)/(1-(I81+K81+M81+O81)/92) -> 0.003526021476 | Q81: =IF(P81<>"",+P81/$P$153,0) -> 0.001033657997 | R81: =+I$7*I81+K$7*K81+M$7*M81+O$7*O81+Q$7*Q81 -> 0.0008651209297 | U81: =ROUND(+$R81*U$6,0) -> 24 | X81: =ROUND(+$R81*X$6,0) -> 28 | AA81: =ROUND(+$R81*AA$6,0) -> 31 | AD81: =ROUND(+$R81*AD$6,0) -> 17
A82: 4A | B82: 40 | C82: =RANK($G82,$G$44:$G$152,1)+36 -> 116 | D82: =INDEX(BFnames,MATCH(B82,Lookups!A$2:A$145,0),2) -> Robert Allenby | G82: =INDEX(BFnames,MATCH(B82,Lookups!A$2:A$145,0),4) -> 794.2857143 | H82: =IF(G82<>"Scr",1/G82,"") -> 0.001258992806 | I82: =IF(H82<>"",+H82/$H$153,0) -> 0.001139543625 | J82: =(1-I82)*I82/(1-I82/92) -> 0.001138259164 | K82: =IF(J82<>"",+J82/$J$153,0) -> 0.001188198618 | L82: =(1-I82-K82)*(I82+K82)/(1-(I82+K82)/92) -> 0.002322382619 | M82: =IF(L82<>"",+L82/$L$153,0) -> 0.001263848195 | N82: =(1-I82-K82-M82)*(I82+K82+M82)/(1-(I82+K82+M82)/92) -> 0.003578830631 | O82: =IF(N82<>"",+N82/$N$153,0) -> 0.001349949626 | P82: =(1-I82-K82-M82-O82)*(I82+K82+M82+O82)/(1-(I82+K82+M82+O82)/92) -> 0.004917385371 | Q82: =IF(P82<>"",+P82/$P$153,0) -> 0.001441538218 | R82: =+I$7*I82+K$7*K82+M$7*M82+O$7*O82+Q$7*Q82 -> 0.001208384628 | U82: =ROUND(+$R82*U$6,0) -> 34 | X82: =ROUND(+$R82*X$6,0) -> 39 | AA82: =ROUND(+$R82*AA$6,0) -> 44 | AD82: =ROUND(+$R82*AD$6,0) -> 23
A83: 4A | B83: 41 | C83: =RANK($G83,$G$44:$G$152,1)+36 -> 74 | D83: =INDEX(BFnames,MATCH(B83,Lookups!A$2:A$145,0),2) -> Stephen Allan | G83: =INDEX(BFnames,MATCH(B83,Lookups!A$2:A$145,0),4) -> 400 | H83: =IF(G83<>"Scr",1/G83,"") -> 0.0025 | I83: =IF(H83<>"",+H83/$H$153,0) -> 0.002262808055 | J83: =(1-I83)*I83/(1-I83/92) -> 0.002257743286 | K83: =IF(J83<>"",+J83/$J$153,0) -> 0.002356798467 | L83: =(1-I83-K83)*(I83+K83)/(1-(I83+K83)/92) -> 0.004598496663 | M83: =IF(L83<>"",+L83/$L$153,0) -> 0.00250251688 | N83: =(1-I83-K83-M83)*(I83+K83+M83)/(1-(I83+K83+M83)/92) -> 0.007071946231 | O83: =IF(N83<>"",+N83/$N$153,0) -> 0.002667567191 | P83: =(1-I83-K83-M83-O83)*(I83+K83+M83+O83)/(1-(I83+K83+M83+O83)/92) -> 0.009694884181 | Q83: =IF(P83<>"",+P83/$P$153,0) -> 0.002842068499 | R83: =+I$7*I83+K$7*K83+M$7*M83+O$7*O83+Q$7*Q83 -> 0.002395343878 | U83: =ROUND(+$R83*U$6,0) -> 67 | X83: =ROUND(+$R83*X$6,0) -> 77 | AA83: =ROUND(+$R83*AA$6,0) -> 86 | AD83: =ROUND(+$R83*AD$6,0) -> 46
A84: 4A | B84: 43 | C84: =RANK($G84,$G$44:$G$152,1)+36 -> 117 | D84: =INDEX(BFnames,MATCH(B84,Lookups!A$2:A$145,0),2) -> Maverick Antcliff | G84: =INDEX(BFnames,MATCH(B84,Lookups!A$2:A$145,0),4) -> 804.6511628 | H84: =IF(G84<>"Scr",1/G84,"") -> 0.001242774566 | I84: =IF(H84<>"",+H84/$H$153,0) -> 0.00112486412 | J84: =(1-I84)*I84/(1-I84/92) -> 0.001123612539 | K84: =IF(J84<>"",+J84/$J$153,0) -> 0.001172909394 | L84: =(1-I84-K84)*(I84+K84)/(1-(I84+K84)/92) -> 0.002292551009 | M84: =IF(L84<>"",+L84/$L$153,0) -> 0.001247613736 | N84: =(1-I84-K84-M84)*(I84+K84+M84)/(1-(I84+K84+M84)/92) -> 0.003532953628 | O84: =IF(N84<>"",+N84/$N$153,0) -> 0.001332644632 | P84: =(1-I84-K84-M84-O84)*(I84+K84+M84+O84)/(1-(I84+K84+M84+O84)/92) -> 0.004854494082 | Q84: =IF(P84<>"",+P84/$P$153,0) -> 0.001423101551 | R84: =+I$7*I84+K$7*K84+M$7*M84+O$7*O84+Q$7*Q84 -> 0.001192845412 | U84: =ROUND(+$R84*U$6,0) -> 33 | X84: =ROUND(+$R84*X$6,0) -> 38 | AA84: =ROUND(+$R84*AA$6,0) -> 43 | AD84: =ROUND(+$R84*AD$6,0) -> 23
A85: 4A | B85: 44 | C85: =RANK($G85,$G$44:$G$152,1)+36 -> 106 | D85: =INDEX(BFnames,MATCH(B85,Lookups!A$2:A$145,0),2) -> Braden Becker | G85: =INDEX(BFnames,MATCH(B85,Lookups!A$2:A$145,0),4) -> 706 | H85: =IF(G85<>"Scr",1/G85,"") -> 0.001416430595 | I85: =IF(H85<>"",+H85/$H$153,0) -> 0.001282044224 | J85: =(1-I85)*I85/(1-I85/92) -> 0.00128041843 | K85: =IF(J85<>"",+J85/$J$153,0) -> 0.001336594913 | L85: =(1-I85-K85)*(I85+K85)/(1-(I85+K85)/92) -> 0.002611856209 | M85: =IF(L85<>"",+L85/$L$153,0) -> 0.001421380667 | N85: =(1-I85-K85-M85)*(I85+K85+M85)/(1-(I85+K85+M85)/92) -> 0.004023874746 | O85: =IF(N85<>"",+N85/$N$153,0) -> 0.001517822096 | P85: =(1-I85-K85-M85-O85)*(I85+K85+M85+O85)/(1-(I85+K85+M85+O85)/92) -> 0.005527286204 | Q85: =IF(P85<>"",+P85/$P$153,0) -> 0.001620331477 | R85: =+I$7*I85+K$7*K85+M$7*M85+O$7*O85+Q$7*Q85 -> 0.001359194156 | U85: =ROUND(+$R85*U$6,0) -> 38 | X85: =ROUND(+$R85*X$6,0) -> 43 | AA85: =ROUND(+$R85*AA$6,0) -> 49 | AD85: =ROUND(+$R85*AD$6,0) -> 26
A86: 4A | B86: 47 | C86: =RANK($G86,$G$44:$G$152,1)+36 -> 113 | D86: =INDEX(BFnames,MATCH(B86,Lookups!A$2:A$145,0),2) -> Harry Bateman | G86: =INDEX(BFnames,MATCH(B86,Lookups!A$2:A$145,0),4) -> 725.1612903 | H86: =IF(G86<>"Scr",1/G86,"") -> 0.001379003559 | I86: =IF(H86<>"",+H86/$H$153,0) -> 0.001248168144 | J86: =(1-I86)*I86/(1-I86/92) -> 0.001246627134 | K86: =IF(J86<>"",+J86/$J$153,0) -> 0.001301321074 | L86: =(1-I86-K86)*(I86+K86)/(1-(I86+K86)/92) -> 0.002543059796 | M86: =IF(L86<>"",+L86/$L$153,0) -> 0.001383941434 | N86: =(1-I86-K86-M86)*(I86+K86+M86)/(1-(I86+K86+M86)/92) -> 0.003918126294 | O86: =IF(N86<>"",+N86/$N$153,0) -> 0.001477933345 | P86: =(1-I86-K86-M86-O86)*(I86+K86+M86+O86)/(1-(I86+K86+M86+O86)/92) -> 0.005382397726 | Q86: =IF(P86<>"",+P86/$P$153,0) -> 0.001577857223 | R86: =+I$7*I86+K$7*K86+M$7*M86+O$7*O86+Q$7*Q86 -> 0.001323348853 | U86: =ROUND(+$R86*U$6,0) -> 37 | X86: =ROUND(+$R86*X$6,0) -> 42 | AA86: =ROUND(+$R86*AA$6,0) -> 48 | AD86: =ROUND(+$R86*AD$6,0) -> 25
A87: 4A | B87: 49 | C87: =RANK($G87,$G$44:$G$152,1)+36 -> 87 | D87: =INDEX(BFnames,MATCH(B87,Lookups!A$2:A$145,0),2) -> Adam Burdett | G87: =INDEX(BFnames,MATCH(B87,Lookups!A$2:A$145,0),4) -> 462 | H87: =IF(G87<>"Scr",1/G87,"") -> 0.002164502165 | I87: =IF(H87<>"",+H87/$H$153,0) -> 0.001959141174 | J87: =(1-I87)*I87/(1-I87/92) -> 0.001955344578 | K87: =IF(J87<>"",+J87/$J$153,0) -> 0.002041132459 | L87: =(1-I87-K87)*(I87+K87)/(1-(I87+K87)/92) -> 0.003984444692 | M87: =IF(L87<>"",+L87/$L$153,0) -> 0.002168347795 | N87: =(1-I87-K87-M87)*(I87+K87+M87)/(1-(I87+K87+M87)/92) -> 0.006130980621 | O87: =IF(N87<>"",+N87/$N$153,0) -> 0.002312631094 | P87: =(1-I87-K87-M87-O87)*(I87+K87+M87+O87)/(1-(I87+K87+M87+O87)/92) -> 0.008410096183 | Q87: =IF(P87<>"",+P87/$P$153,0) -> 0.002465431148 | R87: =+I$7*I87+K$7*K87+M$7*M87+O$7*O87+Q$7*Q87 -> 0.002074863862 | U87: =ROUND(+$R87*U$6,0) -> 58 | X87: =ROUND(+$R87*X$6,0) -> 66 | AA87: =ROUND(+$R87*AA$6,0) -> 75 | AD87: =ROUND(+$R87*AD$6,0) -> 40
A88: 4A | B88: 50 | C88: =RANK($G88,$G$44:$G$152,1)+36 -> 114 | D88: =INDEX(BFnames,MATCH(B88,Lookups!A$2:A$145,0),2) -> Dale Brandt Richards | G88: =INDEX(BFnames,MATCH(B88,Lookups!A$2:A$145,0),4) -> 726.5517241 | H88: =IF(G88<>"Scr",1/G88,"") -> 0.001376364499 | I88: =IF(H88<>"",+H88/$H$153,0) -> 0.00124577947 | J88: =(1-I88)*I88/(1-I88/92) -> 0.001244244352 | K88: =IF(J88<>"",+J88/$J$153,0) -> 0.001298833752 | L88: =(1-I88-K88)*(I88+K88)/(1-(I88+K88)/92) -> 0.002538208369 | M88: =IF(L88<>"",+L88/$L$153,0) -> 0.001381301272 | N88: =(1-I88-K88-M88)*(I88+K88+M88)/(1-(I88+K88+M88)/92) -> 0.00391066857 | O88: =IF(N88<>"",+N88/$N$153,0) -> 0.001475120261 | P88: =(1-I88-K88-M88-O88)*(I88+K88+M88+O88)/(1-(I88+K88+M88+O88)/92) -> 0.005372178963 | Q88: =IF(P88<>"",+P88/$P$153,0) -> 0.001574861578 | R88: =+I$7*I88+K$7*K88+M$7*M88+O$7*O88+Q$7*Q88 -> 0.001320821183 | U88: =ROUND(+$R88*U$6,0) -> 37 | X88: =ROUND(+$R88*X$6,0) -> 42 | AA88: =ROUND(+$R88*AA$6,0) -> 48 | AD88: =ROUND(+$R88*AD$6,0) -> 25
A89: 4A | B89: 51 | C89: =RANK($G89,$G$44:$G$152,1)+36 -> 76 | D89: =INDEX(BFnames,MATCH(B89,Lookups!A$2:A$145,0),2) -> Darren Beck | G89: =INDEX(BFnames,MATCH(B89,Lookups!A$2:A$145,0),4) -> 405 | H89: =IF(G89<>"Scr",1/G89,"") -> 0.002469135802 | I89: =IF(H89<>"",+H89/$H$153,0) -> 0.002234872153 | J89: =(1-I89)*I89/(1-I89/92) -> 0.00222993167 | K89: =IF(J89<>"",+J89/$J$153,0) -> 0.002327766657 | L89: =(1-I89-K89)*(I89+K89)/(1-(I89+K89)/92) -> 0.004542046395 | M89: =IF(L89<>"",+L89/$L$153,0) -> 0.002471796461 | N89: =(1-I89-K89-M89)*(I89+K89+M89)/(1-(I89+K89+M89)/92) -> 0.00698548611 | O89: =IF(N89<>"",+N89/$N$153,0) -> 0.002634954077 | P89: =(1-I89-K89-M89-O89)*(I89+K89+M89+O89)/(1-(I89+K89+M89+O89)/92) -> 0.00957689881 | Q89: =IF(P89<>"",+P89/$P$153,0) -> 0.002807480927 | R89: =+I$7*I89+K$7*K89+M$7*M89+O$7*O89+Q$7*Q89 -> 0.002365873802 | U89: =ROUND(+$R89*U$6,0) -> 66 | X89: =ROUND(+$R89*X$6,0) -> 76 | AA89: =ROUND(+$R89*AA$6,0) -> 85 | AD89: =ROUND(+$R89*AD$6,0) -> 45
A90: 4A | B90: 52 | C90: =RANK($G90,$G$44:$G$152,1)+36 -> 128 | D90: =INDEX(BFnames,MATCH(B90,Lookups!A$2:A$145,0),2) -> Mitchell Brown | G90: =INDEX(BFnames,MATCH(B90,Lookups!A$2:A$145,0),4) -> 905 | H90: =IF(G90<>"Scr",1/G90,"") -> 0.001104972376 | I90: =IF(H90<>"",+H90/$H$153,0) -> 0.001000136157 | J90: =(1-I90)*I90/(1-I90/92) -> 0.0009991467465 | K90: =IF(J90<>"",+J90/$J$153,0) -> 0.001042982847 | L90: =(1-I90-K90)*(I90+K90)/(1-(I90+K90)/92) -> 0.00203898995 | M90: =IF(L90<>"",+L90/$L$153,0) -> 0.001109624981 | N90: =(1-I90-K90-M90)*(I90+K90+M90)/(1-(I90+K90+M90)/92) -> 0.003142911894 | O90: =IF(N90<>"",+N90/$N$153,0) -> 0.001185519287 | P90: =(1-I90-K90-M90-O90)*(I90+K90+M90+O90)/(1-(I90+K90+M90+O90)/92) -> 0.004319646436 | Q90: =IF(P90<>"",+P90/$P$153,0) -> 0.001266310235 | R90: =+I$7*I90+K$7*K90+M$7*M90+O$7*O90+Q$7*Q90 -> 0.001060784223 | U90: =ROUND(+$R90*U$6,0) -> 30 | X90: =ROUND(+$R90*X$6,0) -> 34 | AA90: =ROUND(+$R90*AA$6,0) -> 38 | AD90: =ROUND(+$R90*AD$6,0) -> 20
A91: 4A | B91: 53 | C91: =RANK($G91,$G$44:$G$152,1)+36 -> 92 | D91: =INDEX(BFnames,MATCH(B91,Lookups!A$2:A$145,0),2) -> Neven Basic | G91: =INDEX(BFnames,MATCH(B91,Lookups!A$2:A$145,0),4) -> 490 | H91: =IF(G91<>"Scr",1/G91,"") -> 0.002040816327 | I91: =IF(H91<>"",+H91/$H$153,0) -> 0.001847190249 | J91: =(1-I91)*I91/(1-I91/92) -> 0.001843815158 | K91: =IF(J91<>"",+J91/$J$153,0) -> 0.001924709848 | L91: =(1-I91-K91)*(I91+K91)/(1-(I91+K91)/92) -> 0.003757826934 | M91: =IF(L91<>"",+L91/$L$153,0) -> 0.002045021672 | N91: =(1-I91-K91-M91)*(I91+K91+M91)/(1-(I91+K91+M91)/92) -> 0.005783450864 | O91: =IF(N91<>"",+N91/$N$153,0) -> 0.002181541441 | P91: =(1-I91-K91-M91-O91)*(I91+K91+M91+O91)/(1-(I91+K91+M91+O91)/92) -> 0.00793517768 | Q91: =IF(P91<>"",+P91/$P$153,0) -> 0.002326208142 | R91: =+I$7*I91+K$7*K91+M$7*M91+O$7*O91+Q$7*Q91 -> 0.001956638672 | U91: =ROUND(+$R91*U$6,0) -> 55 | X91: =ROUND(+$R91*X$6,0) -> 63 | AA91: =ROUND(+$R91*AA$6,0) -> 70 | AD91: =ROUND(+$R91*AD$6,0) -> 37
A92: 4A | B92: 54 | C92: =RANK($G92,$G$44:$G$152,1)+36 -> 129 | D92: =INDEX(BFnames,MATCH(B92,Lookups!A$2:A$145,0),2) -> Rory Bourke | G92: =INDEX(BFnames,MATCH(B92,Lookups!A$2:A$145,0),4) -> 906 | H92: =IF(G97<>"Scr",1/G97,"") -> 0.001416430595 | I92: =IF(H97<>"",+H97/$H$153,0) -> 0.001282044224 | J92: =(1-I97)*I97/(1-I97/92) -> 0.00128041843 | K92: =IF(J97<>"",+J97/$J$153,0) -> 0.001336594913 | L92: =(1-I97-K97)*(I97+K97)/(1-(I97+K97)/92) -> 0.002611856209 | M92: =IF(L97<>"",+L97/$L$153,0) -> 0.001421380667 | N92: =(1-I97-K97-M97)*(I97+K97+M97)/(1-(I97+K97+M97)/92) -> 0.004023874746 | O92: =IF(N97<>"",+N97/$N$153,0) -> 0.001517822096 | P92: =(1-I97-K97-M97-O97)*(I97+K97+M97+O97)/(1-(I97+K97+M97+O97)/92) -> 0.005527286204 | Q92: =IF(P97<>"",+P97/$P$153,0) -> 0.001620331477 | R92: =+I$7*I97+K$7*K97+M$7*M97+O$7*O97+Q$7*Q97 -> 0.001359194156 | U92: =ROUND(+$R97*U$6,0) -> 38 | X92: =ROUND(+$R92*X$6,0) -> 43 | AA92: =ROUND(+$R92*AA$6,0) -> 49 | AD92: =ROUND(+$R92*AD$6,0) -> 26
A93: 4A | B93: 55 | C93: =RANK($G93,$G$44:$G$152,1)+36 -> 96 | D93: =INDEX(BFnames,MATCH(B93,Lookups!A$2:A$145,0),2) -> Peter Cooke | G93: =INDEX(BFnames,MATCH(B93,Lookups!A$2:A$145,0),4) -> 491 | H93: =IF(G93<>"Scr",1/G93,"") -> 0.002036659878 | I93: =IF(H93<>"",+H93/$H$153,0) -> 0.001843428151 | J93: =(1-I93)*I93/(1-I93/92) -> 0.001840066794 | K93: =IF(J93<>"",+J93/$J$153,0) -> 0.00192079703 | L93: =(1-I93-K93)*(I93+K93)/(1-(I93+K93)/92) -> 0.003750209231 | M93: =IF(L93<>"",+L93/$L$153,0) -> 0.002040876094 | N93: =(1-I93-K93-M93)*(I93+K93+M93)/(1-(I93+K93+M93)/92) -> 0.005771766266 | O93: =IF(N93<>"",+N93/$N$153,0) -> 0.002177133963 | P93: =(1-I93-K93-M93-O93)*(I93+K93+M93+O93)/(1-(I93+K93+M93+O93)/92) -> 0.007919206256 | Q93: =IF(P93<>"",+P93/$P$153,0) -> 0.002321526098 | R93: =+I$7*I93+K$7*K93+M$7*M93+O$7*O93+Q$7*Q93 -> 0.001952665017 | U93: =ROUND(+$R93*U$6,0) -> 55 | X93: =ROUND(+$R93*X$6,0) -> 62 | AA93: =ROUND(+$R93*AA$6,0) -> 70 | AD93: =ROUND(+$R93*AD$6,0) -> 37
A94: 4A | B94: 56 | C94: =RANK($G94,$G$44:$G$152,1)+36 -> 92 | D94: =INDEX(BFnames,MATCH(B94,Lookups!A$2:A$145,0),2) -> Cory Crawford | G94: =INDEX(BFnames,MATCH(B94,Lookups!A$2:A$145,0),4) -> 490 | H94: =IF(G94<>"Scr",1/G94,"") -> 0.002040816327 | I94: =IF(H94<>"",+H94/$H$153,0) -> 0.001847190249 | J94: =(1-I94)*I94/(1-I94/92) -> 0.001843815158 | K94: =IF(J94<>"",+J94/$J$153,0) -> 0.001924709848 | L94: =(1-I94-K94)*(I94+K94)/(1-(I94+K94)/92) -> 0.003757826934 | M94: =IF(L94<>"",+L94/$L$153,0) -> 0.002045021672 | N94: =(1-I94-K94-M94)*(I94+K94+M94)/(1-(I94+K94+M94)/92) -> 0.005783450864 | O94: =IF(N94<>"",+N94/$N$153,0) -> 0.002181541441 | P94: =(1-I94-K94-M94-O94)*(I94+K94+M94+O94)/(1-(I94+K94+M94+O94)/92) -> 0.00793517768 | Q94: =IF(P94<>"",+P94/$P$153,0) -> 0.002326208142 | R94: =+I$7*I94+K$7*K94+M$7*M94+O$7*O94+Q$7*Q94 -> 0.001956638672 | U94: =ROUND(+$R94*U$6,0) -> 55 | X94: =ROUND(+$R94*X$6,0) -> 63 | AA94: =ROUND(+$R94*AA$6,0) -> 70 | AD94: =ROUND(+$R94*AD$6,0) -> 37
A95: 4A | B95: 57 | C95: =RANK($G95,$G$44:$G$152,1)+36 -> 79 | D95: =INDEX(BFnames,MATCH(B95,Lookups!A$2:A$145,0),2) -> Ben Campbell | G95: =INDEX(BFnames,MATCH(B95,Lookups!A$2:A$145,0),4) -> 407.5 | H95: =IF(G95<>"Scr",1/G95,"") -> 0.00245398773 | I95: =IF(H95<>"",+H95/$H$153,0) -> 0.002221161281 | J95: =(1-I95)*I95/(1-I95/92) -> 0.002216281232 | K95: =IF(J95<>"",+J95/$J$153,0) -> 0.002313517326 | L95: =(1-I95-K95)*(I95+K95)/(1-(I95+K95)/92) -> 0.004514337809 | M95: =IF(L95<>"",+L95/$L$153,0) -> 0.002456717358 | N95: =(1-I95-K95-M95)*(I95+K95+M95)/(1-(I95+K95+M95)/92) -> 0.006943043973 | O95: =IF(N95<>"",+N95/$N$153,0) -> 0.002618944729 | P95: =(1-I95-K95-M95-O95)*(I95+K95+M95+O95)/(1-(I95+K95+M95+O95)/92) -> 0.0095189764 | Q95: =IF(P95<>"",+P95/$P$153,0) -> 0.002790500894 | R95: =+I$7*I95+K$7*K95+M$7*M95+O$7*O95+Q$7*Q95 -> 0.00235140903 | U95: =ROUND(+$R95*U$6,0) -> 66 | X95: =ROUND(+$R95*X$6,0) -> 75 | AA95: =ROUND(+$R95*AA$6,0) -> 85 | AD95: =ROUND(+$R95*AD$6,0) -> 45
A96: 4A | B96: 59 | C96: =RANK($G96,$G$44:$G$152,1)+36 -> 139 | D96: =INDEX(BFnames,MATCH(B96,Lookups!A$2:A$145,0),2) -> Anthony Choat | G96: =INDEX(BFnames,MATCH(B96,Lookups!A$2:A$145,0),4) -> 1110 | H96: =IF(G96<>"Scr",1/G96,"") -> 0.0009009009009 | I96: =IF(H96<>"",+H96/$H$153,0) -> 0.0008154263263 | J96: =(1-I96)*I96/(1-I96/92) -> 0.0008147686277 | K96: =IF(J96<>"",+J96/$J$153,0) -> 0.0008505154083 | L96: =(1-I96-K96)*(I96+K96)/(1-(I96+K96)/92) -> 0.00166319649 | M96: =IF(L96<>"",+L96/$L$153,0) -> 0.0009051169538 | N96: =(1-I96-K96-M96)*(I96+K96+M96)/(1-(I96+K96+M96)/92) -> 0.002564520014 | O96: =IF(N96<>"",+N96/$N$153,0) -> 0.0009673474919 | P96: =(1-I96-K96-M96-O96)*(I96+K96+M96+O96)/(1-(I96+K96+M96+O96)/92) -> 0.003526021476 | Q96: =IF(P96<>"",+P96/$P$153,0) -> 0.001033657997 | R96: =+I$7*I96+K$7*K96+M$7*M96+O$7*O96+Q$7*Q96 -> 0.0008651209297 | U96: =ROUND(+$R96*U$6,0) -> 24 | X96: =ROUND(+$R96*X$6,0) -> 28 | AA96: =ROUND(+$R96*AA$6,0) -> 31 | AD96: =ROUND(+$R96*AD$6,0) -> 17
A97: 4A | B97: 60 | C97: =RANK($G97,$G$44:$G$152,1)+36 -> 106 | D97: =INDEX(BFnames,MATCH(B97,Lookups!A$2:A$145,0),2) -> Benjamin Clementson | G97: =INDEX(BFnames,MATCH(B97,Lookups!A$2:A$145,0),4) -> 706 | H97: =IF(G97<>"Scr",1/G97,"") -> 0.001416430595 | I97: =IF(H97<>"",+H97/$H$153,0) -> 0.001282044224 | J97: =(1-I97)*I97/(1-I97/92) -> 0.00128041843 | K97: =IF(J97<>"",+J97/$J$153,0) -> 0.001336594913 | L97: =(1-I97-K97)*(I97+K97)/(1-(I97+K97)/92) -> 0.002611856209 | M97: =IF(L97<>"",+L97/$L$153,0) -> 0.001421380667 | N97: =(1-I97-K97-M97)*(I97+K97+M97)/(1-(I97+K97+M97)/92) -> 0.004023874746 | O97: =IF(N97<>"",+N97/$N$153,0) -> 0.001517822096 | P97: =(1-I97-K97-M97-O97)*(I97+K97+M97+O97)/(1-(I97+K97+M97+O97)/92) -> 0.005527286204 | Q97: =IF(P97<>"",+P97/$P$153,0) -> 0.001620331477 | R97: =+I$7*I97+K$7*K97+M$7*M97+O$7*O97+Q$7*Q97 -> 0.001359194156 | U97: =ROUND(+$R97*U$6,0) -> 38 | X97: =ROUND(+$R97*X$6,0) -> 43 | AA97: =ROUND(+$R97*AA$6,0) -> 49 | AD97: =ROUND(+$R97*AD$6,0) -> 26
A98: 4A | B98: 61 | C98: =RANK($G98,$G$44:$G$152,1)+36 -> 103 | D98: =INDEX(BFnames,MATCH(B98,Lookups!A$2:A$145,0),2) -> Mitch Davis | G98: =INDEX(BFnames,MATCH(B98,Lookups!A$2:A$145,0),4) -> 618 | H98: =IF(G98<>"Scr",1/G98,"") -> 0.001618122977 | I98: =IF(H98<>"",+H98/$H$153,0) -> 0.001464600683 | J98: =(1-I98)*I98/(1-I98/92) -> 0.00146247891 | K98: =IF(J98<>"",+J98/$J$153,0) -> 0.001526643031 | L98: =(1-I98-K98)*(I98+K98)/(1-(I98+K98)/92) -> 0.002982393143 | M98: =IF(L98<>"",+L98/$L$153,0) -> 0.001623028075 | N98: =(1-I98-K98-M98)*(I98+K98+M98)/(1-(I98+K98+M98)/92) -> 0.004593210657 | O98: =IF(N98<>"",+N98/$N$153,0) -> 0.001732577942 | P98: =(1-I98-K98-M98-O98)*(I98+K98+M98+O98)/(1-(I98+K98+M98+O98)/92) -> 0.006307002334 | Q98: =IF(P98<>"",+P98/$P$153,0) -> 0.001848906322 | R98: =+I$7*I98+K$7*K98+M$7*M98+O$7*O98+Q$7*Q98 -> 0.001552298013 | U98: =ROUND(+$R98*U$6,0) -> 43 | X98: =ROUND(+$R98*X$6,0) -> 50 | AA98: =ROUND(+$R98*AA$6,0) -> 56 | AD98: =ROUND(+$R98*AD$6,0) -> 30
A99: 4A | B99: 62 | C99: =RANK($G99,$G$44:$G$152,1)+36 -> 139 | D99: =INDEX(BFnames,MATCH(B99,Lookups!A$2:A$145,0),2) -> Martin Dive | G99: =INDEX(BFnames,MATCH(B99,Lookups!A$2:A$145,0),4) -> 1110 | H99: =IF(G99<>"Scr",1/G99,"") -> 0.0009009009009 | I99: =IF(H99<>"",+H99/$H$153,0) -> 0.0008154263263 | J99: =(1-I99)*I99/(1-I99/92) -> 0.0008147686277 | K99: =IF(J99<>"",+J99/$J$153,0) -> 0.0008505154083 | L99: =(1-I99-K99)*(I99+K99)/(1-(I99+K99)/92) -> 0.00166319649 | M99: =IF(L99<>"",+L99/$L$153,0) -> 0.0009051169538 | N99: =(1-I99-K99-M99)*(I99+K99+M99)/(1-(I99+K99+M99)/92) -> 0.002564520014 | O99: =IF(N99<>"",+N99/$N$153,0) -> 0.0009673474919 | P99: =(1-I99-K99-M99-O99)*(I99+K99+M99+O99)/(1-(I99+K99+M99+O99)/92) -> 0.003526021476 | Q99: =IF(P99<>"",+P99/$P$153,0) -> 0.001033657997 | R99: =+I$7*I99+K$7*K99+M$7*M99+O$7*O99+Q$7*Q99 -> 0.0008651209297 | U99: =ROUND(+$R99*U$6,0) -> 24 | X99: =ROUND(+$R99*X$6,0) -> 28 | AA99: =ROUND(+$R99*AA$6,0) -> 31 | AD99: =ROUND(+$R99*AD$6,0) -> 17
A100: 4B | B100: 65 | C100: =RANK($G100,$G$44:$G$152,1)+36 -> 132 | D100: =INDEX(BFnames,MATCH(B100,Lookups!A$2:A$145,0),2) -> Alex Edge | G100: =INDEX(BFnames,MATCH(B100,Lookups!A$2:A$145,0),4) -> 1090 | H100: =IF(G100<>"Scr",1/G100,"") -> 0.0009174311927 | I100: =IF(H100<>"",+H100/$H$153,0) -> 0.0008303882772 | J100: =(1-I100)*I100/(1-I100/92) -> 0.0008297062214 | K100: =IF(J100<>"",+J100/$J$153,0) -> 0.0008661083671 | L100: =(1-I100-K100)*(I100+K100)/(1-(I100+K100)/92) -> 0.001693649775 | M100: =IF(L100<>"",+L100/$L$153,0) -> 0.0009216897306 | N100: =(1-I100-K100-M100)*(I100+K100+M100)/(1-(I100+K100+M100)/92) -> 0.002611405792 | O100: =IF(N100<>"",+N100/$N$153,0) -> 0.0009850329999 | P100: =(1-I100-K100-M100-O100)*(I100+K100+M100+O100)/(1-(I100+K100+M100+O100)/92) -> 0.003590376804 | Q100: =IF(P100<>"",+P100/$P$153,0) -> 0.001052523849 | R100: =+I$7*I100+K$7*K100+M$7*M100+O$7*O100+Q$7*Q100 -> 0.0008809743026 | U100: =ROUND(+$R100*U$6,0) -> 25 | X100: =ROUND(+$R100*X$6,0) -> 28 | AA100: =ROUND(+$R100*AA$6,0) -> 32 | AD100: =ROUND(+$R100*AD$6,0) -> 17
A101: 4B | B101: 66 | C101: =RANK($G101,$G$44:$G$152,1)+36 -> 86 | D101: =INDEX(BFnames,MATCH(B101,Lookups!A$2:A$145,0),2) -> Connor Fewkes | G101: =INDEX(BFnames,MATCH(B101,Lookups!A$2:A$145,0),4) -> 429 | H101: =IF(G101<>"Scr",1/G101,"") -> 0.002331002331 | I101: =IF(H101<>"",+H101/$H$153,0) -> 0.002109844341 | J101: =(1-I101)*I101/(1-I101/92) -> 0.002105441182 | K101: =IF(J101<>"",+J101/$J$153,0) -> 0.002197814331 | L101: =(1-I101-K101)*(I101+K101)/(1-(I101+K101)/92) -> 0.004289303584 | M101: =IF(L101<>"",+L101/$L$153,0) -> 0.002334252998 | N101: =(1-I101-K101-M101)*(I101+K101+M101)/(1-(I101+K101+M101)/92) -> 0.00659827304 | O101: =IF(N101<>"",+N101/$N$153,0) -> 0.002488895715 | P101: =(1-I101-K101-M101-O101)*(I101+K101+M101+O101)/(1-(I101+K101+M101+O101)/92) -> 0.00904833377 | Q101: =IF(P101<>"",+P101/$P$153,0) -> 0.002652531366 | R101: =+I$7*I101+K$7*K101+M$7*M101+O$7*O101+Q$7*Q101 -> 0.002233948592 | U101: =ROUND(+$R101*U$6,0) -> 63 | X101: =ROUND(+$R101*X$6,0) -> 71 | AA101: =ROUND(+$R101*AA$6,0) -> 80 | AD101: =ROUND(+$R101*AD$6,0) -> 43
A102: 4B | B102: 67 | C102: =RANK($G102,$G$44:$G$152,1)+36 -> 81 | D102: =INDEX(BFnames,MATCH(B102,Lookups!A$2:A$145,0),2) -> Nick Flanagan | G102: =INDEX(BFnames,MATCH(B102,Lookups!A$2:A$145,0),4) -> 414 | H102: =IF(G102<>"Scr",1/G102,"") -> 0.002415458937 | I102: =IF(H102<>"",+H102/$H$153,0) -> 0.002186287976 | J102: =(1-I102)*I102/(1-I102/92) -> 0.002181559964 | K102: =IF(J102<>"",+J102/$J$153,0) -> 0.002277272713 | L102: =(1-I102-K102)*(I102+K102)/(1-(I102+K102)/92) -> 0.004443852917 | M102: =IF(L102<>"",+L102/$L$153,0) -> 0.00241835925 | N102: =(1-I102-K102-M102)*(I102+K102+M102)/(1-(I102+K102+M102)/92) -> 0.006835070404 | O102: =IF(N102<>"",+N102/$N$153,0) -> 0.002578216655 | P102: =(1-I102-K102-M102-O102)*(I102+K102+M102+O102)/(1-(I102+K102+M102+O102)/92) -> 0.009371606069 | Q102: =IF(P102<>"",+P102/$P$153,0) -> 0.002747299081 | R102: =+I$7*I102+K$7*K102+M$7*M102+O$7*O102+Q$7*Q102 -> 0.002314615438 | U102: =ROUND(+$R102*U$6,0) -> 65 | X102: =ROUND(+$R102*X$6,0) -> 74 | AA102: =ROUND(+$R102*AA$6,0) -> 83 | AD102: =ROUND(+$R102*AD$6,0) -> 44
A103: 4B | B103: 68 | C103: =RANK($G103,$G$44:$G$152,1)+36 -> 123 | D103: =INDEX(BFnames,MATCH(B103,Lookups!A$2:A$145,0),2) -> Daniel Fox | G103: =INDEX(BFnames,MATCH(B103,Lookups!A$2:A$145,0),4) -> 852.173913 | H103: =IF(G103<>"Scr",1/G103,"") -> 0.001173469388 | I103: =IF(H103<>"",+H103/$H$153,0) -> 0.001062134393 | J103: =(1-I103)*I103/(1-I103/92) -> 0.001061018513 | K103: =IF(J103<>"",+J103/$J$153,0) -> 0.001107569147 | L103: =(1-I103-K103)*(I103+K103)/(1-(I103+K103)/92) -> 0.002165046987 | M103: =IF(L103<>"",+L103/$L$153,0) -> 0.001178225631 | N103: =(1-I103-K103-M103)*(I103+K103+M103)/(1-(I103+K103+M103)/92) -> 0.003336841971 | O103: =IF(N103<>"",+N103/$N$153,0) -> 0.001258670509 | P103: =(1-I103-K103-M103-O103)*(I103+K103+M103+O103)/(1-(I103+K103+M103+O103)/92) -> 0.004585608529 | Q103: =IF(P103<>"",+P103/$P$153,0) -> 0.001344277385 | R103: =+I$7*I103+K$7*K103+M$7*M103+O$7*O103+Q$7*Q103 -> 0.001126433941 | U103: =ROUND(+$R103*U$6,0) -> 32 | X103: =ROUND(+$R103*X$6,0) -> 36 | AA103: =ROUND(+$R103*AA$6,0) -> 41 | AD103: =ROUND(+$R103*AD$6,0) -> 21
A104: 4B | B104: 70 | C104: =RANK($G104,$G$44:$G$152,1)+36 -> 131 | D104: =INDEX(BFnames,MATCH(B104,Lookups!A$2:A$145,0),2) -> Gavin Fairfax | G104: =INDEX(BFnames,MATCH(B104,Lookups!A$2:A$145,0),4) -> 955 | H104: =IF(G104<>"Scr",1/G104,"") -> 0.001047120419 | I104: =IF(H104<>"",+H104/$H$153,0) -> 0.0009477730075 | J104: =(1-I104)*I104/(1-I104/92) -> 0.0009468844885 | K104: =IF(J104<>"",+J104/$J$153,0) -> 0.0009884276591 | L104: =(1-I104-K104)*(I104+K104)/(1-(I104+K104)/92) -> 0.001932492464 | M104: =IF(L104<>"",+L104/$L$153,0) -> 0.001051668701 | N104: =(1-I104-K104-M104)*(I104+K104+M104)/(1-(I104+K104+M104)/92) -> 0.002979038754 | O104: =IF(N104<>"",+N104/$N$153,0) -> 0.001123705665 | P104: =(1-I104-K104-M104-O104)*(I104+K104+M104+O104)/(1-(I104+K104+M104+O104)/92) -> 0.004094852986 | Q104: =IF(P104<>"",+P104/$P$153,0) -> 0.001200411729 | R104: =+I$7*I104+K$7*K104+M$7*M104+O$7*O104+Q$7*Q104 -> 0.001005327252 | U104: =ROUND(+$R104*U$6,0) -> 28 | X104: =ROUND(+$R104*X$6,0) -> 32 | AA104: =ROUND(+$R104*AA$6,0) -> 36 | AD104: =ROUND(+$R104*AD$6,0) -> 19
A105: 4B | B105: 71 | C105: =RANK($G105,$G$44:$G$152,1)+36 -> 112 | D105: =INDEX(BFnames,MATCH(B105,Lookups!A$2:A$145,0),2) -> Matthew Guyatt | G105: =INDEX(BFnames,MATCH(B105,Lookups!A$2:A$145,0),4) -> 721.4285714 | H105: =IF(G105<>"Scr",1/G105,"") -> 0.001386138614 | I105: =IF(H105<>"",+H105/$H$153,0) -> 0.001254626249 | J105: =(1-I105)*I105/(1-I105/92) -> 0.00125306925 | K105: =IF(J105<>"",+J105/$J$153,0) -> 0.001308045829 | L105: =(1-I105-K105)*(I105+K105)/(1-(I105+K105)/92) -> 0.002556175992 | M105: =IF(L105<>"",+L105/$L$153,0) -> 0.001391079311 | N105: =(1-I105-K105-M105)*(I105+K105+M105)/(1-(I105+K105+M105)/92) -> 0.003938288488 | O105: =IF(N105<>"",+N105/$N$153,0) -> 0.001485538608 | P105: =(1-I105-K105-M105-O105)*(I105+K105+M105+O105)/(1-(I105+K105+M105+O105)/92) -> 0.005410023975 | Q105: =IF(P105<>"",+P105/$P$153,0) -> 0.001585955895 | R105: =+I$7*I105+K$7*K105+M$7*M105+O$7*O105+Q$7*Q105 -> 0.001330182658 | U105: =ROUND(+$R105*U$6,0) -> 37 | X105: =ROUND(+$R105*X$6,0) -> 43 | AA105: =ROUND(+$R105*AA$6,0) -> 48 | AD105: =ROUND(+$R105*AD$6,0) -> 25
A106: 4B | B106: 72 | C106: =RANK($G106,$G$44:$G$152,1)+36 -> 88 | D106: =INDEX(BFnames,MATCH(B106,Lookups!A$2:A$145,0),2) -> David Gleeson | G106: =INDEX(BFnames,MATCH(B106,Lookups!A$2:A$145,0),4) -> 485 | H106: =IF(G106<>"Scr",1/G106,"") -> 0.00206185567 | I106: =IF(H106<>"",+H106/$H$153,0) -> 0.001866233448 | J106: =(1-I106)*I106/(1-I106/92) -> 0.001862788407 | K106: =IF(J106<>"",+J106/$J$153,0) -> 0.001944515521 | L106: =(1-I106-K106)*(I106+K106)/(1-(I106+K106)/92) -> 0.003796384412 | M106: =IF(L106<>"",+L106/$L$153,0) -> 0.002066004778 | N106: =(1-I106-K106-M106)*(I106+K106+M106)/(1-(I106+K106+M106)/92) -> 0.005842590724 | O106: =IF(N106<>"",+N106/$N$153,0) -> 0.002203849239 | P106: =(1-I106-K106-M106-O106)*(I106+K106+M106+O106)/(1-(I106+K106+M106+O106)/92) -> 0.008016010909 | Q106: =IF(P106<>"",+P106/$P$153,0) -> 0.002349904514 | R106: =+I$7*I106+K$7*K106+M$7*M106+O$7*O106+Q$7*Q106 -> 0.00197675203 | U106: =ROUND(+$R106*U$6,0) -> 55 | X106: =ROUND(+$R106*X$6,0) -> 63 | AA106: =ROUND(+$R106*AA$6,0) -> 71 | AD106: =ROUND(+$R106*AD$6,0) -> 38
A107: 4B | B107: 73 | C107: =RANK($G107,$G$44:$G$152,1)+36 -> 92 | D107: =INDEX(BFnames,MATCH(B107,Lookups!A$2:A$145,0),2) -> Matthew Giles | G107: =INDEX(BFnames,MATCH(B107,Lookups!A$2:A$145,0),4) -> 490 | H107: =IF(G107<>"Scr",1/G107,"") -> 0.002040816327 | I107: =IF(H107<>"",+H107/$H$153,0) -> 0.001847190249 | J107: =(1-I107)*I107/(1-I107/92) -> 0.001843815158 | K107: =IF(J107<>"",+J107/$J$153,0) -> 0.001924709848 | L107: =(1-I107-K107)*(I107+K107)/(1-(I107+K107)/92) -> 0.003757826934 | M107: =IF(L107<>"",+L107/$L$153,0) -> 0.002045021672 | N107: =(1-I107-K107-M107)*(I107+K107+M107)/(1-(I107+K107+M107)/92) -> 0.005783450864 | O107: =IF(N107<>"",+N107/$N$153,0) -> 0.002181541441 | P107: =(1-I107-K107-M107-O107)*(I107+K107+M107+O107)/(1-(I107+K107+M107+O107)/92) -> 0.00793517768 | Q107: =IF(P107<>"",+P107/$P$153,0) -> 0.002326208142 | R107: =+I$7*I107+K$7*K107+M$7*M107+O$7*O107+Q$7*Q107 -> 0.001956638672 | U107: =ROUND(+$R107*U$6,0) -> 55 | X107: =ROUND(+$R107*X$6,0) -> 63 | AA107: =ROUND(+$R107*AA$6,0) -> 70 | AD107: =ROUND(+$R107*AD$6,0) -> 37
A108: 4B | B108: 75 | C108: =RANK($G108,$G$44:$G$152,1)+36 -> 88 | D108: =INDEX(BFnames,MATCH(B108,Lookups!A$2:A$145,0),2) -> Mathew Goggin | G108: =INDEX(BFnames,MATCH(B108,Lookups!A$2:A$145,0),4) -> 485 | H108: =IF(G108<>"Scr",1/G108,"") -> 0.00206185567 | I108: =IF(H108<>"",+H108/$H$153,0) -> 0.001866233448 | J108: =(1-I108)*I108/(1-I108/92) -> 0.001862788407 | K108: =IF(J108<>"",+J108/$J$153,0) -> 0.001944515521 | L108: =(1-I108-K108)*(I108+K108)/(1-(I108+K108)/92) -> 0.003796384412 | M108: =IF(L108<>"",+L108/$L$153,0) -> 0.002066004778 | N108: =(1-I108-K108-M108)*(I108+K108+M108)/(1-(I108+K108+M108)/92) -> 0.005842590724 | O108: =IF(N108<>"",+N108/$N$153,0) -> 0.002203849239 | P108: =(1-I108-K108-M108-O108)*(I108+K108+M108+O108)/(1-(I108+K108+M108+O108)/92) -> 0.008016010909 | Q108: =IF(P108<>"",+P108/$P$153,0) -> 0.002349904514 | R108: =+I$7*I108+K$7*K108+M$7*M108+O$7*O108+Q$7*Q108 -> 0.00197675203 | U108: =ROUND(+$R108*U$6,0) -> 55 | X108: =ROUND(+$R108*X$6,0) -> 63 | AA108: =ROUND(+$R108*AA$6,0) -> 71 | AD108: =ROUND(+$R108*AD$6,0) -> 38
A109: 4B | B109: 77 | C109: =RANK($G109,$G$44:$G$152,1)+36 -> 99 | D109: =INDEX(BFnames,MATCH(B109,Lookups!A$2:A$145,0),2) -> Viktor Hovland | G109: =INDEX(BFnames,MATCH(B109,Lookups!A$2:A$145,0),4) -> 514.4047619 | H109: =IF(G109<>"Scr",1/G109,"") -> 0.001943994446 | I109: =IF(H109<>"",+H109/$H$153,0) -> 0.001759554517 | J109: =(1-I109)*I109/(1-I109/92) -> 0.001756492078 | K109: =IF(J109<>"",+J109/$J$153,0) -> 0.001833555597 | L109: =(1-I109-K109)*(I109+K109)/(1-(I109+K109)/92) -> 0.003580339505 | M109: =IF(L109<>"",+L109/$L$153,0) -> 0.001948432435 | N109: =(1-I109-K109-M109)*(I109+K109+M109)/(1-(I109+K109+M109)/92) -> 0.005511165815 | O109: =IF(N109<>"",+N109/$N$153,0) -> 0.002078834401 | P109: =(1-I109-K109-M109-O109)*(I109+K109+M109+O109)/(1-(I109+K109+M109+O109)/92) -> 0.007562933243 | Q109: =IF(P109<>"",+P109/$P$153,0) -> 0.002217084179 | R109: =+I$7*I109+K$7*K109+M$7*M109+O$7*O109+Q$7*Q109 -> 0.001864062867 | U109: =ROUND(+$R109*U$6,0) -> 52 | X109: =ROUND(+$R109*X$6,0) -> 60 | AA109: =ROUND(+$R109*AA$6,0) -> 67 | AD109: =ROUND(+$R109*AD$6,0) -> 36
A110: 4B | B110: 78 | C110: =RANK($G110,$G$44:$G$152,1)+36 -> 121 | D110: =INDEX(BFnames,MATCH(B110,Lookups!A$2:A$145,0),2) -> Ashley Hall | G110: =INDEX(BFnames,MATCH(B110,Lookups!A$2:A$145,0),4) -> 849.6153846 | H110: =IF(G110<>"Scr",1/G110,"") -> 0.001177003169 | I110: =IF(H110<>"",+H110/$H$153,0) -> 0.001065332901 | J110: =(1-I110)*I110/(1-I110/92) -> 0.00106421029 | K110: =IF(J110<>"",+J110/$J$153,0) -> 0.001110900958 | L110: =(1-I110-K110)*(I110+K110)/(1-(I110+K110)/92) -> 0.002171549232 | M110: =IF(L110<>"",+L110/$L$153,0) -> 0.001181764174 | N110: =(1-I110-K110-M110)*(I110+K110+M110)/(1-(I110+K110+M110)/92) -> 0.003346844042 | O110: =IF(N110<>"",+N110/$N$153,0) -> 0.001262443331 | P110: =(1-I110-K110-M110-O110)*(I110+K110+M110+O110)/(1-(I110+K110+M110+O110)/92) -> 0.004599323873 | Q110: =IF(P110<>"",+P110/$P$153,0) -> 0.001348298057 | R110: =+I$7*I110+K$7*K110+M$7*M110+O$7*O110+Q$7*Q110 -> 0.001129820487 | U110: =ROUND(+$R110*U$6,0) -> 32 | X110: =ROUND(+$R110*X$6,0) -> 36 | AA110: =ROUND(+$R110*AA$6,0) -> 41 | AD110: =ROUND(+$R110*AD$6,0) -> 22
A111: 4B | B111: 79 | C111: =RANK($G111,$G$44:$G$152,1)+36 -> 100 | D111: =INDEX(BFnames,MATCH(B111,Lookups!A$2:A$145,0),2) -> Simon Hawkes | G111: =INDEX(BFnames,MATCH(B111,Lookups!A$2:A$145,0),4) -> 531.25 | H111: =IF(G111<>"Scr",1/G111,"") -> 0.001882352941 | I111: =IF(H111<>"",+H111/$H$153,0) -> 0.001703761359 | J111: =(1-I111)*I111/(1-I111/92) -> 0.001700890056 | K111: =IF(J111<>"",+J111/$J$153,0) -> 0.001775514116 | L111: =(1-I111-K111)*(I111+K111)/(1-(I111+K111)/92) -> 0.003467301245 | M111: =IF(L111<>"",+L111/$L$153,0) -> 0.001886916645 | N111: =(1-I111-K111-M111)*(I111+K111+M111)/(1-(I111+K111+M111)/92) -> 0.005337707442 | O111: =IF(N111<>"",+N111/$N$153,0) -> 0.00201340519 | P111: =(1-I111-K111-M111-O111)*(I111+K111+M111+O111)/(1-(I111+K111+M111+O111)/92) -> 0.007325726473 | Q111: =IF(P111<>"",+P111/$P$153,0) -> 0.002147546691 | R111: =+I$7*I111+K$7*K111+M$7*M111+O$7*O111+Q$7*Q111 -> 0.001805111554 | U111: =ROUND(+$R111*U$6,0) -> 51 | X111: =ROUND(+$R111*X$6,0) -> 58 | AA111: =ROUND(+$R111*AA$6,0) -> 65 | AD111: =ROUND(+$R111*AD$6,0) -> 34
A112: 4B | B112: 83 | C112: =RANK($G112,$G$44:$G$152,1)+36 -> 119 | D112: =INDEX(BFnames,MATCH(B112,Lookups!A$2:A$145,0),2) -> Damien Jordan | G112: =INDEX(BFnames,MATCH(B112,Lookups!A$2:A$145,0),4) -> 819.3939394 | H112: =IF(G112<>"Scr",1/G112,"") -> 0.001220414201 | I112: =IF(H112<>"",+H112/$H$153,0) -> 0.001104625234 | J112: =(1-I112)*I112/(1-I112/92) -> 0.001103418286 | K112: =IF(J112<>"",+J112/$J$153,0) -> 0.001151829147 | L112: =(1-I112-K112)*(I112+K112)/(1-(I112+K112)/92) -> 0.002251418015 | M112: =IF(L112<>"",+L112/$L$153,0) -> 0.001225229026 | N112: =(1-I112-K112-M112)*(I112+K112+M112)/(1-(I112+K112+M112)/92) -> 0.003469692597 | O112: =IF(N112<>"",+N112/$N$153,0) -> 0.001308782311 | P112: =(1-I112-K112-M112-O112)*(I112+K112+M112+O112)/(1-(I112+K112+M112+O112)/92) -> 0.004767765416 | Q112: =IF(P112<>"",+P112/$P$153,0) -> 0.001397676924 | R112: =+I$7*I112+K$7*K112+M$7*M112+O$7*O112+Q$7*Q112 -> 0.00117142007 | U112: =ROUND(+$R112*U$6,0) -> 33 | X112: =ROUND(+$R112*X$6,0) -> 37 | AA112: =ROUND(+$R112*AA$6,0) -> 42 | AD112: =ROUND(+$R112*AD$6,0) -> 22
A113: 4B | B113: 84 | C113: =RANK($G113,$G$44:$G$152,1)+36 -> 111 | D113: =INDEX(BFnames,MATCH(B113,Lookups!A$2:A$145,0),2) -> Steven Jeffress | G113: =INDEX(BFnames,MATCH(B113,Lookups!A$2:A$145,0),4) -> 716.2162162 | H113: =IF(G113<>"Scr",1/G113,"") -> 0.001396226415 | I113: =IF(H113<>"",+H113/$H$153,0) -> 0.001263756952 | J113: =(1-I113)*I113/(1-I113/92) -> 0.001262177208 | K113: =IF(J113<>"",+J113/$J$153,0) -> 0.001317553385 | L113: =(1-I113-K113)*(I113+K113)/(1-(I113+K113)/92) -> 0.002574719414 | M113: =IF(L113<>"",+L113/$L$153,0) -> 0.001401170702 | N113: =(1-I113-K113-M113)*(I113+K113+M113)/(1-(I113+K113+M113)/92) -> 0.003966792597 | O113: =IF(N113<>"",+N113/$N$153,0) -> 0.001496290475 | P113: =(1-I113-K113-M113-O113)*(I113+K113+M113+O113)/(1-(I113+K113+M113+O113)/92) -> 0.005449079079 | Q113: =IF(P113<>"",+P113/$P$153,0) -> 0.001597404952 | R113: =+I$7*I113+K$7*K113+M$7*M113+O$7*O113+Q$7*Q113 -> 0.001339844308 | U113: =ROUND(+$R113*U$6,0) -> 38 | X113: =ROUND(+$R113*X$6,0) -> 43 | AA113: =ROUND(+$R113*AA$6,0) -> 48 | AD113: =ROUND(+$R113*AD$6,0) -> 26
A114: 4B | B114: 85 | C114: =RANK($G114,$G$44:$G$152,1)+36 -> 90 | D114: =INDEX(BFnames,MATCH(B114,Lookups!A$2:A$145,0),2) -> Matt Jager | G114: =INDEX(BFnames,MATCH(B114,Lookups!A$2:A$145,0),4) -> 489 | H114: =IF(G114<>"Scr",1/G114,"") -> 0.002044989775 | I114: =IF(H114<>"",+H114/$H$153,0) -> 0.001850967734 | J114: =(1-I114)*I114/(1-I114/92) -> 0.001847578825 | K114: =IF(J114<>"",+J114/$J$153,0) -> 0.001928638641 | L114: =(1-I114-K114)*(I114+K114)/(1-(I114+K114)/92) -> 0.003765475646 | M114: =IF(L114<>"",+L114/$L$153,0) -> 0.002049184127 | N114: =(1-I114-K114-M114)*(I114+K114+M114)/(1-(I114+K114+M114)/92) -> 0.005795182865 | O114: =IF(N114<>"",+N114/$N$153,0) -> 0.0021859668 | P114: =(1-I114-K114-M114-O114)*(I114+K114+M114+O114)/(1-(I114+K114+M114+O114)/92) -> 0.007951213653 | Q114: =IF(P114<>"",+P114/$P$153,0) -> 0.00233090911 | R114: =+I$7*I114+K$7*K114+M$7*M114+O$7*O114+Q$7*Q114 -> 0.001960628532 | U114: =ROUND(+$R114*U$6,0) -> 55 | X114: =ROUND(+$R114*X$6,0) -> 63 | AA114: =ROUND(+$R114*AA$6,0) -> 71 | AD114: =ROUND(+$R114*AD$6,0) -> 37
A115: 4C | B115: 88 | C115: =RANK($G115,$G$44:$G$152,1)+36 -> 74 | D115: =INDEX(BFnames,MATCH(B115,Lookups!A$2:A$145,0),2) -> Peter Lonard | G115: =INDEX(BFnames,MATCH(B115,Lookups!A$2:A$145,0),4) -> 400 | H115: =IF(G115<>"Scr",1/G115,"") -> 0.0025 | I115: =IF(H115<>"",+H115/$H$153,0) -> 0.002262808055 | J115: =(1-I115)*I115/(1-I115/92) -> 0.002257743286 | K115: =IF(J115<>"",+J115/$J$153,0) -> 0.002356798467 | L115: =(1-I115-K115)*(I115+K115)/(1-(I115+K115)/92) -> 0.004598496663 | M115: =IF(L115<>"",+L115/$L$153,0) -> 0.00250251688 | N115: =(1-I115-K115-M115)*(I115+K115+M115)/(1-(I115+K115+M115)/92) -> 0.007071946231 | O115: =IF(N115<>"",+N115/$N$153,0) -> 0.002667567191 | P115: =(1-I115-K115-M115-O115)*(I115+K115+M115+O115)/(1-(I115+K115+M115+O115)/92) -> 0.009694884181 | Q115: =IF(P115<>"",+P115/$P$153,0) -> 0.002842068499 | R115: =+I$7*I115+K$7*K115+M$7*M115+O$7*O115+Q$7*Q115 -> 0.002395343878 | U115: =ROUND(+$R115*U$6,0) -> 67 | X115: =ROUND(+$R115*X$6,0) -> 77 | AA115: =ROUND(+$R115*AA$6,0) -> 86 | AD115: =ROUND(+$R115*AD$6,0) -> 46
A116: 4C | B116: 89 | C116: =RANK($G116,$G$44:$G$152,1)+36 -> 110 | D116: =INDEX(BFnames,MATCH(B116,Lookups!A$2:A$145,0),2) -> Ryan Lynch | G116: =INDEX(BFnames,MATCH(B116,Lookups!A$2:A$145,0),4) -> 708 | H116: =IF(G116<>"Scr",1/G116,"") -> 0.001412429379 | I116: =IF(H116<>"",+H116/$H$153,0) -> 0.00127842263 | J116: =(1-I116)*I116/(1-I116/92) -> 0.001276806008 | K116: =IF(J116<>"",+J116/$J$153,0) -> 0.001332824002 | L116: =(1-I116-K116)*(I116+K116)/(1-(I116+K116)/92) -> 0.002604501947 | M116: =IF(L116<>"",+L116/$L$153,0) -> 0.001417378453 | N116: =(1-I116-K116-M116)*(I116+K116+M116)/(1-(I116+K116+M116)/92) -> 0.004012570974 | O116: =IF(N116<>"",+N116/$N$153,0) -> 0.001513558267 | P116: =(1-I116-K116-M116-O116)*(I116+K116+M116+O116)/(1-(I116+K116+M116+O116)/92) -> 0.005511799593 | Q116: =IF(P116<>"",+P116/$P$153,0) -> 0.001615791556 | R116: =+I$7*I116+K$7*K116+M$7*M116+O$7*O116+Q$7*Q116 -> 0.001355362218 | U116: =ROUND(+$R116*U$6,0) -> 38 | X116: =ROUND(+$R116*X$6,0) -> 43 | AA116: =ROUND(+$R116*AA$6,0) -> 49 | AD116: =ROUND(+$R116*AD$6,0) -> 26
A117: 4C | B117: 90 | C117: =RANK($G117,$G$44:$G$152,1)+36 -> 139 | D117: =INDEX(BFnames,MATCH(B117,Lookups!A$2:A$145,0),2) -> Matthew Lisk | G117: =INDEX(BFnames,MATCH(B117,Lookups!A$2:A$145,0),4) -> 1110 | H117: =IF(G117<>"Scr",1/G117,"") -> 0.0009009009009 | I117: =IF(H117<>"",+H117/$H$153,0) -> 0.0008154263263 | J117: =(1-I117)*I117/(1-I117/92) -> 0.0008147686277 | K117: =IF(J117<>"",+J117/$J$153,0) -> 0.0008505154083 | L117: =(1-I117-K117)*(I117+K117)/(1-(I117+K117)/92) -> 0.00166319649 | M117: =IF(L117<>"",+L117/$L$153,0) -> 0.0009051169538 | N117: =(1-I117-K117-M117)*(I117+K117+M117)/(1-(I117+K117+M117)/92) -> 0.002564520014 | O117: =IF(N117<>"",+N117/$N$153,0) -> 0.0009673474919 | P117: =(1-I117-K117-M117-O117)*(I117+K117+M117+O117)/(1-(I117+K117+M117+O117)/92) -> 0.003526021476 | Q117: =IF(P117<>"",+P117/$P$153,0) -> 0.001033657997 | R117: =+I$7*I117+K$7*K117+M$7*M117+O$7*O117+Q$7*Q117 -> 0.0008651209297 | U117: =ROUND(+$R117*U$6,0) -> 24 | X117: =ROUND(+$R117*X$6,0) -> 28 | AA117: =ROUND(+$R117*AA$6,0) -> 31 | AD117: =ROUND(+$R117*AD$6,0) -> 17
A118: 4C | B118: 91 | C118: =RANK($G118,$G$44:$G$152,1)+36 -> 135 | D118: =INDEX(BFnames,MATCH(B118,Lookups!A$2:A$145,0),2) -> Sam Lee | G118: =INDEX(BFnames,MATCH(B118,Lookups!A$2:A$145,0),4) -> 1100 | H118: =IF(G118<>"Scr",1/G118,"") -> 0.0009090909091 | I118: =IF(H118<>"",+H118/$H$153,0) -> 0.0008228392929 | J118: =(1-I118)*I118/(1-I118/92) -> 0.0008221695818 | K118: =IF(J118<>"",+J118/$J$153,0) -> 0.0008582410684 | L118: =(1-I118-K118)*(I118+K118)/(1-(I118+K118)/92) -> 0.001678284997 | M118: =IF(L118<>"",+L118/$L$153,0) -> 0.0009133281684 | N118: =(1-I118-K118-M118)*(I118+K118+M118)/(1-(I118+K118+M118)/92) -> 0.002587750549 | O118: =IF(N118<>"",+N118/$N$153,0) -> 0.000976110145 | P118: =(1-I118-K118-M118-O118)*(I118+K118+M118+O118)/(1-(I118+K118+M118+O118)/92) -> 0.003557908153 | Q118: =IF(P118<>"",+P118/$P$153,0) -> 0.00104300562 | R118: =+I$7*I118+K$7*K118+M$7*M118+O$7*O118+Q$7*Q118 -> 0.0008729756472 | U118: =ROUND(+$R118*U$6,0) -> 24 | X118: =ROUND(+$R118*X$6,0) -> 28 | AA118: =ROUND(+$R118*AA$6,0) -> 31 | AD118: =ROUND(+$R118*AD$6,0) -> 17
A119: 4C | B119: 92 | C119: =RANK($G119,$G$44:$G$152,1)+36 -> 139 | D119: =INDEX(BFnames,MATCH(B119,Lookups!A$2:A$145,0),2) -> Jediah Morgan | G119: =INDEX(BFnames,MATCH(B119,Lookups!A$2:A$145,0),4) -> 1110 | H119: =IF(G119<>"Scr",1/G119,"") -> 0.0009009009009 | I119: =IF(H119<>"",+H119/$H$153,0) -> 0.0008154263263 | J119: =(1-I119)*I119/(1-I119/92) -> 0.0008147686277 | K119: =IF(J119<>"",+J119/$J$153,0) -> 0.0008505154083 | L119: =(1-I119-K119)*(I119+K119)/(1-(I119+K119)/92) -> 0.00166319649 | M119: =IF(L119<>"",+L119/$L$153,0) -> 0.0009051169538 | N119: =(1-I119-K119-M119)*(I119+K119+M119)/(1-(I119+K119+M119)/92) -> 0.002564520014 | O119: =IF(N119<>"",+N119/$N$153,0) -> 0.0009673474919 | P119: =(1-I119-K119-M119-O119)*(I119+K119+M119+O119)/(1-(I119+K119+M119+O119)/92) -> 0.003526021476 | Q119: =IF(P119<>"",+P119/$P$153,0) -> 0.001033657997 | R119: =+I$7*I119+K$7*K119+M$7*M119+O$7*O119+Q$7*Q119 -> 0.0008651209297 | U119: =ROUND(+$R119*U$6,0) -> 24 | X119: =ROUND(+$R119*X$6,0) -> 28 | AA119: =ROUND(+$R119*AA$6,0) -> 31 | AD119: =ROUND(+$R119*AD$6,0) -> 17
A120: 4C | B120: 93 | C120: =RANK($G120,$G$44:$G$152,1)+36 -> 106 | D120: =INDEX(BFnames,MATCH(B120,Lookups!A$2:A$145,0),2) -> Brad Moules | G120: =INDEX(BFnames,MATCH(B120,Lookups!A$2:A$145,0),4) -> 706 | H120: =IF(G120<>"Scr",1/G120,"") -> 0.001416430595 | I120: =IF(H120<>"",+H120/$H$153,0) -> 0.001282044224 | J120: =(1-I120)*I120/(1-I120/92) -> 0.00128041843 | K120: =IF(J120<>"",+J120/$J$153,0) -> 0.001336594913 | L120: =(1-I120-K120)*(I120+K120)/(1-(I120+K120)/92) -> 0.002611856209 | M120: =IF(L120<>"",+L120/$L$153,0) -> 0.001421380667 | N120: =(1-I120-K120-M120)*(I120+K120+M120)/(1-(I120+K120+M120)/92) -> 0.004023874746 | O120: =IF(N120<>"",+N120/$N$153,0) -> 0.001517822096 | P120: =(1-I120-K120-M120-O120)*(I120+K120+M120+O120)/(1-(I120+K120+M120+O120)/92) -> 0.005527286204 | Q120: =IF(P120<>"",+P120/$P$153,0) -> 0.001620331477 | R120: =+I$7*I120+K$7*K120+M$7*M120+O$7*O120+Q$7*Q120 -> 0.001359194156 | U120: =ROUND(+$R120*U$6,0) -> 38 | X120: =ROUND(+$R120*X$6,0) -> 43 | AA120: =ROUND(+$R120*AA$6,0) -> 49 | AD120: =ROUND(+$R120*AD$6,0) -> 26
A121: 4C | B121: 94 | C121: =RANK($G121,$G$44:$G$152,1)+36 -> 135 | D121: =INDEX(BFnames,MATCH(B121,Lookups!A$2:A$145,0),2) -> Anthony Marchesani | G121: =INDEX(BFnames,MATCH(B121,Lookups!A$2:A$145,0),4) -> 1100 | H121: =IF(G121<>"Scr",1/G121,"") -> 0.0009090909091 | I121: =IF(H121<>"",+H121/$H$153,0) -> 0.0008228392929 | J121: =(1-I121)*I121/(1-I121/92) -> 0.0008221695818 | K121: =IF(J121<>"",+J121/$J$153,0) -> 0.0008582410684 | L121: =(1-I121-K121)*(I121+K121)/(1-(I121+K121)/92) -> 0.001678284997 | M121: =IF(L121<>"",+L121/$L$153,0) -> 0.0009133281684 | N121: =(1-I121-K121-M121)*(I121+K121+M121)/(1-(I121+K121+M121)/92) -> 0.002587750549 | O121: =IF(N121<>"",+N121/$N$153,0) -> 0.000976110145 | P121: =(1-I121-K121-M121-O121)*(I121+K121+M121+O121)/(1-(I121+K121+M121+O121)/92) -> 0.003557908153 | Q121: =IF(P121<>"",+P121/$P$153,0) -> 0.00104300562 | R121: =+I$7*I121+K$7*K121+M$7*M121+O$7*O121+Q$7*Q121 -> 0.0008729756472 | U121: =ROUND(+$R121*U$6,0) -> 24 | X121: =ROUND(+$R121*X$6,0) -> 28 | AA121: =ROUND(+$R121*AA$6,0) -> 31 | AD121: =ROUND(+$R121*AD$6,0) -> 17
A122: 4C | B122: 97 | C122: =RANK($G122,$G$44:$G$152,1)+36 -> 96 | D122: =INDEX(BFnames,MATCH(B122,Lookups!A$2:A$145,0),2) -> Kieran Muir | G122: =INDEX(BFnames,MATCH(B122,Lookups!A$2:A$145,0),4) -> 491 | H122: =IF(G122<>"Scr",1/G122,"") -> 0.002036659878 | I122: =IF(H122<>"",+H122/$H$153,0) -> 0.001843428151 | J122: =(1-I122)*I122/(1-I122/92) -> 0.001840066794 | K122: =IF(J122<>"",+J122/$J$153,0) -> 0.00192079703 | L122: =(1-I122-K122)*(I122+K122)/(1-(I122+K122)/92) -> 0.003750209231 | M122: =IF(L122<>"",+L122/$L$153,0) -> 0.002040876094 | N122: =(1-I122-K122-M122)*(I122+K122+M122)/(1-(I122+K122+M122)/92) -> 0.005771766266 | O122: =IF(N122<>"",+N122/$N$153,0) -> 0.002177133963 | P122: =(1-I122-K122-M122-O122)*(I122+K122+M122+O122)/(1-(I122+K122+M122+O122)/92) -> 0.007919206256 | Q122: =IF(P122<>"",+P122/$P$153,0) -> 0.002321526098 | R122: =+I$7*I122+K$7*K122+M$7*M122+O$7*O122+Q$7*Q122 -> 0.001952665017 | U122: =ROUND(+$R122*U$6,0) -> 55 | X122: =ROUND(+$R122*X$6,0) -> 62 | AA122: =ROUND(+$R122*AA$6,0) -> 70 | AD122: =ROUND(+$R122*AD$6,0) -> 37
A123: 4C | B123: 101 | C123: =RANK($G123,$G$44:$G$152,1)+36 -> 101 | D123: =INDEX(BFnames,MATCH(B123,Lookups!A$2:A$145,0),2) -> Max McCardle | G123: =INDEX(BFnames,MATCH(B123,Lookups!A$2:A$145,0),4) -> 579.6153846 | H123: =IF(G123<>"Scr",1/G123,"") -> 0.001725282017 | I123: =IF(H123<>"",+H123/$H$153,0) -> 0.001561592819 | J123: =(1-I123)*I123/(1-I123/92) -> 0.001559180712 | K123: =IF(J123<>"",+J123/$J$153,0) -> 0.001627587483 | L123: =(1-I123-K123)*(I123+K123)/(1-(I123+K123)/92) -> 0.003179119634 | M123: =IF(L123<>"",+L123/$L$153,0) -> 0.001730087273 | N123: =(1-I123-K123-M123)*(I123+K123+M123)/(1-(I123+K123+M123)/92) -> 0.004895330135 | O123: =IF(N123<>"",+N123/$N$153,0) -> 0.001846538651 | P123: =(1-I123-K123-M123-O123)*(I123+K123+M123+O123)/(1-(I123+K123+M123+O123)/92) -> 0.006720524328 | Q123: =IF(P123<>"",+P123/$P$153,0) -> 0.001970130858 | R123: =+I$7*I123+K$7*K123+M$7*M123+O$7*O123+Q$7*Q123 -> 0.001654849633 | U123: =ROUND(+$R123*U$6,0) -> 46 | X123: =ROUND(+$R123*X$6,0) -> 53 | AA123: =ROUND(+$R123*AA$6,0) -> 60 | AD123: =ROUND(+$R123*AD$6,0) -> 32
A124: 4C | B124: 104 | C124: =RANK($G124,$G$44:$G$152,1)+36 -> 124 | D124: =INDEX(BFnames,MATCH(B124,Lookups!A$2:A$145,0),2) -> James Marchesani | G124: =INDEX(BFnames,MATCH(B124,Lookups!A$2:A$145,0),4) -> 858.9655172 | H124: =IF(G124<>"Scr",1/G124,"") -> 0.001164191088 | I124: =IF(H124<>"",+H124/$H$153,0) -> 0.001053736389 | J124: =(1-I124)*I124/(1-I124/92) -> 0.001052638085 | K124: =IF(J124<>"",+J124/$J$153,0) -> 0.00109882104 | L124: =(1-I124-K124)*(I124+K124)/(1-(I124+K124)/92) -> 0.002147974182 | M124: =IF(L124<>"",+L124/$L$153,0) -> 0.001168934555 | N124: =(1-I124-K124-M124)*(I124+K124+M124)/(1-(I124+K124+M124)/92) -> 0.003310579196 | O124: =IF(N124<>"",+N124/$N$153,0) -> 0.001248764082 | P124: =(1-I124-K124-M124-O124)*(I124+K124+M124+O124)/(1-(I124+K124+M124+O124)/92) -> 0.004549594834 | Q124: =IF(P124<>"",+P124/$P$153,0) -> 0.001333719921 | R124: =+I$7*I124+K$7*K124+M$7*M124+O$7*O124+Q$7*Q124 -> 0.00111754206 | U124: =ROUND(+$R124*U$6,0) -> 31 | X124: =ROUND(+$R124*X$6,0) -> 36 | AA124: =ROUND(+$R124*AA$6,0) -> 40 | AD124: =ROUND(+$R124*AD$6,0) -> 21
A125: 4C | B125: 105 | C125: =RANK($G125,$G$44:$G$152,1)+36 -> 120 | D125: =INDEX(BFnames,MATCH(B125,Lookups!A$2:A$145,0),2) -> Andrew Martin | G125: =INDEX(BFnames,MATCH(B125,Lookups!A$2:A$145,0),4) -> 847.826087 | H125: =IF(G125<>"Scr",1/G125,"") -> 0.001179487179 | I125: =IF(H125<>"",+H125/$H$153,0) -> 0.001067581236 | J125: =(1-I125)*I125/(1-I125/92) -> 0.001066453882 | K125: =IF(J125<>"",+J125/$J$153,0) -> 0.001113242985 | L125: =(1-I125-K125)*(I125+K125)/(1-(I125+K125)/92) -> 0.002176119811 | M125: =IF(L125<>"",+L125/$L$153,0) -> 0.001184251498 | N125: =(1-I125-K125-M125)*(I125+K125+M125)/(1-(I125+K125+M125)/92) -> 0.003353874658 | O125: =IF(N125<>"",+N125/$N$153,0) -> 0.001265095309 | P125: =(1-I125-K125-M125-O125)*(I125+K125+M125+O125)/(1-(I125+K125+M125+O125)/92) -> 0.004608964503 | Q125: =IF(P125<>"",+P125/$P$153,0) -> 0.00135112422 | R125: =+I$7*I125+K$7*K125+M$7*M125+O$7*O125+Q$7*Q125 -> 0.001132200982 | U125: =ROUND(+$R125*U$6,0) -> 32 | X125: =ROUND(+$R125*X$6,0) -> 36 | AA125: =ROUND(+$R125*AA$6,0) -> 41 | AD125: =ROUND(+$R125*AD$6,0) -> 22
A126: 4C | B126: 106 | C126: =RANK($G126,$G$44:$G$152,1)+36 -> 126 | D126: =INDEX(BFnames,MATCH(B126,Lookups!A$2:A$145,0),2) -> Daniel Nisbet | G126: =INDEX(BFnames,MATCH(B126,Lookups!A$2:A$145,0),4) -> 864.1935484 | H126: =IF(G126<>"Scr",1/G126,"") -> 0.00115714819 | I126: =IF(H126<>"",+H126/$H$153,0) -> 0.001047361698 | J126: =(1-I126)*I126/(1-I126/92) -> 0.001046276643 | K126: =IF(J126<>"",+J126/$J$153,0) -> 0.001092180498 | L126: =(1-I126-K126)*(I126+K126)/(1-(I126+K126)/92) -> 0.002135014207 | M126: =IF(L126<>"",+L126/$L$153,0) -> 0.001161881694 | N126: =(1-I126-K126-M126)*(I126+K126+M126)/(1-(I126+K126+M126)/92) -> 0.003290642576 | O126: =IF(N126<>"",+N126/$N$153,0) -> 0.001241243907 | P126: =(1-I126-K126-M126-O126)*(I126+K126+M126+O126)/(1-(I126+K126+M126+O126)/92) -> 0.004522255261 | Q126: =IF(P126<>"",+P126/$P$153,0) -> 0.001325705288 | R126: =+I$7*I126+K$7*K126+M$7*M126+O$7*O126+Q$7*Q126 -> 0.001110792328 | U126: =ROUND(+$R126*U$6,0) -> 31 | X126: =ROUND(+$R126*X$6,0) -> 36 | AA126: =ROUND(+$R126*AA$6,0) -> 40 | AD126: =ROUND(+$R126*AD$6,0) -> 21
A127: 4C | B127: 108 | C127: =RANK($G127,$G$44:$G$152,1)+36 -> 115 | D127: =INDEX(BFnames,MATCH(B127,Lookups!A$2:A$145,0),2) -> James Nitties | G127: =INDEX(BFnames,MATCH(B127,Lookups!A$2:A$145,0),4) -> 734 | H127: =IF(G127<>"Scr",1/G127,"") -> 0.00136239782 | I127: =IF(H127<>"",+H127/$H$153,0) -> 0.001233137905 | J127: =(1-I127)*I127/(1-I127/92) -> 0.001231633784 | K127: =IF(J127<>"",+J127/$J$153,0) -> 0.001285669913 | L127: =(1-I127-K127)*(I127+K127)/(1-(I127+K127)/92) -> 0.002512532214 | M127: =IF(L127<>"",+L127/$L$153,0) -> 0.001367328225 | N127: =(1-I127-K127-M127)*(I127+K127+M127)/(1-(I127+K127+M127)/92) -> 0.003871197511 | O127: =IF(N127<>"",+N127/$N$153,0) -> 0.001460231615 | P127: =(1-I127-K127-M127-O127)*(I127+K127+M127+O127)/(1-(I127+K127+M127+O127)/92) -> 0.00531809306 | Q127: =IF(P127<>"",+P127/$P$153,0) -> 0.001559006222 | R127: =+I$7*I127+K$7*K127+M$7*M127+O$7*O127+Q$7*Q127 -> 0.0013074437 | U127: =ROUND(+$R127*U$6,0) -> 37 | X127: =ROUND(+$R127*X$6,0) -> 42 | AA127: =ROUND(+$R127*AA$6,0) -> 47 | AD127: =ROUND(+$R127*AD$6,0) -> 25
A128: 4C | B128: 110 | C128: =RANK($G128,$G$44:$G$152,1)+36 -> 129 | D128: =INDEX(BFnames,MATCH(B128,Lookups!A$2:A$145,0),2) -> Peter OMalley | G128: =INDEX(BFnames,MATCH(B128,Lookups!A$2:A$145,0),4) -> 906 | H128: =IF(G128<>"Scr",1/G128,"") -> 0.001103752759 | I128: =IF(H128<>"",+H128/$H$153,0) -> 0.000999032254 | J128: =(1-I128)*I128/(1-I128/92) -> 0.0009980450264 | K128: =IF(J128<>"",+J128/$J$153,0) -> 0.001041832791 | L128: =(1-I128-K128)*(I128+K128)/(1-(I128+K128)/92) -> 0.002036745096 | M128: =IF(L128<>"",+L128/$L$153,0) -> 0.001108403324 | N128: =(1-I128-K128-M128)*(I128+K128+M128)/(1-(I128+K128+M128)/92) -> 0.003139457944 | O128: =IF(N128<>"",+N128/$N$153,0) -> 0.001184216443 | P128: =(1-I128-K128-M128-O128)*(I128+K128+M128+O128)/(1-(I128+K128+M128+O128)/92) -> 0.004314908966 | Q128: =IF(P128<>"",+P128/$P$153,0) -> 0.001264921439 | R128: =+I$7*I128+K$7*K128+M$7*M128+O$7*O128+Q$7*Q128 -> 0.00105961519 | U128: =ROUND(+$R128*U$6,0) -> 30 | X128: =ROUND(+$R128*X$6,0) -> 34 | AA128: =ROUND(+$R128*AA$6,0) -> 38 | AD128: =ROUND(+$R128*AD$6,0) -> 20
A129: 4C | B129: 111 | C129: =RANK($G129,$G$44:$G$152,1)+36 -> 73 | D129: =INDEX(BFnames,MATCH(B129,Lookups!A$2:A$145,0),2) -> Nick OHern | G129: =INDEX(BFnames,MATCH(B129,Lookups!A$2:A$145,0),4) -> 397 | H129: =IF(G129<>"Scr",1/G129,"") -> 0.002518891688 | I129: =IF(H129<>"",+H129/$H$153,0) -> 0.002279907361 | J129: =(1-I129)*I129/(1-I129/92) -> 0.002274765755 | K129: =IF(J129<>"",+J129/$J$153,0) -> 0.002374567772 | L129: =(1-I129-K129)*(I129+K129)/(1-(I129+K129)/92) -> 0.00463304539 | M129: =IF(L129<>"",+L129/$L$153,0) -> 0.00252131841 | N129: =(1-I129-K129-M129)*(I129+K129+M129)/(1-(I129+K129+M129)/92) -> 0.007124857253 | O129: =IF(N129<>"",+N129/$N$153,0) -> 0.002687525445 | P129: =(1-I129-K129-M129-O129)*(I129+K129+M129+O129)/(1-(I129+K129+M129+O129)/92) -> 0.009767081056 | Q129: =IF(P129<>"",+P129/$P$153,0) -> 0.002863233112 | R129: =+I$7*I129+K$7*K129+M$7*M129+O$7*O129+Q$7*Q129 -> 0.002413380983 | U129: =ROUND(+$R129*U$6,0) -> 68 | X129: =ROUND(+$R129*X$6,0) -> 77 | AA129: =ROUND(+$R129*AA$6,0) -> 87 | AD129: =ROUND(+$R129*AD$6,0) -> 46
A130: 4C | B130: 113 | C130: =RANK($G130,$G$44:$G$152,1)+36 -> 77 | D130: =INDEX(BFnames,MATCH(B130,Lookups!A$2:A$145,0),2) -> Brett Rankin | G130: =INDEX(BFnames,MATCH(B130,Lookups!A$2:A$145,0),4) -> 407 | H130: =IF(G130<>"Scr",1/G130,"") -> 0.002457002457 | I130: =IF(H130<>"",+H130/$H$153,0) -> 0.002223889981 | J130: =(1-I130)*I130/(1-I130/92) -> 0.002218997933 | K130: =IF(J130<>"",+J130/$J$153,0) -> 0.002316353219 | L130: =(1-I130-K130)*(I130+K130)/(1-(I130+K130)/92) -> 0.004519852448 | M130: =IF(L130<>"",+L130/$L$153,0) -> 0.002459718442 | N130: =(1-I130-K130-M130)*(I130+K130+M130)/(1-(I130+K130+M130)/92) -> 0.006951491093 | O130: =IF(N130<>"",+N130/$N$153,0) -> 0.002622131017 | P130: =(1-I130-K130-M130-O130)*(I130+K130+M130+O130)/(1-(I130+K130+M130+O130)/92) -> 0.009530504768 | Q130: =IF(P130<>"",+P130/$P$153,0) -> 0.002793880451 | R130: =+I$7*I130+K$7*K130+M$7*M130+O$7*O130+Q$7*Q130 -> 0.002354287817 | U130: =ROUND(+$R130*U$6,0) -> 66 | X130: =ROUND(+$R130*X$6,0) -> 75 | AA130: =ROUND(+$R130*AA$6,0) -> 85 | AD130: =ROUND(+$R130*AD$6,0) -> 45
A131: 4D | B131: 115 | C131: =RANK($G131,$G$44:$G$152,1)+36 -> 82 | D131: =INDEX(BFnames,MATCH(B131,Lookups!A$2:A$145,0),2) -> Craig Parry | G131: =INDEX(BFnames,MATCH(B131,Lookups!A$2:A$145,0),4) -> 415 | H131: =IF(G131<>"Scr",1/G131,"") -> 0.002409638554 | I131: =IF(H131<>"",+H131/$H$153,0) -> 0.002181019812 | J131: =(1-I131)*I131/(1-I131/92) -> 0.002176314558 | K131: =IF(J131<>"",+J131/$J$153,0) -> 0.002271797173 | L131: =(1-I131-K131)*(I131+K131)/(1-(I131+K131)/92) -> 0.004433203974 | M131: =IF(L131<>"",+L131/$L$153,0) -> 0.00241256406 | N131: =(1-I131-K131-M131)*(I131+K131+M131)/(1-(I131+K131+M131)/92) -> 0.00681875643 | O131: =IF(N131<>"",+N131/$N$153,0) -> 0.002572062957 | P131: =(1-I131-K131-M131-O131)*(I131+K131+M131+O131)/(1-(I131+K131+M131+O131)/92) -> 0.009349337717 | Q131: =IF(P131<>"",+P131/$P$153,0) -> 0.002740771083 | R131: =+I$7*I131+K$7*K131+M$7*M131+O$7*O131+Q$7*Q131 -> 0.00230905684 | U131: =ROUND(+$R131*U$6,0) -> 65 | X131: =ROUND(+$R131*X$6,0) -> 74 | AA131: =ROUND(+$R131*AA$6,0) -> 83 | AD131: =ROUND(+$R131*AD$6,0) -> 44
A132: 4D | B132: 116 | C132: =RANK($G132,$G$44:$G$152,1)+36 -> 109 | D132: =INDEX(BFnames,MATCH(B132,Lookups!A$2:A$145,0),2) -> Gareth Paddison | G132: =INDEX(BFnames,MATCH(B132,Lookups!A$2:A$145,0),4) -> 706.2068966 | H132: =IF(G132<>"Scr",1/G132,"") -> 0.001416015625 | I132: =IF(H132<>"",+H132/$H$153,0) -> 0.001281668625 | J132: =(1-I132)*I132/(1-I132/92) -> 0.001280043783 | K132: =IF(J132<>"",+J132/$J$153,0) -> 0.00133620383 | L132: =(1-I132-K132)*(I132+K132)/(1-(I132+K132)/92) -> 0.002611093498 | M132: =IF(L132<>"",+L132/$L$153,0) -> 0.001420965597 | N132: =(1-I132-K132-M132)*(I132+K132+M132)/(1-(I132+K132+M132)/92) -> 0.004022702437 | O132: =IF(N132<>"",+N132/$N$153,0) -> 0.001517379896 | P132: =(1-I132-K132-M132-O132)*(I132+K132+M132+O132)/(1-(I132+K132+M132+O132)/92) -> 0.005525680106 | Q132: =IF(P132<>"",+P132/$P$153,0) -> 0.001619860648 | R132: =+I$7*I132+K$7*K132+M$7*M132+O$7*O132+Q$7*Q132 -> 0.001358796745 | U132: =ROUND(+$R132*U$6,0) -> 38 | X132: =ROUND(+$R132*X$6,0) -> 43 | AA132: =ROUND(+$R132*AA$6,0) -> 49 | AD132: =ROUND(+$R132*AD$6,0) -> 26
A133: 4D | B133: 117 | C133: =RANK($G133,$G$44:$G$152,1)+36 -> 96 | D133: =INDEX(BFnames,MATCH(B133,Lookups!A$2:A$145,0),2) -> Daniel Pearce | G133: =INDEX(BFnames,MATCH(B133,Lookups!A$2:A$145,0),4) -> 491 | H133: =IF(G133<>"Scr",1/G133,"") -> 0.002036659878 | I133: =IF(H133<>"",+H133/$H$153,0) -> 0.001843428151 | J133: =(1-I133)*I133/(1-I133/92) -> 0.001840066794 | K133: =IF(J133<>"",+J133/$J$153,0) -> 0.00192079703 | L133: =(1-I133-K133)*(I133+K133)/(1-(I133+K133)/92) -> 0.003750209231 | M133: =IF(L133<>"",+L133/$L$153,0) -> 0.002040876094 | N133: =(1-I133-K133-M133)*(I133+K133+M133)/(1-(I133+K133+M133)/92) -> 0.005771766266 | O133: =IF(N133<>"",+N133/$N$153,0) -> 0.002177133963 | P133: =(1-I133-K133-M133-O133)*(I133+K133+M133+O133)/(1-(I133+K133+M133+O133)/92) -> 0.007919206256 | Q133: =IF(P133<>"",+P133/$P$153,0) -> 0.002321526098 | R133: =+I$7*I133+K$7*K133+M$7*M133+O$7*O133+Q$7*Q133 -> 0.001952665017 | U133: =ROUND(+$R133*U$6,0) -> 55 | X133: =ROUND(+$R133*X$6,0) -> 62 | AA133: =ROUND(+$R133*AA$6,0) -> 70 | AD133: =ROUND(+$R133*AD$6,0) -> 37
A134: 4D | B134: 118 | C134: =RANK($G134,$G$44:$G$152,1)+36 -> 85 | D134: =INDEX(BFnames,MATCH(B134,Lookups!A$2:A$145,0),2) -> Mathew Perry | G134: =INDEX(BFnames,MATCH(B134,Lookups!A$2:A$145,0),4) -> 419 | H134: =IF(G134<>"Scr",1/G134,"") -> 0.002386634845 | I134: =IF(H134<>"",+H134/$H$153,0) -> 0.002160198621 | J134: =(1-I134)*I134/(1-I134/92) -> 0.002155582777 | K134: =IF(J134<>"",+J134/$J$153,0) -> 0.002250155815 | L134: =(1-I134-K134)*(I134+K134)/(1-(I134+K134)/92) -> 0.004391113714 | M134: =IF(L134<>"",+L134/$L$153,0) -> 0.002389658403 | N134: =(1-I134-K134-M134)*(I134+K134+M134)/(1-(I134+K134+M134)/92) -> 0.006754271894 | O134: =IF(N134<>"",+N134/$N$153,0) -> 0.002547739125 | P134: =(1-I134-K134-M134-O134)*(I134+K134+M134+O134)/(1-(I134+K134+M134+O134)/92) -> 0.009261312502 | Q134: =IF(P134<>"",+P134/$P$153,0) -> 0.002714966371 | R134: =+I$7*I134+K$7*K134+M$7*M134+O$7*O134+Q$7*Q134 -> 0.002287086889 | U134: =ROUND(+$R134*U$6,0) -> 64 | X134: =ROUND(+$R134*X$6,0) -> 73 | AA134: =ROUND(+$R134*AA$6,0) -> 82 | AD134: =ROUND(+$R134*AD$6,0) -> 44
A135: 4D | B135: 124 | C135: =RANK($G135,$G$44:$G$152,1)+36 -> 83 | D135: =INDEX(BFnames,MATCH(B135,Lookups!A$2:A$145,0),2) -> Ruben Sondjaja | G135: =INDEX(BFnames,MATCH(B135,Lookups!A$2:A$145,0),4) -> 416 | H135: =IF(G135<>"Scr",1/G135,"") -> 0.002403846154 | I135: =IF(H135<>"",+H135/$H$153,0) -> 0.002175776976 | J135: =(1-I135)*I135/(1-I135/92) -> 0.002171094317 | K135: =IF(J135<>"",+J135/$J$153,0) -> 0.002266347901 | L135: =(1-I135-K135)*(I135+K135)/(1-(I135+K135)/92) -> 0.004422605945 | M135: =IF(L135<>"",+L135/$L$153,0) -> 0.002406796578 | N135: =(1-I135-K135-M135)*(I135+K135+M135)/(1-(I135+K135+M135)/92) -> 0.006802520143 | O135: =IF(N135<>"",+N135/$N$153,0) -> 0.002565938562 | P135: =(1-I135-K135-M135-O135)*(I135+K135+M135+O135)/(1-(I135+K135+M135+O135)/92) -> 0.009327174929 | Q135: =IF(P135<>"",+P135/$P$153,0) -> 0.002734274032 | R135: =+I$7*I135+K$7*K135+M$7*M135+O$7*O135+Q$7*Q135 -> 0.002303524876 | U135: =ROUND(+$R135*U$6,0) -> 64 | X135: =ROUND(+$R135*X$6,0) -> 74 | AA135: =ROUND(+$R135*AA$6,0) -> 83 | AD135: =ROUND(+$R135*AD$6,0) -> 44
A136: 4D | B136: 125 | C136: =RANK($G136,$G$44:$G$152,1)+36 -> 80 | D136: =INDEX(BFnames,MATCH(B136,Lookups!A$2:A$145,0),2) -> Robby Shelton | G136: =INDEX(BFnames,MATCH(B136,Lookups!A$2:A$145,0),4) -> 409.4736842 | H136: =IF(G136<>"Scr",1/G136,"") -> 0.002442159383 | I136: =IF(H136<>"",+H136/$H$153,0) -> 0.00221045517 | J136: =(1-I136)*I136/(1-I136/92) -> 0.002205622052 | K136: =IF(J136<>"",+J136/$J$153,0) -> 0.00230239049 | L136: =(1-I136-K136)*(I136+K136)/(1-(I136+K136)/92) -> 0.004492700262 | M136: =IF(L136<>"",+L136/$L$153,0) -> 0.002444942134 | N136: =(1-I136-K136-M136)*(I136+K136+M136)/(1-(I136+K136+M136)/92) -> 0.006909899566 | O136: =IF(N136<>"",+N136/$N$153,0) -> 0.002606442522 | P136: =(1-I136-K136-M136-O136)*(I136+K136+M136+O136)/(1-(I136+K136+M136+O136)/92) -> 0.009473740695 | Q136: =IF(P136<>"",+P136/$P$153,0) -> 0.002777239985 | R136: =+I$7*I136+K$7*K136+M$7*M136+O$7*O136+Q$7*Q136 -> 0.002340113812 | U136: =ROUND(+$R136*U$6,0) -> 66 | X136: =ROUND(+$R136*X$6,0) -> 75 | AA136: =ROUND(+$R136*AA$6,0) -> 84 | AD136: =ROUND(+$R136*AD$6,0) -> 45
A137: 4D | B137: 126 | C137: =RANK($G137,$G$44:$G$152,1)+36 -> 127 | D137: =INDEX(BFnames,MATCH(B137,Lookups!A$2:A$145,0),2) -> Michael Sim | G137: =INDEX(BFnames,MATCH(B137,Lookups!A$2:A$145,0),4) -> 872.5806452 | H137: =IF(G137<>"Scr",1/G137,"") -> 0.001146025878 | I137: =IF(H137<>"",+H137/$H$153,0) -> 0.001037294635 | J137: =(1-I137)*I137/(1-I137/92) -> 0.001036230339 | K137: =IF(J137<>"",+J137/$J$153,0) -> 0.001081693428 | L137: =(1-I137-K137)*(I137+K137)/(1-(I137+K137)/92) -> 0.002114546656 | M137: =IF(L137<>"",+L137/$L$153,0) -> 0.001150743186 | N137: =(1-I137-K137-M137)*(I137+K137+M137)/(1-(I137+K137+M137)/92) -> 0.003259155939 | O137: =IF(N137<>"",+N137/$N$153,0) -> 0.001229367018 | P137: =(1-I137-K137-M137-O137)*(I137+K137+M137+O137)/(1-(I137+K137+M137+O137)/92) -> 0.004479075423 | Q137: =IF(P137<>"",+P137/$P$153,0) -> 0.00131304706 | R137: =+I$7*I137+K$7*K137+M$7*M137+O$7*O137+Q$7*Q137 -> 0.001100132719 | U137: =ROUND(+$R137*U$6,0) -> 31 | X137: =ROUND(+$R137*X$6,0) -> 35 | AA137: =ROUND(+$R137*AA$6,0) -> 40 | AD137: =ROUND(+$R137*AD$6,0) -> 21
A138: 4D | B138: 127 | C138: =RANK($G138,$G$44:$G$152,1)+36 -> 105 | D138: =INDEX(BFnames,MATCH(B138,Lookups!A$2:A$145,0),2) -> Peter Senior | G138: =INDEX(BFnames,MATCH(B138,Lookups!A$2:A$145,0),4) -> 622.173913 | H138: =IF(G138<>"Scr",1/G138,"") -> 0.001607267645 | I138: =IF(H138<>"",+H138/$H$153,0) -> 0.00145477527 | J138: =(1-I138)*I138/(1-I138/92) -> 0.00145268187 | K138: =IF(J138<>"",+J138/$J$153,0) -> 0.00151641616 | L138: =(1-I138-K138)*(I138+K138)/(1-(I138+K138)/92) -> 0.002962459125 | M138: =IF(L138<>"",+L138/$L$153,0) -> 0.001612179917 | N138: =(1-I138-K138-M138)*(I138+K138+M138)/(1-(I138+K138+M138)/92) -> 0.004562591358 | O138: =IF(N138<>"",+N138/$N$153,0) -> 0.001721028217 | P138: =(1-I138-K138-M138-O138)*(I138+K138+M138+O138)/(1-(I138+K138+M138+O138)/92) -> 0.006265083431 | Q138: =IF(P138<>"",+P138/$P$153,0) -> 0.001836617739 | R138: =+I$7*I138+K$7*K138+M$7*M138+O$7*O138+Q$7*Q138 -> 0.001541907701 | U138: =ROUND(+$R138*U$6,0) -> 43 | X138: =ROUND(+$R138*X$6,0) -> 49 | AA138: =ROUND(+$R138*AA$6,0) -> 56 | AD138: =ROUND(+$R138*AD$6,0) -> 29
A139: 4D | B139: 128 | C139: =RANK($G139,$G$44:$G$152,1)+36 -> 122 | D139: =INDEX(BFnames,MATCH(B139,Lookups!A$2:A$145,0),2) -> Matthew Stieger | G139: =INDEX(BFnames,MATCH(B139,Lookups!A$2:A$145,0),4) -> 850 | H139: =IF(G139<>"Scr",1/G139,"") -> 0.001176470588 | I139: =IF(H139<>"",+H139/$H$153,0) -> 0.00106485085 | J139: =(1-I139)*I139/(1-I139/92) -> 0.001063729254 | K139: =IF(J139<>"",+J139/$J$153,0) -> 0.001110398818 | L139: =(1-I139-K139)*(I139+K139)/(1-(I139+K139)/92) -> 0.002170569277 | M139: =IF(L139<>"",+L139/$L$153,0) -> 0.001181230879 | N139: =(1-I139-K139-M139)*(I139+K139+M139)/(1-(I139+K139+M139)/92) -> 0.003345336635 | O139: =IF(N139<>"",+N139/$N$153,0) -> 0.001261874731 | P139: =(1-I139-K139-M139-O139)*(I139+K139+M139+O139)/(1-(I139+K139+M139+O139)/92) -> 0.004597256852 | Q139: =IF(P139<>"",+P139/$P$153,0) -> 0.001347692106 | R139: =+I$7*I139+K$7*K139+M$7*M139+O$7*O139+Q$7*Q139 -> 0.001129310099 | U139: =ROUND(+$R139*U$6,0) -> 32 | X139: =ROUND(+$R139*X$6,0) -> 36 | AA139: =ROUND(+$R139*AA$6,0) -> 41 | AD139: =ROUND(+$R139*AD$6,0) -> 22
A140: 4D | B140: 129 | C140: =RANK($G140,$G$44:$G$152,1)+36 -> 77 | D140: =INDEX(BFnames,MATCH(B140,Lookups!A$2:A$145,0),2) -> Scott Strange | G140: =INDEX(BFnames,MATCH(B140,Lookups!A$2:A$145,0),4) -> 407 | H140: =IF(G140<>"Scr",1/G140,"") -> 0.002457002457 | I140: =IF(H140<>"",+H140/$H$153,0) -> 0.002223889981 | J140: =(1-I140)*I140/(1-I140/92) -> 0.002218997933 | K140: =IF(J140<>"",+J140/$J$153,0) -> 0.002316353219 | L140: =(1-I140-K140)*(I140+K140)/(1-(I140+K140)/92) -> 0.004519852448 | M140: =IF(L140<>"",+L140/$L$153,0) -> 0.002459718442 | N140: =(1-I140-K140-M140)*(I140+K140+M140)/(1-(I140+K140+M140)/92) -> 0.006951491093 | O140: =IF(N140<>"",+N140/$N$153,0) -> 0.002622131017 | P140: =(1-I140-K140-M140-O140)*(I140+K140+M140+O140)/(1-(I140+K140+M140+O140)/92) -> 0.009530504768 | Q140: =IF(P140<>"",+P140/$P$153,0) -> 0.002793880451 | R140: =+I$7*I140+K$7*K140+M$7*M140+O$7*O140+Q$7*Q140 -> 0.002354287817 | U140: =ROUND(+$R140*U$6,0) -> 66 | X140: =ROUND(+$R140*X$6,0) -> 75 | AA140: =ROUND(+$R140*AA$6,0) -> 85 | AD140: =ROUND(+$R140*AD$6,0) -> 45
A141: 4D | B141: 130 | C141: =RANK($G141,$G$44:$G$152,1)+36 -> 125 | D141: =INDEX(BFnames,MATCH(B141,Lookups!A$2:A$145,0),2) -> Todd Sinnott | G141: =INDEX(BFnames,MATCH(B141,Lookups!A$2:A$145,0),4) -> 862.4137931 | H141: =IF(G141<>"Scr",1/G141,"") -> 0.001159536186 | I141: =IF(H141<>"",+H141/$H$153,0) -> 0.001049523128 | J141: =(1-I141)*I141/(1-I141/92) -> 0.00104843359 | K141: =IF(J141<>"",+J141/$J$153,0) -> 0.001094432079 | L141: =(1-I141-K141)*(I141+K141)/(1-(I141+K141)/92) -> 0.00213940852 | M141: =IF(L141<>"",+L141/$L$153,0) -> 0.001164273093 | N141: =(1-I141-K141-M141)*(I141+K141+M141)/(1-(I141+K141+M141)/92) -> 0.003297402497 | O141: =IF(N141<>"",+N141/$N$153,0) -> 0.001243793777 | P141: =(1-I141-K141-M141-O141)*(I141+K141+M141+O141)/(1-(I141+K141+M141+O141)/92) -> 0.004531525386 | Q141: =IF(P141<>"",+P141/$P$153,0) -> 0.001328422838 | R141: =+I$7*I141+K$7*K141+M$7*M141+O$7*O141+Q$7*Q141 -> 0.001113080936 | U141: =ROUND(+$R141*U$6,0) -> 31 | X141: =ROUND(+$R141*X$6,0) -> 36 | AA141: =ROUND(+$R141*AA$6,0) -> 40 | AD141: =ROUND(+$R141*AD$6,0) -> 21
A142: 4D | B142: 131 | C142: =RANK($G142,$G$44:$G$152,1)+36 -> 90 | D142: =INDEX(BFnames,MATCH(B142,Lookups!A$2:A$145,0),2) -> Tim Stewart | G142: =INDEX(BFnames,MATCH(B142,Lookups!A$2:A$145,0),4) -> 489 | H142: =IF(G142<>"Scr",1/G142,"") -> 0.002044989775 | I142: =IF(H142<>"",+H142/$H$153,0) -> 0.001850967734 | J142: =(1-I142)*I142/(1-I142/92) -> 0.001847578825 | K142: =IF(J142<>"",+J142/$J$153,0) -> 0.001928638641 | L142: =(1-I142-K142)*(I142+K142)/(1-(I142+K142)/92) -> 0.003765475646 | M142: =IF(L142<>"",+L142/$L$153,0) -> 0.002049184127 | N142: =(1-I142-K142-M142)*(I142+K142+M142)/(1-(I142+K142+M142)/92) -> 0.005795182865 | O142: =IF(N142<>"",+N142/$N$153,0) -> 0.0021859668 | P142: =(1-I142-K142-M142-O142)*(I142+K142+M142+O142)/(1-(I142+K142+M142+O142)/92) -> 0.007951213653 | Q142: =IF(P142<>"",+P142/$P$153,0) -> 0.00233090911 | R142: =+I$7*I142+K$7*K142+M$7*M142+O$7*O142+Q$7*Q142 -> 0.001960628532 | U142: =ROUND(+$R142*U$6,0) -> 55 | X142: =ROUND(+$R142*X$6,0) -> 63 | AA142: =ROUND(+$R142*AA$6,0) -> 71 | AD142: =ROUND(+$R142*AD$6,0) -> 37
A143: 4D | B143: 132 | C143: =RANK($G143,$G$44:$G$152,1)+36 -> 135 | D143: =INDEX(BFnames,MATCH(B143,Lookups!A$2:A$145,0),2) -> Adam Stephens | G143: =INDEX(BFnames,MATCH(B143,Lookups!A$2:A$145,0),4) -> 1100 | H143: =IF(G143<>"Scr",1/G143,"") -> 0.0009090909091 | I143: =IF(H143<>"",+H143/$H$153,0) -> 0.0008228392929 | J143: =(1-I143)*I143/(1-I143/92) -> 0.0008221695818 | K143: =IF(J143<>"",+J143/$J$153,0) -> 0.0008582410684 | L143: =(1-I143-K143)*(I143+K143)/(1-(I143+K143)/92) -> 0.001678284997 | M143: =IF(L143<>"",+L143/$L$153,0) -> 0.0009133281684 | N143: =(1-I143-K143-M143)*(I143+K143+M143)/(1-(I143+K143+M143)/92) -> 0.002587750549 | O143: =IF(N143<>"",+N143/$N$153,0) -> 0.000976110145 | P143: =(1-I143-K143-M143-O143)*(I143+K143+M143+O143)/(1-(I143+K143+M143+O143)/92) -> 0.003557908153 | Q143: =IF(P143<>"",+P143/$P$153,0) -> 0.00104300562 | R143: =+I$7*I143+K$7*K143+M$7*M143+O$7*O143+Q$7*Q143 -> 0.0008729756472 | U143: =ROUND(+$R143*U$6,0) -> 24 | X143: =ROUND(+$R143*X$6,0) -> 28 | AA143: =ROUND(+$R143*AA$6,0) -> 31 | AD143: =ROUND(+$R143*AD$6,0) -> 17
A144: 4D | B144: 133 | C144: =RANK($G144,$G$44:$G$152,1)+36 -> 135 | D144: =INDEX(BFnames,MATCH(B144,Lookups!A$2:A$145,0),2) -> Anthony Summers | G144: =INDEX(BFnames,MATCH(B144,Lookups!A$2:A$145,0),4) -> 1100 | H144: =IF(G144<>"Scr",1/G144,"") -> 0.0009090909091 | I144: =IF(H144<>"",+H144/$H$153,0) -> 0.0008228392929 | J144: =(1-I144)*I144/(1-I144/92) -> 0.0008221695818 | K144: =IF(J144<>"",+J144/$J$153,0) -> 0.0008582410684 | L144: =(1-I144-K144)*(I144+K144)/(1-(I144+K144)/92) -> 0.001678284997 | M144: =IF(L144<>"",+L144/$L$153,0) -> 0.0009133281684 | N144: =(1-I144-K144-M144)*(I144+K144+M144)/(1-(I144+K144+M144)/92) -> 0.002587750549 | O144: =IF(N144<>"",+N144/$N$153,0) -> 0.000976110145 | P144: =(1-I144-K144-M144-O144)*(I144+K144+M144+O144)/(1-(I144+K144+M144+O144)/92) -> 0.003557908153 | Q144: =IF(P144<>"",+P144/$P$153,0) -> 0.00104300562 | R144: =+I$7*I144+K$7*K144+M$7*M144+O$7*O144+Q$7*Q144 -> 0.0008729756472 | U144: =ROUND(+$R144*U$6,0) -> 24 | X144: =ROUND(+$R144*X$6,0) -> 28 | AA144: =ROUND(+$R144*AA$6,0) -> 31 | AD144: =ROUND(+$R144*AD$6,0) -> 17
A145: 4D | B145: 134 | C145: =RANK($G145,$G$44:$G$152,1)+36 -> 84 | D145: =INDEX(BFnames,MATCH(B145,Lookups!A$2:A$145,0),2) -> Jack Thompson | G145: =INDEX(BFnames,MATCH(B145,Lookups!A$2:A$145,0),4) -> 417 | H145: =IF(G145<>"Scr",1/G145,"") -> 0.002398081535 | I145: =IF(H145<>"",+H145/$H$153,0) -> 0.002170559286 | J145: =(1-I145)*I145/(1-I145/92) -> 0.002165899058 | K145: =IF(J145<>"",+J145/$J$153,0) -> 0.002260924708 | L145: =(1-I145-K145)*(I145+K145)/(1-(I145+K145)/92) -> 0.004412058465 | M145: =IF(L145<>"",+L145/$L$153,0) -> 0.002401056605 | N145: =(1-I145-K145-M145)*(I145+K145+M145)/(1-(I145+K145+M145)/92) -> 0.006786360989 | O145: =IF(N145<>"",+N145/$N$153,0) -> 0.002559843263 | P145: =(1-I145-K145-M145-O145)*(I145+K145+M145+O145)/(1-(I145+K145+M145+O145)/92) -> 0.009305116958 | Q145: =IF(P145<>"",+P145/$P$153,0) -> 0.002727807707 | R145: =+I$7*I145+K$7*K145+M$7*M145+O$7*O145+Q$7*Q145 -> 0.002298019356 | U145: =ROUND(+$R145*U$6,0) -> 64 | X145: =ROUND(+$R145*X$6,0) -> 74 | AA145: =ROUND(+$R145*AA$6,0) -> 83 | AD145: =ROUND(+$R145*AD$6,0) -> 44
A146: 4D | B146: 135 | C146: =RANK($G146,$G$44:$G$152,1)+36 -> 104 | D146: =INDEX(BFnames,MATCH(B146,Lookups!A$2:A$145,0),2) -> Aaron Townsend | G146: =INDEX(BFnames,MATCH(B146,Lookups!A$2:A$145,0),4) -> 622 | H146: =IF(G146<>"Scr",1/G146,"") -> 0.001607717042 | I146: =IF(H146<>"",+H146/$H$153,0) -> 0.001455182029 | J146: =(1-I146)*I146/(1-I146/92) -> 0.001453087458 | K146: =IF(J146<>"",+J146/$J$153,0) -> 0.001516839543 | L146: =(1-I146-K146)*(I146+K146)/(1-(I146+K146)/92) -> 0.002963284388 | M146: =IF(L146<>"",+L146/$L$153,0) -> 0.001612629027 | N146: =(1-I146-K146-M146)*(I146+K146+M146)/(1-(I146+K146+M146)/92) -> 0.00456385901 | O146: =IF(N146<>"",+N146/$N$153,0) -> 0.00172150638 | P146: =(1-I146-K146-M146-O146)*(I146+K146+M146+O146)/(1-(I146+K146+M146+O146)/92) -> 0.006266818924 | Q146: =IF(P146<>"",+P146/$P$153,0) -> 0.001837126501 | R146: =+I$7*I146+K$7*K146+M$7*M146+O$7*O146+Q$7*Q146 -> 0.001542337853 | U146: =ROUND(+$R146*U$6,0) -> 43 | X146: =ROUND(+$R146*X$6,0) -> 49 | AA146: =ROUND(+$R146*AA$6,0) -> 56 | AD146: =ROUND(+$R146*AD$6,0) -> 29
A147: 4D | B147: 136 | C147: =RANK($G147,$G$44:$G$152,1)+36 -> 132 | D147: =INDEX(BFnames,MATCH(B147,Lookups!A$2:A$145,0),2) -> Dale Williamson | G147: =INDEX(BFnames,MATCH(B147,Lookups!A$2:A$145,0),4) -> 1090 | H147: =IF(G147<>"Scr",1/G147,"") -> 0.0009174311927 | I147: =IF(H147<>"",+H147/$H$153,0) -> 0.0008303882772 | J147: =(1-I147)*I147/(1-I147/92) -> 0.0008297062214 | K147: =IF(J147<>"",+J147/$J$153,0) -> 0.0008661083671 | L147: =(1-I147-K147)*(I147+K147)/(1-(I147+K147)/92) -> 0.001693649775 | M147: =IF(L147<>"",+L147/$L$153,0) -> 0.0009216897306 | N147: =(1-I147-K147-M147)*(I147+K147+M147)/(1-(I147+K147+M147)/92) -> 0.002611405792 | O147: =IF(N147<>"",+N147/$N$153,0) -> 0.0009850329999 | P147: =(1-I147-K147-M147-O147)*(I147+K147+M147+O147)/(1-(I147+K147+M147+O147)/92) -> 0.003590376804 | Q147: =IF(P147<>"",+P147/$P$153,0) -> 0.001052523849 | R147: =+I$7*I147+K$7*K147+M$7*M147+O$7*O147+Q$7*Q147 -> 0.0008809743026 | U147: =ROUND(+$R147*U$6,0) -> 25 | X147: =ROUND(+$R147*X$6,0) -> 28 | AA147: =ROUND(+$R147*AA$6,0) -> 32 | AD147: =ROUND(+$R147*AD$6,0) -> 17
A148: 4D | B148: 137 | C148: =RANK($G148,$G$44:$G$152,1)+36 -> 92 | D148: =INDEX(BFnames,MATCH(B148,Lookups!A$2:A$145,0),2) -> Aaron Wilkin | G148: =INDEX(BFnames,MATCH(B148,Lookups!A$2:A$145,0),4) -> 490 | H148: =IF(G148<>"Scr",1/G148,"") -> 0.002040816327 | I148: =IF(H148<>"",+H148/$H$153,0) -> 0.001847190249 | J148: =(1-I148)*I148/(1-I148/92) -> 0.001843815158 | K148: =IF(J148<>"",+J148/$J$153,0) -> 0.001924709848 | L148: =(1-I148-K148)*(I148+K148)/(1-(I148+K148)/92) -> 0.003757826934 | M148: =IF(L148<>"",+L148/$L$153,0) -> 0.002045021672 | N148: =(1-I148-K148-M148)*(I148+K148+M148)/(1-(I148+K148+M148)/92) -> 0.005783450864 | O148: =IF(N148<>"",+N148/$N$153,0) -> 0.002181541441 | P148: =(1-I148-K148-M148-O148)*(I148+K148+M148+O148)/(1-(I148+K148+M148+O148)/92) -> 0.00793517768 | Q148: =IF(P148<>"",+P148/$P$153,0) -> 0.002326208142 | R148: =+I$7*I148+K$7*K148+M$7*M148+O$7*O148+Q$7*Q148 -> 0.001956638672 | U148: =ROUND(+$R148*U$6,0) -> 55 | X148: =ROUND(+$R148*X$6,0) -> 63 | AA148: =ROUND(+$R148*AA$6,0) -> 70 | AD148: =ROUND(+$R148*AD$6,0) -> 37
A149: 4D | B149: 139 | C149: =RANK($G149,$G$44:$G$152,1)+36 -> 118 | D149: =INDEX(BFnames,MATCH(B149,Lookups!A$2:A$145,0),2) -> Michael Wright | G149: =INDEX(BFnames,MATCH(B149,Lookups!A$2:A$145,0),4) -> 808 | H149: =IF(G149<>"Scr",1/G149,"") -> 0.001237623762 | I149: =IF(H149<>"",+H149/$H$153,0) -> 0.001120202008 | J149: =(1-I149)*I149/(1-I149/92) -> 0.00111896078 | K149: =IF(J149<>"",+J149/$J$153,0) -> 0.001168053546 | L149: =(1-I149-K149)*(I149+K149)/(1-(I149+K149)/92) -> 0.002283076225 | M149: =IF(L149<>"",+L149/$L$153,0) -> 0.001242457527 | N149: =(1-I149-K149-M149)*(I149+K149+M149)/(1-(I149+K149+M149)/92) -> 0.003518382172 | O149: =IF(N149<>"",+N149/$N$153,0) -> 0.001327148219 | P149: =(1-I149-K149-M149-O149)*(I149+K149+M149+O149)/(1-(I149+K149+M149+O149)/92) -> 0.004834517759 | Q149: =IF(P149<>"",+P149/$P$153,0) -> 0.001417245464 | R149: =+I$7*I149+K$7*K149+M$7*M149+O$7*O149+Q$7*Q149 -> 0.001187910114 | U149: =ROUND(+$R149*U$6,0) -> 33 | X149: =ROUND(+$R149*X$6,0) -> 38 | AA149: =ROUND(+$R149*AA$6,0) -> 43 | AD149: =ROUND(+$R149*AD$6,0) -> 23
A150: 4D | B150: 142 | C150: =RANK($G150,$G$44:$G$152,1)+36 -> 102 | D150: =INDEX(BFnames,MATCH(B150,Lookups!A$2:A$145,0),2) -> Norman Xiong | G150: =INDEX(BFnames,MATCH(B150,Lookups!A$2:A$145,0),4) -> 604 | H150: =IF(G150<>"Scr",1/G150,"") -> 0.001655629139 | I150: =IF(H150<>"",+H150/$H$153,0) -> 0.001498548381 | J150: =(1-I150)*I150/(1-I150/92) -> 0.001496327107 | K150: =IF(J150<>"",+J150/$J$153,0) -> 0.001561976268 | L150: =(1-I150-K150)*(I150+K150)/(1-(I150+K150)/92) -> 0.003051259343 | M150: =IF(L150<>"",+L150/$L$153,0) -> 0.001660505285 | N150: =(1-I150-K150-M150)*(I150+K150+M150)/(1-(I150+K150+M150)/92) -> 0.004698982941 | O150: =IF(N150<>"",+N150/$N$153,0) -> 0.001772475682 | P150: =(1-I150-K150-M150-O150)*(I150+K150+M150+O150)/(1-(I150+K150+M150+O150)/92) -> 0.006451795379 | Q150: =IF(P150<>"",+P150/$P$153,0) -> 0.001891352601 | R150: =+I$7*I150+K$7*K150+M$7*M150+O$7*O150+Q$7*Q150 -> 0.001588195055 | U150: =ROUND(+$R150*U$6,0) -> 44 | X150: =ROUND(+$R150*X$6,0) -> 51 | AA150: =ROUND(+$R150*AA$6,0) -> 57 | AD150: =ROUND(+$R150*AD$6,0) -> 30
A151: 4D | B151: 143 | C151: =RANK($G151,$G$44:$G$152,1)+36 -> 139 | D151: =INDEX(BFnames,MATCH(B151,Lookups!A$2:A$145,0),2) -> Linus Yip | G151: =INDEX(BFnames,MATCH(B151,Lookups!A$2:A$145,0),4) -> 1110 | H151: =IF(G151<>"Scr",1/G151,"") -> 0.0009009009009 | I151: =IF(H151<>"",+H151/$H$153,0) -> 0.0008154263263 | J151: =(1-I151)*I151/(1-I151/92) -> 0.0008147686277 | K151: =IF(J151<>"",+J151/$J$153,0) -> 0.0008505154083 | L151: =(1-I151-K151)*(I151+K151)/(1-(I151+K151)/92) -> 0.00166319649 | M151: =IF(L151<>"",+L151/$L$153,0) -> 0.0009051169538 | N151: =(1-I151-K151-M151)*(I151+K151+M151)/(1-(I151+K151+M151)/92) -> 0.002564520014 | O151: =IF(N151<>"",+N151/$N$153,0) -> 0.0009673474919 | P151: =(1-I151-K151-M151-O151)*(I151+K151+M151+O151)/(1-(I151+K151+M151+O151)/92) -> 0.003526021476 | Q151: =IF(P151<>"",+P151/$P$153,0) -> 0.001033657997 | R151: =+I$7*I151+K$7*K151+M$7*M151+O$7*O151+Q$7*Q151 -> 0.0008651209297 | U151: =ROUND(+$R151*U$6,0) -> 24 | X151: =ROUND(+$R151*X$6,0) -> 28 | AA151: =ROUND(+$R151*AA$6,0) -> 31 | AD151: =ROUND(+$R151*AD$6,0) -> 17
D153: Totals | G153: =H153 -> 1.104821946 | H153: =SUM(H8:H152) -> 1.104821946 | I153: 1 | J153: 0.9579704492 | K153: 1 | L153: 1.837548709 | M153: 1 | N153: 2.651084575 | O153: 1 | P153: 3.411207078 | Q153: 1 | R153: 1 | T153: =SUM(T8:T152) -> 1.290732488 | U153: =SUM(U8:U152) -> 27998 | X153: =SUM(X8:X152) -> 32003 | AA153: =SUM(AA8:AA152) -> 36001 | AD153: =SUM(AD8:AD152) -> 19076
A155: SUMMARY | D155: 2012 | E155: 2013 | F155: 2014 | G155: 2015 | U155: =AK2 -> 2018
A156: 1 | B156: =COUNTIF($A$8:$A$19,$A156) -> 12 | C156: =SUM(H8:H19)+SUM(H68:H79) -> 0.6701948804 | D156: 27350 | E156: 32850 | F156: 26500 | G156: 28100 | U156: =SUM(U8:U19) -> 15493 | V156: 915 | W156: 16408 | X156: 17709 | Y156: 1047 | Z156: 18756 | AA156: 19922 | AB156: 1176 | AC156: 21098 | AD156: 10556 | AE156: 621 | AF156: 11177
A157: 2 | B157: =COUNTIF($A$20:$A$31,$A157) -> 12 | C157: =SUM(H20:H31)+SUM(H56:H67) -> 0.1699864144 | D157: 6600 | E157: 6150 | F157: 6150 | G157: 6775 | U157: =+SUM(U20:U31) -> 3405 | V157: 1110 | W157: 4515 | X157: 3894 | Y157: 1267 | Z157: 5161 | AA157: 4380 | AB157: 1427 | AC157: 5807 | AD157: 2319 | AE157: 754 | AF157: 3073
A158: 3 | B158: =COUNTIF($A$32:$A$43,$A158) -> 12 | C158: =SUM(H32:H55) -> 0.149068662 | D158: 5200 | E158: 3750 | F158: 4050 | G158: 4025 | U158: =SUM(U32:U43) -> 2265 | V158: 1706 | W158: 3971 | X158: 2590 | Y158: 1950 | Z158: 4540 | AA158: 2913 | AB158: 2193 | AC158: 5106 | AD158: 1543 | AE158: 1164 | AF158: 2707
C159: =SUM(C156:C158) -> 0.9892499568 | D159: =SUM(D156:D158) -> 39150 | E159: =SUM(E156:E158) -> 42750 | F159: =SUM(F156:F158) -> 36700 | G159: =SUM(G156:G158) -> 38900 | U159: =SUM(U156:U158) -> 21163 | V159: =SUM(U44:U79) -> 3731 | W159: =SUM(W156:W158) -> 24894 | X159: =SUM(X156:X158) -> 24193 | Y159: =SUM(X44:X79) -> 4264 | Z159: =SUM(Z156:Z158) -> 28457 | AA159: =SUM(AA156:AA158) -> 27215 | AB159: =SUM(AA44:AA79) -> 4796 | AC159: =SUM(AC156:AC158) -> 32011 | AD159: =SUM(AD156:AD158) -> 14418 | AE159: =SUM(AD44:AD79) -> 2539 | AF159: =SUM(AF156:AF158) -> 16957
A160: 4A | B160: =COUNTIF($A$8:$A$152,$A160) -> 27 | C160: =COUNTIF($A$80:$A$152,$A160) -> 20 | D160: 700 | E160: 600 | F160: 400 | G160: 500 | U160: =SUMIF($A$80:$A$152,$A160,U$80:U$152) -> 847 | W160: =U160 -> 847 | X160: =SUMIF($A$80:$A$152,$A160,X$80:X$152) -> 968 | Z160: =X160 -> 968 | AA160: =SUMIF($A$80:$A$152,$A160,AA$80:AA$152) -> 1090 | AC160: =AA160 -> 1090 | AD160: =SUMIF($A$80:$A$152,$A160,AD$80:AD$152) -> 579 | AF160: =AD160 -> 579 | AG160: G | AH160: 525
A161: 4B | B161: =COUNTIF($A$8:$A$152,$A161) -> 24 | C161: =COUNTIF($A$80:$A$152,$A161) -> 15 | D161: 650 | E161: 600 | F161: 500 | G161: 700 | U161: =SUMIF($A$80:$A$152,$A161,U$80:U$152) -> 676 | W161: =U161 -> 676 | X161: =SUMIF($A$80:$A$152,$A161,X$80:X$152) -> 770 | Z161: =X161 -> 770 | AA161: =SUMIF($A$80:$A$152,$A161,AA$80:AA$152) -> 866 | AC161: =AA161 -> 866 | AD161: =SUMIF($A$80:$A$152,$A161,AD$80:AD$152) -> 459 | AF161: =AD161 -> 459
A162: 4C | B162: =COUNTIF($A$8:$A$152,$A162) -> 27 | C162: =COUNTIF($A$80:$A$152,$A162) -> 16 | D162: 550 | E162: 600 | F162: 550 | G162: 700 | U162: =SUMIF($A$80:$A$152,$A162,U$80:U$152) -> 635 | W162: 635 | X162: =SUMIF($A$80:$A$152,$A162,X$80:X$152) -> 726 | Z162: 726 | AA162: =SUMIF($A$80:$A$152,$A162,AA$80:AA$152) -> 816 | AC162: 816 | AD162: =SUMIF($A$80:$A$152,$A162,AD$80:AD$152) -> 435 | AF162: 435 | AG162: M | AH162: 475
A163: 4D | B163: =COUNTIF($A$8:$A$152,$A163) -> 30 | C163: =COUNTIF($A$80:$A$152,$A163) -> 21 | D163: 650 | E163: 600 | F163: 400 | G163: 800 | U163: =SUMIF($A$80:$A$152,$A163,U$80:U$152) -> 946 | W163: 946 | X163: =SUMIF($A$80:$A$152,$A163,X$80:X$152) -> 1082 | Z163: 1082 | AA163: =SUMIF($A$80:$A$152,$A163,AA$80:AA$152) -> 1218 | AC163: 1218 | AD163: =SUMIF($A$80:$A$152,$A163,AD$80:AD$152) -> 646 | AF163: 646 | AG163: G | AH163: 525
A164: 4 | B164: =SUM(B156:B163) -> 144 | C164: =SUM(H80:H151) -> 0.1155719895 | D164: =SUM(D160:D163) -> 2550 | E164: =SUM(E160:E163) -> 2400 | F164: =SUM(F160:F163) -> 1850 | G164: =SUM(G160:G163) -> 2700 | U164: =SUM(U160:U163) -> 3104 | W164: 3104 | X164: =SUM(X160:X163) -> 3546 | Z164: 3546 | AA164: =SUM(AA160:AA163) -> 3990 | AC164: 3990 | AD164: =SUM(AD160:AD163) -> 2119 | AF164: 2119
D165: =D159+D164 -> 41700 | E165: =E159+E164 -> 45150 | F165: =F159+F164 -> 38550 | G165: =G159+G164 -> 41600 | U165: =SUM(U156:U158)+U164 -> 24267 | V165: =SUM(V156:V158)+V164 -> 3731 | W165: 27998 | X165: 27739 | Y165: 4264 | Z165: 32003 | AA165: 31205 | AB165: 4796 | AC165: 36001 | AD165: 16537 | AE165: 2539 | AF165: 19076
A166: Bidders: | D166: 7 | E166: 10 | F166: 10 | G166: 13 | AG166: 12

Sheet Lookups
A2: =VLOOKUP(C2,BillsNames,3) -> 1 | B2: =INDEX(BFX,ROW()-1,1) -> Cameron Smith | C2: =RIGHT(B2,LEN(B2)-FIND(" ",B2,2))&" "&LEFT(B2,IF(RIGHT(B2,5)="Brown",2,1)) -> Smith C | D2: =INDEX(BFX,ROW()-1,14) -> 8.201780656 | G2: =RIGHT(H2,LEN(H2)-FIND(" ",H2,2))&" "&LEFT(H2,1) -> Allan S | H2: S. Allan | I2: 41
A3: 2 | B3: Keegan Bradley | C3: Bradley K | D3: 11.12013536 | G3: Allenby R | H3: R. Allenby | I3: 40
A4: 3 | B4: Matt Kuchar | C4: Kuchar M | D4: 11.62094907 | G4: An S | H4: S. An | I4: 39
A5: 4 | B5: Brandt Snedeker | C5: Snedeker B | D5: 12.1002845 | G5: Ancer A | H5: A. Ancer | I5: 6
A6: 5 | B6: Byeong Hun An | C6: Hun An B | D6: 16.1483871 | G6: Anstiss J | H6: J. Anstiss | I6: 38
A7: 6 | B7: Abraham Ancer | C7: Ancer A | D7: 16.82603939 | G7: Antcliff M | H7: M. Antcliff | I7: 43
A8: 7 | B8: Cameron Davis | C8: Davis C | D8: 21.68201754 | G8: Armstrong D | H8: D. Armstrong | I8: 42
A9: 8 | B9: Anirban Lahiri | C9: Lahiri A | D9: 33.35483871 | G9: Arnold J | H9: J. Arnold | I9: 37
A10: 9 | B10: Brendan Steele | C10: Steele B | D10: 38.14334471 | G10: Basic N | H10: N. Basic | I10: 53
A11: 11 | B11: Dimitrios Papadatos | C11: Papadatos D | D11: 592 | G11: Bateman H | H11: H. Bateman | I11: 47
A12: 10 | B12: Nicolas Colsaerts | C12: Colsaerts N | D12: 68.81188119 | G12: Bauchou Z | H12: Z. Bauchou | I12: 48
A13: 17 | B13: Rhein Gibson | C13: Gibson R | D13: 251.0606061 | G13: Beck D | H13: D. Beck | I13: 51
A14: 22 | B14: Cameron John | C14: John C | D14: 73.07692308 | G14: Becker B | H14: B. Becker | I14: 44
A15: 18 | B15: Anthony Quayle | C15: Quayle A | D15: 159.4252874 | G15: Bland A | H15: A. Bland | I15: 30
A16: 12 | B16: Marcus Fraser | C16: Fraser M | D16: 64.07894737 | G16: Blyth A | H16: A. Blyth | I16: 46
A17: 21 | B17: Brett Coletta | C17: Coletta B | D17: 114.4736842 | G17: Bourke R | H17: R. Bourke | I17: 54
A18: 13 | B18: Rod Pampling | C18: Pampling R | D18: 89.2 | G18: Bradley K | H18: K. Bradley | I18: 2
A19: 19 | B19: Cameron Percy | C19: Percy C | D19: 65.9375 | G19: Brandt Richards D | H19: D. Brandt Richards | I19: 50
A20: 14 | B20: John Senden | C20: Senden J | D20: 68.07692308 | G20: =RIGHT(H20,LEN(H20)-FIND(" ",H20,2))&" "&LEFT(H20,2) -> Brown Ma | H20: Mark Brown | I20: 45
A21: 29 | B21: Harrison Endycott | C21: Endycott H | D21: 71.25 | G21: =RIGHT(H21,LEN(H21)-FIND(" ",H21,2))&" "&LEFT(H21,2) -> Brown Mi | H21: Mitchell Brown | I21: 52
A22: 16 | B22: Nick Voke | C22: Voke N | D22: 83 | G22: =RIGHT(H22,LEN(H22)-FIND(" ",H22,2))&" "&LEFT(H22,1) -> Burdett A | H22: A. Burdett | I22: 49
A23: 15 | B23: Matthew Griffin | C23: Griffin M | D23: 85.59782609 | G23: Campbell B | H23: B. Campbell | I23: 57
A24: 26 | B24: Matthew Millar | C24: Millar M | D24: 84.95454545 | G24: Chalmers G | H24: G. Chalmers | I24: 23
A25: 126 | B25: Michael Sim | C25: Sim M | D25: 872.5806452 | G25: Chisnall R | H25: R. Chisnall | I25: 58
A26: 30 | B26: Adam Bland | C26: Bland A | D26: 195.0632911 | G26: Choat A | H26: A. Choat | I26: 59
A27: 23 | B27: Greg Chalmers | C27: Chalmers G | D27: 98.83561644 | G27: Clementson B | H27: B. Clementson | I27: 60
A28: 36 | B28: Andrew Dodt | C28: Dodt A | D28: 117.9032258 | G28: Coletta B | H28: B. Coletta | I28: 21
A29: 31 | B29: Ben Eccles | C29: Eccles B | D29: 810.9090909 | G29: Colsaerts N | H29: N. Colsaerts | I29: 10
A30: 34 | B30: Jarryd Felton | C30: Felton J | D30: 153.3333333 | G30: Cooke P | H30: P. Cooke | I30: 55
A31: 76 | B31: Jake Higginbottom | C31: Higginbottom J | D31: 203.4782609 | G31: Crawford C | H31: C. Crawford | I31: 56
A32: 35 | B32: Mikko Ilonen | C32: Ilonen M | D32: 118.0769231 | G32: Cullen N | H32: N. Cullen | I32: 27
A33: 24 | B33: Jake McLeod | C33: McLeod J | D33: 85.43478261 | G33: Dann C | H33: C. Dann | I33: 63
A34: =VLOOKUP(C34,BillsNames,3) -> 106 | B34: =INDEX(BFX,ROW()-1,1) -> Daniel Nisbet | C34: Nisbet D | D34: =INDEX(BFX,ROW()-1,14) -> 864.1935484 | G34: Davis C | H34: C. Davis | I34: 7
A35: 28 | B35: Travis Smyth | C35: Smyth T | D35: 532.3809524 | G35: Davis M | H35: M. Davis | I35: 61
A36: 20 | B36: Zach Murray | C36: Murray Z | D36: 107.5609756 | G36: Dive M | H36: M. Dive | I36: 62
A37: 25 | B37: Jordan Zunic | C37: Zunic J | D37: 132.5 | G37: Dodt A | H37: A. Dodt | I37: 36
A38: 103 | B38: David Micheluzzi | C38: Micheluzzi D | D38: 130 | G38: Eccles B | H38: B. Eccles | I38: 31
A39: 142 | B39: Norman Xiong | C39: Xiong N | D39: 604 | G39: Edge A | H39: A. Edge | I39: 65
A40: 33 | B40: Douglas Klein | C40: Klein D | D40: 446.0526316 | G40: Endycott H | H40: H. Endycott | I40: 29
A41: 77 | B41: Viktor Hovland | C41: Hovland V | D41: 514.4047619 | G41: Evans A | H41: A. Evans | I41: 64
A42: 83 | B42: Damien Jordan | C42: Jordan D | D42: 819.3939394 | G42: Fairfax G | H42: G. Fairfax | I42: 70
A43: 87 | B43: Takumi Kanaya | C43: Kanaya T | D43: 258 | G43: Felton J | H43: J. Felton | I43: 34
A44: 104 | B44: James Marchesani | C44: Marchesani J | D44: 858.9655172 | G44: Fewkes C | H44: C. Fewkes | I44: 66
A45: 27 | B45: Nick Cullen | C45: Cullen N | D45: 91.25 | G45: Flanagan N | H45: N. Flanagan | I45: 67
A46: 79 | B46: Simon Hawkes | C46: Hawkes S | D46: 531.25 | G46: Fowler P | H46: P. Fowler | I46: 69
A47: 107 | B47: Jason Norris | C47: Norris J | D47: 243.4375 | G47: Fox D | H47: D. Fox | I47: 68
A48: 46 | B48: Adam Blyth | C48: Blyth A | D48: 309 | G48: Fraser M | H48: M. Fraser | I48: 12
A49: 102 | B49: David McKenzie | C49: McKenzie D | D49: 271.8333333 | G49: Gale D | H49: D. Gale | I49: 74
A50: 57 | B50: Ben Campbell | C50: Campbell B | D50: 407.5 | G50: Gibson R | H50: R. Gibson | I50: 17
A51: 45 | B51: Mark Brown | C51: Brown Ma | D51: 239.5121951 | G51: Giles M | H51: M. Giles | I51: 73
A52: 32 | B52: Deyen Lawson | C52: Lawson D | D52: 143.8983051 | G52: Gleeson D | H52: D. Gleeson | I52: 72
A53: 117 | B53: Daniel Pearce | C53: Pearce D | D53: 491 | G53: Goggin M | H53: M. Goggin | I53: 75
A54: 141 | B54: Jack Wilson | C54: Wilson J | D54: 305.2941176 | G54: =RIGHT(H54,LEN(H54)-FIND(" ",H54,2))&" "&LEFT(H54,1) -> Griffin M | H54: M. Griffin | I54: 15
A55: 84 | B55: Steven Jeffress | C55: Jeffress S | D55: 716.2162162 | G55: Guyatt M | H55: M. Guyatt | I55: 71
A56: 108 | B56: James Nitties | C56: Nitties J | D56: 734 | G56: Hall A | H56: A. Hall | I56: 78
A57: 138 | B57: Peter Wilson | C57: Wilson P | D57: 307 | G57: Hart T | H57: T. Hart | I57: 81
A58: 75 | B58: Mathew Goggin | C58: Goggin M | D58: 485 | G58: Hawkes S | H58: S. Hawkes | I58: 79
A59: 125 | B59: Robby Shelton | C59: Shelton R | D59: 409.4736842 | G59: Hensby M | H59: M. Hensby | I59: 82
A60: 42 | B60: Dawson Armstrong | C60: Armstrong D | D60: 327 | G60: Higginbottom J | H60: J. Higginbottom | I60: 76
A61: 119 | B61: Dylan Perry | C61: Perry D | D61: 177 | G61: Hillier D | H61: D. Hillier | I61: 80
A62: 134 | B62: Jack Thompson | C62: Thompson J | D62: 417 | G62: Hovland V | H62: V. Hovland | I62: 77
A63: 127 | B63: Peter Senior | C63: Senior P | D63: 622.173913 | G63: Hun An B | H63: B. Hun An | I63: 5
A64: 115 | B64: Craig Parry | C64: Parry C | D64: 415 | G64: Ilonen M | H64: M. Ilonen | I64: 35
A65: 40 | B65: Robert Allenby | C65: Allenby R | D65: 794.2857143 | G65: Jager M | H65: M. Jager | I65: 85
A66: =VLOOKUP(C66,BillsNames,3) -> 88 | B66: =INDEX(BFX,ROW()-1,1) -> Peter Lonard | C66: =RIGHT(B66,LEN(B66)-FIND(" ",B66,2))&" "&LEFT(B66,IF(RIGHT(B66,5)="Brown",2,1)) -> Lonard P | D66: =INDEX(BFX,ROW()-1,14) -> 400 | G66: Jeffress S | H66: S. Jeffress | I66: 84
A67: 41 | B67: Stephen Allan | C67: Allan S | D67: 400 | G67: John C | H67: C. John | I67: 22
A68: 69 | B68: Peter Fowler | C68: Fowler P | D68: 269 | G68: Jordan D | H68: D. Jordan | I68: 83
A69: 48 | B69: Zach Bauchou | C69: Bauchou Z | D69: 297 | G69: Kanaya T | H69: T. Kanaya | I69: 87
A70: 72 | B70: David Gleeson | C70: Gleeson D | D70: 485 | G70: Klein D | H70: D. Klein | I70: 33
A71: 140 | B71: Shae Wools Cobb | C71: Wools Cobb S | D71: 318 | G71: Kuchar M | H71: M. Kuchar | I71: 3
A72: 123 | B72: Terry Pilkadaris | C72: Pilkadaris T | D72: 308.5714286 | G72: Kulacz R | H72: R. Kulacz | I72: 86
A73: 130 | B73: Todd Sinnott | C73: Sinnott T | D73: 862.4137931 | G73: Lahiri A | H73: A. Lahiri | I73: 8
A74: 109 | B74: Keita Nakajima | C74: Nakajima K | D74: 349 | G74: Lawson D | H74: D. Lawson | I74: 32
A75: 66 | B75: Connor Fewkes | C75: Fewkes C | D75: 429 | G75: Lee S | H75: S. Lee | I75: 91
A76: 80 | B76: Daniel Hillier | C76: Hillier D | D76: 280 | G76: Lisk M | H76: M. Lisk | I76: 90
A77: 70 | B77: Gavin Fairfax | C77: Fairfax G | D77: 955 | G77: Lonard P | H77: P. Lonard | I77: 88
A78: 121 | B78: Aaron Pike | C78: Pike A | D78: 167 | G78: Lynch R | H78: R. Lynch | I78: 89
A79: 74 | B79: Daniel Gale | C79: Gale D | D79: 336.3636364 | G79: Macdonald T | H79: T. Macdonald | I79: 96
A80: 68 | B80: Daniel Fox | C80: Fox D | D80: 852.173913 | G80: Marchesani A | H80: A. Marchesani | I80: 94
A81: 56 | B81: Cory Crawford | C81: Crawford C | D81: 490 | G81: Marchesani J | H81: J. Marchesani | I81: 104
A82: 135 | B82: Aaron Townsend | C82: Townsend A | D82: 622 | G82: Martin A | H82: A. Martin | I82: 105
A83: 110 | B83: Peter OMalley | C83: OMalley P | D83: 906 | G83: McCardle M | H83: M. McCardle | I83: 101
A84: 111 | B84: Nick OHern | C84: OHern N | D84: 397 | G84: McKenzie D | H84: D. McKenzie | I84: 102
A85: 122 | B85: Aron Price | C85: Price A | D85: 184 | G85: McLeod J | H85: J. McLeod | I85: 24
A86: 96 | B86: Taylor Macdonald | C86: Macdonald T | D86: 387 | G86: =RIGHT(H86,LEN(H86)-FIND(" ",H86,2))&" "&LEFT(H86,1) -> Micheluzzi D | H86: D. Micheluzzi | I86: 103
A87: 71 | B87: Matthew Guyatt | C87: Guyatt M | D87: 721.4285714 | G87: Millar M | H87: M. Millar | I87: 26
A88: 37 | B88: Jamie Arnold | C88: Arnold J | D88: 208.5714286 | G88: Morgan J | H88: J. Morgan | I88: 92
A89: 51 | B89: Darren Beck | C89: Beck D | D89: 405 | G89: Moses T | H89: T. Moses | I89: 95
A90: 50 | B90: Dale Brandt Richards | C90: Brandt Richards D | D90: 726.5517241 | G90: Moules B | H90: B. Moules | I90: 93
A91: =VLOOKUP(C91,BillsNames,3) -> 112 | B91: Callan OReilly | C91: OReilly C | D91: 259 | G91: Muir K | H91: K. Muir | I91: 97
A92: 144 | B92: Josh Younger | C92: Younger J | D92: 323.2432432 | G92: Mullaney J | H92: J. Mullaney | I92: 98
A93: 116 | B93: Gareth Paddison | C93: Paddison G | D93: 706.2068966 | G93: Munro J | H93: J. Munro | I93: 99
A94: 113 | B94: Brett Rankin | C94: Rankin B | D94: 407 | G94: Murdaca A | H94: A. Murdaca | I94: 100
A95: 129 | B95: Scott Strange | C95: Strange S | D95: 407 | G95: Murray Z | H95: Z. Murray | I95: 20
A96: 128 | B96: Matthew Stieger | C96: Stieger M | D96: 850 | G96: Nakajima K | H96: K. Nakajima | I96: 109
A97: 78 | B97: Ashley Hall | C97: Hall A | D97: 849.6153846 | G97: Nisbet D | H97: D. Nisbet | I97: 106
A98: 49 | B98: =INDEX(BFX,ROW()-1,1) -> Adam Burdett | C98: Burdett A | D98: =INDEX(BFX,ROW()-1,14) -> 462 | G98: Nitties J | H98: J. Nitties | I98: 108
A99: 58 | B99: Ryan Chisnall | C99: Chisnall R | D99: 255 | G99: Norris J | H99: J. Norris | I99: 107
A100: 44 | B100: Braden Becker | C100: Becker B | D100: 706 | G100: OHern N | H100: N. OHern | I100: 111
A101: 67 | B101: Nick Flanagan | C101: Flanagan N | D101: 414 | G101: OMalley P | H101: P. OMalley | I101: 110
A102: 131 | B102: Tim Stewart | C102: Stewart T | D102: 489 | G102: OReilly C | H102: C. OReilly | I102: 112
A103: 105 | B103: Andrew Martin | C103: Martin A | D103: 847.826087 | G103: Paddison G | H103: G. Paddison | I103: 116
A104: 139 | B104: Michael Wright | C104: Wright M | D104: 808 | G104: Pampling R | H104: R. Pampling | I104: 13
A105: 85 | B105: Matt Jager | C105: Jager M | D105: 489 | G105: Papadatos D | H105: D. Papadatos | I105: 11
A106: 99 | B106: Jack Munro | C106: Munro J | D106: 387 | G106: Parry C | H106: C. Parry | I106: 115
A107: 97 | B107: Kieran Muir | C107: Muir K | D107: 491 | G107: Pearce D | H107: D. Pearce | I107: 117
A108: 47 | B108: Harry Bateman | C108: Bateman H | D108: 725.1612903 | G108: Percy C | H108: C. Percy | I108: 19
A109: 98 | B109: Jordan Mullaney | C109: Mullaney J | D109: 277 | G109: Perry D | H109: D. Perry | I109: 119
A110: 91 | B110: Sam Lee | C110: Lee S | D110: 1100 | G110: Perry M | H110: M. Perry | I110: 118
A111: 132 | B111: Adam Stephens | C111: Stephens A | D111: 1100 | G111: Pike A | H111: A. Pike | I111: 121
A112: 101 | B112: Max McCardle | C112: McCardle M | D112: 579.6153846 | G112: Pilkadaris T | H112: T. Pilkadaris | I112: 123
A113: 54 | B113: Rory Bourke | C113: Bourke R | D113: 906 | G113: Price A | H113: A. Price | I113: 122
A114: 81 | B114: Tim Hart | C114: Hart T | D114: 305 | G114: Proverbs B | H114: B. Proverbs | I114: 120
A115: 73 | B115: Matthew Giles | C115: Giles M | D115: 490 | G115: Quayle A | H115: A. Quayle | I115: 18
A116: 60 | B116: Benjamin Clementson | C116: Clementson B | D116: 706 | G116: Rankin B | H116: B. Rankin | I116: 113
A117: 93 | B117: Brad Moules | C117: Moules B | D117: 706 | G117: Rawson C | H117: C. Rawson | I117: 114
A118: 100 | B118: Antonio Murdaca | C118: Murdaca A | D118: 371 | G118: =RIGHT(H118,LEN(H118)-FIND(" ",H118,2))&" "&LEFT(H118,1) -> Senden J | H118: J. Senden | I118: 14
A119: 43 | B119: Maverick Antcliff | C119: Antcliff M | D119: 804.6511628 | G119: Senior P | H119: P. Senior | I119: 127
A120: 53 | B120: Neven Basic | C120: Basic N | D120: 490 | G120: Shelton R | H120: R. Shelton | I120: 125
A121: 86 | B121: Rick Kulacz | C121: Kulacz R | D121: 303 | G121: Sim M | H121: M. Sim | I121: 126
A122: 137 | B122: Aaron Wilkin | C122: Wilkin A | D122: 490 | G122: Sinnott T | H122: T. Sinnott | I122: 130
A123: 124 | B123: Ruben Sondjaja | C123: Sondjaja R | D123: 416 | G123: Smith C | H123: C. Smith | I123: 1
A124: 94 | B124: Anthony Marchesani | C124: Marchesani A | D124: 1100 | G124: Smyth T | H124: T. Smyth | I124: 28
A125: 133 | B125: Anthony Summers | C125: Summers A | D125: 1100 | G125: Snedeker B | H125: B. Snedeker | I125: 4
A126: 118 | B126: Mathew Perry | C126: Perry M | D126: 419 | G126: Sondjaja R | H126: R. Sondjaja | I126: 124
A127: 38 | B127: James Anstiss | C127: Anstiss J | D127: 1090 | G127: Steele B | H127: B. Steele | I127: 9
A128: 95 | B128: Troy Moses | C128: Moses T | D128: 355 | G128: Stephens A | H128: A. Stephens | I128: 132
A129: 65 | B129: Alex Edge | C129: Edge A | D129: 1090 | G129: Stewart T | H129: T. Stewart | I129: 131
A130: 52 | B130: =INDEX(BFX,ROW()-1,1) -> Mitchell Brown | C130: =RIGHT(B130,LEN(B130)-FIND(" ",B130,2))&" "&LEFT(B130,IF(RIGHT(B130,5)="Brown",2,1)) -> Brown Mi | D130: =INDEX(BFX,ROW()-1,14) -> 905 | G130: Stieger M | H130: M. Stieger | I130: 128
A131: 55 | B131: Peter Cooke | C131: =RIGHT(B131,LEN(B131)-FIND(" ",B131,2))&" "&LEFT(B131,IF(RIGHT(B131,5)="Brown",2,1)) -> Cooke P | D131: 491 | G131: Strange S | H131: S. Strange | I131: 129
A132: 136 | B132: Dale Williamson | C132: Williamson D | D132: 1090 | G132: Summers A | H132: A. Summers | I132: 133
A133: 89 | B133: Ryan Lynch | C133: Lynch R | D133: 708 | G133: Thompson J | H133: J. Thompson | I133: 134
A134: 120 | B134: Blake Proverbs | C134: Proverbs B | D134: 237.5555556 | G134: Townsend A | H134: A. Townsend | I134: 135
A135: 82 | B135: Mark Hensby | C135: Hensby M | D135: 348 | G135: Voke N | H135: N. Voke | I135: 16
A136: 92 | B136: Jediah Morgan | C136: Morgan J | D136: 1110 | G136: Wilkin A | H136: A. Wilkin | I136: 137
A137: 143 | B137: Linus Yip | C137: Yip L | D137: 1110 | G137: Williamson D | H137: D. Williamson | I137: 136
A138: 64 | B138: =INDEX(BFX,ROW()-1,1) -> Andrew Evans | C138: Evans A | D138: 367 | G138: Wilson J | H138: J. Wilson | I138: 141
A139: 39 | B139: Sam An | C139: An S | D139: 1110 | G139: Wilson P | H139: P. Wilson | I139: 138
A140: 90 | B140: Matthew Lisk | C140: Lisk M | D140: 1110 | G140: Wools Cobb S | H140: S. Wools Cobb | I140: 140
A141: 59 | B141: Anthony Choat | C141: Choat A | D141: 1110 | G141: Wright M | H141: M. Wright | I141: 139
A142: 63 | B142: Charlie Dann | C142: Dann C | D142: 366 | G142: Xiong N | H142: N. Xiong | I142: 142
A143: 62 | B143: Martin Dive | C143: Dive M | D143: 1110 | G143: Yip L | H143: L. Yip | I143: 143
A144: 61 | B144: Mitch Davis | C144: Davis M | D144: 618 | G144: Younger J | H144: J. Younger | I144: 144
A145: 114 | B145: Campbell Rawson | C145: Rawson C | D145: 110 | G145: Zunic J | H145: J. Zunic | I145: 25

Sheet Betfair
B1: 144 selections | C1: 1.289 | D1: Back all | E1: Lay all | F1: 0.865
B3: Cameron Smith | C3: 7.8$225 | D3: 8$1075 | E3: 8.2$22 | F3: 8.4$2449 | G3: 8.8$171 | H3: 9$732 | I3: =FIND("$",E3) -> 4 | J3: =IF(ISBLANK(F3),0,FIND("$",F3)) -> 4 | K3: =VALUE(LEFT(E3,I3-1)) -> 8.2 | L3: =VALUE(RIGHT(E3,LEN(E3)-I3)) -> 22 | M3: =IF(J3,VALUE(LEFT(F3,J3-1)),0) -> 8.4 | N3: =IF(J3,VALUE(RIGHT(F3,LEN(F3)-J3)),0) -> 2449 | O3: =IF(M3,K3+(M3-K3)*L3/(L3+N3),K3+IF(K3=1000,L3*10,L3)) -> 8.201780656
B4: Keegan Bradley | C4: 10$850 | D4: 10.5$17 | E4: 11$142 | F4: 11.5$449 | G4: 12.5$27 | H4: 13$43 | I4: 3 | J4: 5 | K4: 11 | L4: 142 | M4: 11.5 | N4: 449 | O4: =IF(M4,K4+(M4-K4)*L4/(L4+N4),K4+IF(K4=1000,L4*10,L4)) -> 11.12013536
B5: Matt Kuchar | C5: 10.5$629 | D5: 11$35 | E5: 11.5$209 | F5: 12$655 | G5: 13$40 | H5: 13.5$10 | I5: 5 | J5: 3 | K5: 11.5 | L5: 209 | M5: 12 | N5: 655 | O5: 11.62094907
B6: Brandt Snedeker | C6: 11$844 | D6: 11.5$108 | E6: 12$141 | F6: 12.5$562 | G6: 13$44 | H6: 14$11 | I6: 3 | J6: 5 | K6: 12 | L6: 141 | M6: 12.5 | N6: 562 | O6: 12.1002845
B7: Byeong Hun An | C7: 14.5$325 | D7: 15.5$15 | E7: 16$138 | F7: 16.5$327 | G7: 17$65 | H7: 18$10 | I7: 3 | J7: 5 | K7: 16 | L7: 138 | M7: 16.5 | N7: 327 | O7: 16.1483871
B8: Abraham Ancer | C8: 15$125 | D8: 16$365 | E8: 16.5$149 | F8: 17.5$308 | G8: 18.5$51 | H8: 19$7 | I8: 5 | J8: 5 | K8: 16.5 | L8: 149 | M8: 17.5 | N8: 308 | O8: 16.82603939
B9: Cameron Davis | C9: 19.5$413 | D9: 20$25 | E9: 21$311 | F9: 22$145 | G9: 23$578 | H9: 25$10 | I9: 3 | J9: 3 | K9: 21 | L9: 311 | M9: 22 | N9: 145 | O9: 21.68201754
B10: Anirban Lahiri | C10: 28$51 | D10: 29$23 | E10: 30$26 | F10: 34$5 | G10: 36$149 | H10: 40$97 | I10: 3 | J10: 3 | K10: 30 | L10: 26 | M10: 34 | N10: 5 | O10: 33.35483871
B11: Brendan Steele | C11: 34$12 | D11: 36$6 | E11: 38$21 | F11: 40$272 | G11: 42$78 | H11: 46$10 | I11: 3 | J11: 3 | K11: 38 | L11: 21 | M11: 40 | N11: 272 | O11: 38.14334471
B12: Dimitrios Papadatos | C12: 65$24 | D12: 70$16 | E12: 200$28 | F12: 690$7 | G12: 700$10 | I12: 4 | J12: 4 | K12: 200 | L12: 28 | M12: 690 | N12: 7 | O12: 592
B13: Nicolas Colsaerts | C13: 50$8 | D13: 55$7 | E13: 60$89 | F13: 70$12 | G13: 80$12 | H13: 85$7 | I13: 3 | J13: 3 | K13: 60 | L13: 89 | M13: 70 | N13: 12 | O13: 68.81188119
B14: Rhein Gibson | C14: 48$72 | D14: 50$33 | E14: 110$49 | F14: 300$17 | I14: 4 | J14: 4 | K14: 110 | L14: 49 | M14: 300 | N14: 17 | O14: 251.0606061
B15: Cameron John | C15: 50$82 | D15: 55$8 | E15: 65$21 | F15: 75$5 | G15: 85$5 | H15: 90$7 | I15: 3 | J15: 3 | K15: 65 | L15: 21 | M15: 75 | N15: 5 | O15: 73.07692308
B16: Anthony Quayle | C16: 70$18 | D16: 80$6 | E16: 95$59 | F16: 190$28 | I16: 3 | J16: 4 | K16: 95 | L16: 59 | M16: 190 | N16: 28 | O16: 159.4252874
B17: Marcus Fraser | C17: 44$11 | D17: 48$30 | E17: 50$107 | F17: 65$7 | G17: 80$11 | H17: 90$10 | I17: 3 | J17: 3 | K17: 50 | L17: 107 | M17: 65 | N17: 7 | O17: 64.07894737
B18: Brett Coletta | C18: 65$85 | D18: 75$17 | E18: 90$62 | F18: 120$14 | I18: 3 | J18: 4 | K18: 90 | L18: 62 | M18: 120 | N18: 14 | O18: 114.4736842
B19: Rod Pampling | C19: 50$74 | D19: 70$10 | E19: 85$63 | F19: 90$12 | G19: 100$15 | I19: 3 | J19: 3 | K19: 85 | L19: 63 | M19: 90 | N19: 12 | O19: 89.2
B20: Cameron Percy | C20: 50$8 | D20: 55$62 | E20: 60$114 | F20: 70$78 | G20: 75$9 | H20: 80$27 | I20: 3 | J20: 3 | K20: 60 | L20: 114 | M20: 70 | N20: 78 | O20: 65.9375
B21: John Senden | C21: 48$47 | D21: 50$98 | E21: 55$34 | F21: 70$5 | G21: 75$15 | H21: 85$10 | I21: 3 | J21: 3 | K21: 55 | L21: 34 | M21: 70 | N21: 5 | O21: 68.07692308
B22: Harrison Endycott | C22: 60$30 | D22: 65$92 | E22: 70$5 | F22: 80$35 | G22: 90$13 | H22: 95$101 | I22: 3 | J22: 3 | K22: 70 | L22: 5 | M22: 80 | N22: 35 | O22: 71.25
B23: Nick Voke | C23: 55$200 | D23: 65$10 | E23: 70$13 | I23: 3 | J23: 0 | K23: 70 | L23: 13 | M23: 0 | N23: 0 | O23: 83
B24: Matthew Griffin | C24: 60$153 | D24: 65$85 | E24: 75$39 | F24: 100$53 | G24: 110$19 | I24: 3 | J24: 4 | K24: 75 | L24: 39 | M24: 100 | N24: 53 | O24: 85.59782609
B25: Matthew Millar | C25: 60$196 | D25: 65$45 | E25: 75$73 | F25: 90$37 | I25: 3 | J25: 3 | K25: 75 | L25: 73 | M25: 90 | N25: 37 | O25: 84.95454545
B26: Michael Sim | C26: 100$34 | D26: 130$17 | E26: 210$26 | F26: 1000$5 | I26: 4 | J26: 5 | K26: 210 | L26: 26 | M26: 1000 | N26: 5 | O26: 872.5806452
B27: Adam Bland | C27: 90$56 | D27: 95$12 | E27: 110$56 | F27: 230$23 | G27: 380$5 | I27: 4 | J27: 4 | K27: 110 | L27: 56 | M27: 230 | N27: 23 | O27: 195.0632911
B28: Greg Chalmers | C28: 85$55 | D28: 90$61 | E28: 95$56 | F28: 100$17 | G28: 110$6 | H28: 120$32 | I28: 3 | J28: 4 | K28: 95 | L28: 56 | M28: 100 | N28: 17 | O28: 98.83561644
B29: Andrew Dodt | C29: 80$60 | D29: 100$20 | E29: 110$49 | F29: 120$13 | G29: 1000$7 | I29: 4 | J29: 4 | K29: 110 | L29: 49 | M29: 120 | N29: 13 | O29: 117.9032258
B30: Ben Eccles | C30: 90$38 | D30: 130$8 | E30: 200$28 | F30: 920$5 | I30: 4 | J30: 4 | K30: 200 | L30: 28 | M30: 920 | N30: 5 | O30: 810.9090909
B31: Jarryd Felton | C31: 100$13 | D31: 110$20 | E31: 120$10 | F31: 230$23 | G31: 1000$7 | I31: 4 | J31: 4 | K31: 120 | L31: 10 | M31: 230 | N31: 23 | O31: 153.3333333
B32: Jake Higginbottom | C32: 110$45 | D32: 120$28 | E32: 130$26 | F32: 260$20 | G32: 270$33 | H32: 1000$7 | I32: 4 | J32: 4 | K32: 130 | L32: 26 | M32: 260 | N32: 20 | O32: 203.4782609 | P32: xxx
B33: Mikko Ilonen | C33: 80$25 | D33: 100$20 | E33: 110$14 | F33: 140$38 | G33: 150$18 | H33: 1000$7 | I33: 4 | J33: 4 | K33: 110 | L33: 14 | M33: 140 | N33: 38 | O33: 118.0769231
B34: Jake McLeod | C34: 70$157 | D34: 75$6 | E34: 80$5 | F34: 130$41 | G34: 1000$7 | I34: 3 | J34: 4 | K34: 80 | L34: 5 | M34: 130 | N34: 41 | O34: 85.43478261 | P34: xxx
B35: Daniel Nisbet | C35: 120$28 | D35: 140$11 | E35: 210$26 | F35: 990$5 | G35: 1000$7 | I35: 4 | J35: 4 | K35: 210 | L35: 26 | M35: 990 | N35: 5 | O35: 864.1935484
B36: Travis Smyth | C36: 95$19 | D36: 100$11 | E36: 160$34 | F36: 620$8 | G36: 1000$7 | I36: 4 | J36: 4 | K36: 160 | L36: 34 | M36: 620 | N36: 8 | O36: 532.3809524
B37: Zach Murray | C37: 70$108 | D37: 75$87 | E37: 90$36 | F37: 110$5 | G37: 150$9 | I37: 3 | J37: 4 | K37: 90 | L37: 36 | M37: 110 | N37: 5 | O37: 107.5609756
B38: Jordan Zunic | C38: 75$64 | D38: 100$20 | E38: 110$51 | F38: 140$17 | G38: 150$8 | I38: 4 | J38: 4 | K38: 110 | L38: 51 | M38: 140 | N38: 17 | O38: 132.5
B39: David Micheluzzi | C39: 90$84 | D39: 100$52 | E39: 110$20 | I39: 4 | J39: 0 | K39: 110 | L39: 20 | M39: 0 | N39: 0 | O39: 130
B40: Norman Xiong | C40: 80$25 | D40: 90$122 | E40: 100$14 | F40: 1000$11 | I40: 4 | J40: 5 | K40: 100 | L40: 14 | M40: 1000 | N40: 11 | O40: 604
B41: Douglas Klein | C41: 75$21 | D41: 80$21 | E41: 90$66 | F41: 500$10 | I41: 3 | J41: 4 | K41: 90 | L41: 66 | M41: 500 | N41: 10 | O41: 446.0526316
B42: Viktor Hovland | C42: 75$21 | D42: 90$38 | E42: 110$79 | F42: 540$5 | I42: 4 | J42: 4 | K42: 110 | L42: 79 | M42: 540 | N42: 5 | O42: 514.4047619
B43: Damien Jordan | C43: 130$12 | D43: 150$14 | E43: 200$28 | F43: 930$5 | G43: 1000$7 | I43: 4 | J43: 4 | K43: 200 | L43: 28 | M43: 930 | N43: 5 | O43: 819.3939394
B44: Takumi Kanaya | C44: 130$26 | D44: 140$15 | E44: 160$14 | F44: 300$6 | I44: 4 | J44: 4 | K44: 160 | L44: 14 | M44: 300 | N44: 6 | O44: 258
B45: James Marchesani | C45: 160$10 | D45: 220$10 | E45: 230$24 | F45: 990$5 | G45: 1000$7 | I45: 4 | J45: 4 | K45: 230 | L45: 24 | M45: 990 | N45: 5 | O45: 858.9655172
B46: Nick Cullen | C46: 70$52 | D46: 75$25 | E46: 80$30 | F46: 110$50 | G46: 120$12 | H46: 1000$7 | I46: 3 | J46: 4 | K46: 80 | L46: 30 | M46: 110 | N46: 50 | O46: 91.25
B47: Simon Hawkes | C47: 210$35 | D47: 220$15 | E47: 250$6 | F47: 1000$10 | I47: 4 | J47: 5 | K47: 250 | L47: 6 | M47: 1000 | N47: 10 | O47: 531.25
B48: Jason Norris | C48: 200$9 | D48: 210$5 | E48: 220$25 | F48: 250$7 | G48: 260$5 | H48: 1000$7 | I48: 4 | J48: 4 | K48: 220 | L48: 25 | M48: 250 | N48: 7 | O48: 243.4375 | P48: xxx
B49: Adam Blyth | C49: 240$18 | D49: 280$7 | E49: 290$19 | I49: 4 | J49: 0 | K49: 290 | L49: 19 | M49: 0 | N49: 0 | O49: 309
B50: David McKenzie | C50: 95$16 | D50: 120$42 | E50: 130$23 | F50: 500$37 | I50: 4 | J50: 4 | K50: 130 | L50: 23 | M50: 500 | N50: 37 | O50: 271.8333333
B51: Ben Campbell | C51: 140$10 | D51: 180$12 | E51: 190$29 | F51: 490$11 | I51: 4 | J51: 4 | K51: 190 | L51: 29 | M51: 490 | N51: 11 | O51: 407.5
B52: Mark Brown | C52: 100$17 | D52: 110$99 | E52: 140$24 | F52: 310$17 | G52: 580$5 | I52: 4 | J52: 4 | K52: 140 | L52: 24 | M52: 310 | N52: 17 | O52: 239.5121951
B53: Deyen Lawson | C53: 85$40 | D53: 100$20 | E53: 110$50 | F53: 150$9 | I53: 4 | J53: 4 | K53: 110 | L53: 50 | M53: 150 | N53: 9 | O53: 143.8983051
B54: Daniel Pearce | C54: 300$11 | D54: 400$18 | E54: 480$11 | I54: 4 | J54: 0 | K54: 480 | L54: 11 | M54: 0 | N54: 0 | O54: 491
B55: Jack Wilson | C55: 250$5 | D55: 260$8 | E55: 270$20 | F55: 330$14 | G55: 700$12 | I55: 4 | J55: 4 | K55: 270 | L55: 20 | M55: 330 | N55: 14 | O55: 305.2941176
B56: Steven Jeffress | C56: 140$5 | D56: 150$7 | E56: 180$31 | F56: 820$6 | G56: 1000$7 | I56: 4 | J56: 4 | K56: 180 | L56: 31 | M56: 820 | N56: 6 | O56: 716.2162162
B57: James Nitties | C57: 200$8 | D57: 210$35 | E57: 240$13 | F57: 1000$7 | I57: 4 | J57: 5 | K57: 240 | L57: 13 | M57: 1000 | N57: 7 | O57: 734
B58: Peter Wilson | C58: 280$12 | D58: 290$13 | E58: 300$7 | I58: 4 | J58: 0 | K58: 300 | L58: 7 | M58: 0 | N58: 0 | O58: 307
B59: Mathew Goggin | C59: 330$33 | D59: 340$5 | E59: 480$5 | I59: 4 | J59: 0 | K59: 480 | L59: 5 | M59: 0 | N59: 0 | O59: 485
B60: Robby Shelton | C60: 160$21 | D60: 200$7 | E60: 220$10 | F60: 580$9 | G60: 1000$10 | I60: 4 | J60: 4 | K60: 220 | L60: 10 | M60: 580 | N60: 9 | O60: 409.4736842
B61: Dawson Armstrong | C61: 300$16 | D61: 310$24 | E61: 320$7 | I61: 4 | J61: 0 | K61: 320 | L61: 7 | M61: 0 | N61: 0 | O61: 327
B62: Dylan Perry | C62: 130$58 | D62: 140$10 | E62: 170$7 | I62: 4 | J62: 0 | K62: 170 | L62: 7 | M62: 0 | N62: 0 | O62: 177
B63: Jack Thompson | C63: 230$14 | D63: 240$9 | E63: 410$7 | I63: 4 | J63: 0 | K63: 410 | L63: 7 | M63: 0 | N63: 0 | O63: 417
B64: Peter Senior | C64: 190$17 | D64: 200$9 | E64: 210$12 | F64: 1000$11 | I64: 4 | J64: 5 | K64: 210 | L64: 12 | M64: 1000 | N64: 11 | O64: 622.173913
B65: Craig Parry | C65: 330$10 | D65: 400$18 | E65: 410$5 | I65: 4 | J65: 0 | K65: 410 | L65: 5 | M65: 0 | N65: 0 | O65: 415
B66: Robert Allenby | C66: 240$11 | D66: 270$8 | E66: 280$20 | F66: 1000$8 | I66: 4 | J66: 5 | K66: 280 | L66: 20 | M66: 1000 | N66: 8 | O66: 794.2857143
B67: Peter Lonard | C67: 300$16 | D67: 380$5 | E67: 390$10 | I67: =FIND("$",E67) -> 4 | J67: =IF(ISBLANK(F67),0,FIND("$",F67)) -> 0 | K67: =VALUE(LEFT(E67,I67-1)) -> 390 | L67: =VALUE(RIGHT(E67,LEN(E67)-I67)) -> 10 | M67: =IF(J67,VALUE(LEFT(F67,J67-1)),0) -> 0 | N67: =IF(J67,VALUE(RIGHT(F67,LEN(F67)-J67)),0) -> 0 | O67: 400
B68: Stephen Allan | C68: 300$36 | D68: 380$5 | E68: 390$10 | I68: 4 | J68: 0 | K68: 390 | L68: 10 | M68: 0 | N68: 0 | O68: =IF(M68,K68+(M68-K68)*L68/(L68+N68),K68+IF(K68=1000,L68*10,L68)) -> 400
B69: Peter Fowler | C69: 240$9 | D69: 250$5 | E69: 260$9 | I69: 4 | J69: 0 | K69: 260 | L69: 9 | M69: 0 | N69: 0 | O69: 269
B70: Zach Bauchou | C70: 230$32 | D70: 240$14 | E70: 280$17 | I70: 4 | J70: 0 | K70: 280 | L70: 17 | M70: 0 | N70: 0 | O70: 297
B71: David Gleeson | C71: 260$6 | D71: 330$33 | E71: 480$5 | I71: 4 | J71: 0 | K71: 480 | L71: 5 | M71: 0 | N71: 0 | O71: 485
B72: Shae Wools Cobb | C72: 240$14 | D72: 290$11 | E72: 310$8 | I72: 4 | J72: 0 | K72: 310 | L72: 8 | M72: 0 | N72: 0 | O72: 318
B73: Terry Pilkadaris | C73: 140$12 | D73: 150$5 | E73: 210$9 | F73: 440$12 | G73: 1000$10 | I73: 4 | J73: 4 | K73: 210 | L73: 9 | M73: 440 | N73: 12 | O73: 308.5714286
B74: Todd Sinnott | C74: 210$35 | D74: 240$23 | E74: 250$24 | F74: 990$5 | I74: 4 | J74: 4 | K74: 250 | L74: 24 | M74: 990 | N74: 5 | O74: 862.4137931
B75: Keita Nakajima | C75: 300$16 | D75: 330$22 | E75: 340$9 | I75: 4 | J75: 0 | K75: 340 | L75: 9 | M75: 0 | N75: 0 | O75: 349
B76: Connor Fewkes | C76: 330$10 | D76: 400$18 | E76: 420$9 | I76: 4 | J76: 0 | K76: 420 | L76: 9 | M76: 0 | N76: 0 | O76: 429
B77: Daniel Hillier | C77: 210$35 | D77: 250$24 | E77: 270$10 | I77: 4 | J77: 0 | K77: 270 | L77: 10 | M77: 0 | N77: 0 | O77: 280
B78: Gavin Fairfax | C78: 270$5 | D78: 350$9 | E78: 950$5 | I78: 4 | J78: 0 | K78: 950 | L78: 5 | M78: 0 | N78: 0 | O78: 955
B79: Aaron Pike | C79: 140$37 | D79: 150$6 | E79: 160$7 | I79: 4 | J79: 0 | K79: 160 | L79: 7 | M79: 0 | N79: 0 | O79: 167
B80: Daniel Gale | C80: 230$14 | D80: 240$13 | E80: 270$10 | F80: 1000$100 | I80: 4 | J80: 5 | K80: 270 | L80: 10 | M80: 1000 | N80: 100 | O80: 336.3636364
B81: Daniel Fox | C81: 240$14 | D81: 310$7 | E81: 320$18 | F81: 1000$5 | I81: 4 | J81: 5 | K81: 320 | L81: 18 | M81: 1000 | N81: 5 | O81: 852.173913
B82: Cory Crawford | C82: 330$10 | D82: 400$18 | E82: 480$10 | I82: 4 | J82: 0 | K82: 480 | L82: 10 | M82: 0 | N82: 0 | O82: 490
B83: Aaron Townsend | C83: 350$9 | D83: 600$12 | E83: 610$12 | I83: 4 | J83: 0 | K83: 610 | L83: 12 | M83: 0 | N83: 0 | O83: 622
B84: Peter OMalley | C84: 350$9 | D84: 600$12 | E84: 900$6 | I84: 4 | J84: 0 | K84: 900 | L84: 6 | M84: 0 | N84: 0 | O84: 906
B85: Nick OHern | C85: 320$10 | D85: 380$5 | E85: 390$7 | I85: 4 | J85: 0 | K85: 390 | L85: 7 | M85: 0 | N85: 0 | O85: 397
B86: Aron Price | C86: 140$12 | D86: 150$30 | E86: 170$14 | I86: 4 | J86: 0 | K86: 170 | L86: 14 | M86: 0 | N86: 0 | O86: 184
B87: Taylor Macdonald | C87: 320$10 | D87: 330$22 | E87: 380$7 | I87: 4 | J87: 0 | K87: 380 | L87: 7 | M87: 0 | N87: 0 | O87: 387
B88: Matthew Guyatt | C88: 250$6 | D88: 300$36 | E88: 350$12 | F88: 1000$9 | I88: 4 | J88: 5 | K88: 350 | L88: 12 | M88: 1000 | N88: 9 | O88: 721.4285714
B89: Jamie Arnold | C89: 130$5 | D89: 150$16 | E89: 160$34 | F89: 240$22 | G89: 250$5 | I89: 4 | J89: 4 | K89: 160 | L89: 34 | M89: 240 | N89: 22 | O89: 208.5714286
B90: Darren Beck | C90: 300$36 | D90: 380$5 | E90: 390$15 | I90: 4 | J90: 0 | K90: 390 | L90: 15 | M90: 0 | N90: 0 | O90: 405
B91: Dale Brandt Richards | C91: 300$36 | D91: 380$5 | E91: 390$16 | F91: 1000$13 | I91: 4 | J91: 5 | K91: 390 | L91: 16 | M91: 1000 | N91: 13 | O91: 726.5517241
B92: Callan OReilly | C92: 210$16 | D92: 230$25 | E92: 250$9 | I92: 4 | J92: 0 | K92: 250 | L92: 9 | M92: 0 | N92: 0 | O92: 259
B93: Josh Younger | C93: 160$31 | D93: 170$5 | E93: 200$24 | F93: 390$13 | G93: 400$10 | I93: =FIND("$",E93) -> 4 | J93: =IF(ISBLANK(F93),0,FIND("$",F93)) -> 4 | K93: =VALUE(LEFT(E93,I93-1)) -> 200 | L93: =VALUE(RIGHT(E93,LEN(E93)-I93)) -> 24 | M93: =IF(J93,VALUE(LEFT(F93,J93-1)),0) -> 390 | N93: =IF(J93,VALUE(RIGHT(F93,LEN(F93)-J93)),0) -> 13 | O93: 323.2432432
B94: Gareth Paddison | C94: 240$14 | D94: 250$7 | E94: 270$23 | F94: 820$6 | I94: =FIND("$",E94) -> 4 | J94: =IF(ISBLANK(F94),0,FIND("$",F94)) -> 4 | K94: =VALUE(LEFT(E94,I94-1)) -> 270 | L94: =VALUE(RIGHT(E94,LEN(E94)-I94)) -> 23 | M94: =IF(J94,VALUE(LEFT(F94,J94-1)),0) -> 820 | N94: =IF(J94,VALUE(RIGHT(F94,LEN(F94)-J94)),0) -> 6 | O94: 706.2068966
B95: Brett Rankin | C95: 300$36 | D95: 380$5 | E95: 400$7 | I95: 4 | J95: 0 | K95: 400 | L95: 7 | M95: 0 | N95: 0 | O95: 407
B96: Scott Strange | C96: 290$7 | D96: 300$36 | E96: 400$7 | I96: 4 | J96: 0 | K96: 400 | L96: 7 | M96: 0 | N96: 0 | O96: 407
B97: Matthew Stieger | C97: 260$5 | D97: 300$7 | E97: 310$18 | F97: 1000$5 | I97: 4 | J97: 5 | K97: 310 | L97: 18 | M97: 1000 | N97: 5 | O97: 850
B98: Ashley Hall | C98: 240$9 | D98: 250$7 | E98: 260$21 | F98: 990$5 | G98: 1000$10 | I98: 4 | J98: 4 | K98: 260 | L98: 21 | M98: 990 | N98: 5 | O98: 849.6153846
B99: Adam Burdett | C99: 300$11 | D99: 330$22 | E99: 450$12 | I99: 4 | J99: 0 | K99: 450 | L99: 12 | M99: 0 | N99: 0 | O99: 462
B100: Ryan Chisnall | C100: 200$9 | D100: 210$51 | E100: 250$5 | I100: 4 | J100: 0 | K100: 250 | L100: 5 | M100: 0 | N100: 0 | O100: 255
B101: Braden Becker | C101: 350$9 | D101: 400$18 | E101: 700$6 | I101: 4 | J101: 0 | K101: 700 | L101: 6 | M101: 0 | N101: 0 | O101: 706
B102: Nick Flanagan | C102: 280$7 | D102: 290$5 | E102: 300$19 | F102: 450$6 | I102: 4 | J102: 4 | K102: 300 | L102: 19 | M102: 450 | N102: 6 | O102: 414
B103: Tim Stewart | C103: 320$10 | D103: 330$22 | E103: 480$9 | I103: 4 | J103: 0 | K103: 480 | L103: 9 | M103: 0 | N103: 0 | O103: 489
B104: Andrew Martin | C104: 280$7 | D104: 290$6 | E104: 300$18 | F104: 1000$5 | I104: 4 | J104: 5 | K104: 300 | L104: 18 | M104: 1000 | N104: 5 | O104: 847.826087
B105: Michael Wright | C105: 220$19 | D105: 270$7 | E105: 280$20 | F105: 940$5 | I105: 4 | J105: 4 | K105: 280 | L105: 20 | M105: 940 | N105: 5 | O105: 808
B106: Matt Jager | C106: 350$9 | D106: 400$18 | E106: 480$9 | I106: 4 | J106: 0 | K106: 480 | L106: 9 | M106: 0 | N106: 0 | O106: 489
B107: Jack Munro | C107: 320$10 | D107: 330$22 | E107: 380$7 | I107: 4 | J107: 0 | K107: 380 | L107: 7 | M107: 0 | N107: 0 | O107: 387
B108: Kieran Muir | C108: 310$10 | D108: 400$18 | E108: 480$11 | I108: 4 | J108: 0 | K108: 480 | L108: 11 | M108: 0 | N108: 0 | O108: 491
B109: Harry Bateman | C109: 260$28 | D109: 270$7 | E109: 290$19 | F109: 1000$12 | I109: 4 | J109: 5 | K109: 290 | L109: 19 | M109: 1000 | N109: 12 | O109: 725.1612903
B110: Jordan Mullaney | C110: 210$51 | D110: 240$13 | E110: 270$7 | I110: 4 | J110: 0 | K110: 270 | L110: 7 | M110: 0 | N110: 0 | O110: 277
B111: Sam Lee | C111: 270$5 | D111: 350$13 | E111: 1000$10 | I111: 5 | J111: 0 | K111: 1000 | L111: 10 | M111: 0 | N111: 0 | O111: 1100
B112: Adam Stephens | C112: 170$9 | D112: 350$13 | E112: 1000$10 | I112: 5 | J112: 0 | K112: 1000 | L112: 10 | M112: 0 | N112: 0 | O112: 1100
B113: Max McCardle | C113: 250$6 | D113: 270$5 | E113: 280$19 | F113: 690$7 | G113: 700$9 | I113: 4 | J113: 4 | K113: 280 | L113: 19 | M113: 690 | N113: 7 | O113: 579.6153846
B114: Rory Bourke | C114: 350$9 | D114: 600$12 | E114: 900$6 | I114: 4 | J114: 0 | K114: 900 | L114: 6 | M114: 0 | N114: 0 | O114: 906
B115: Tim Hart | C115: 270$12 | D115: 290$7 | E115: 300$5 | I115: 4 | J115: 0 | K115: 300 | L115: 5 | M115: 0 | N115: 0 | O115: 305
B116: Matthew Giles | C116: 330$22 | D116: 350$9 | E116: 480$10 | I116: 4 | J116: 0 | K116: 480 | L116: 10 | M116: 0 | N116: 0 | O116: 490
B117: Benjamin Clementson | C117: 350$9 | D117: 400$18 | E117: 700$6 | I117: 4 | J117: 0 | K117: 700 | L117: 6 | M117: 0 | N117: 0 | O117: 706
B118: Brad Moules | C118: 350$9 | D118: 400$18 | E118: 700$6 | I118: 4 | J118: 0 | K118: 700 | L118: 6 | M118: 0 | N118: 0 | O118: 706
B119: Antonio Murdaca | C119: 270$12 | D119: 350$5 | E119: 360$11 | I119: 4 | J119: 0 | K119: 360 | L119: 11 | M119: 0 | N119: 0 | O119: 371
B120: Maverick Antcliff | C120: 260$28 | D120: 290$7 | E120: 300$31 | F120: 1000$12 | I120: 4 | J120: 5 | K120: 300 | L120: 31 | M120: 1000 | N120: 12 | O120: 804.6511628
B121: Neven Basic | C121: 330$10 | D121: 400$18 | E121: 480$10 | I121: 4 | J121: 0 | K121: 480 | L121: 10 | M121: 0 | N121: 0 | O121: 490
B122: Rick Kulacz | C122: 260$28 | D122: 280$7 | E122: 290$13 | I122: 4 | J122: 0 | K122: 290 | L122: 13 | M122: 0 | N122: 0 | O122: 303
B123: Aaron Wilkin | C123: 400$18 | D123: 420$5 | E123: 480$10 | I123: 4 | J123: 0 | K123: 480 | L123: 10 | M123: 0 | N123: 0 | O123: 490
B124: Ruben Sondjaja | C124: 350$9 | D124: 400$29 | E124: 410$6 | I124: 4 | J124: 0 | K124: 410 | L124: 6 | M124: 0 | N124: 0 | O124: 416
B125: Anthony Marchesani | C125: 270$5 | D125: 350$13 | E125: 1000$10 | I125: 5 | J125: 0 | K125: 1000 | L125: 10 | M125: 0 | N125: 0 | O125: 1100
B126: Anthony Summers | C126: 270$5 | D126: 350$13 | E126: 1000$10 | I126: 5 | J126: 0 | K126: 1000 | L126: 10 | M126: 0 | N126: 0 | O126: 1100
B127: Mathew Perry | C127: 380$5 | D127: 400$23 | E127: 410$9 | I127: 4 | J127: 0 | K127: 410 | L127: 9 | M127: 0 | N127: 0 | O127: 419
B128: James Anstiss | C128: 270$5 | D128: 350$13 | E128: 1000$9 | I128: 5 | J128: 0 | K128: 1000 | L128: 9 | M128: 0 | N128: 0 | O128: 1090
B129: Troy Moses | C129: 250$6 | D129: 300$16 | E129: 330$25 | I129: 4 | J129: 0 | K129: 330 | L129: 25 | M129: 0 | N129: 0 | O129: 355
B130: Alex Edge | C130: 270$5 | D130: 350$13 | E130: 1000$9 | I130: 5 | J130: 0 | K130: 1000 | L130: 9 | M130: 0 | N130: 0 | O130: 1090
B131: Mitchell Brown | C131: 350$9 | D131: 500$15 | E131: 900$5 | I131: 4 | J131: 0 | K131: 900 | L131: 5 | M131: 0 | N131: 0 | O131: 905
B132: Peter Cooke | C132: 400$18 | D132: 420$5 | E132: 480$11 | I132: 4 | J132: 0 | K132: 480 | L132: 11 | M132: 0 | N132: 0 | O132: =IF(M132,K132+(M132-K132)*L132/(L132+N132),K132+IF(K132=1000,L132*10,L132)) -> 491
B133: Dale Williamson | C133: 270$5 | D133: 350$13 | E133: 1000$9 | I133: 5 | J133: 0 | K133: 1000 | L133: 9 | M133: 0 | N133: 0 | O133: 1090
B134: Ryan Lynch | C134: 330$22 | D134: 340$10 | E134: 700$8 | I134: 4 | J134: 0 | K134: 700 | L134: 8 | M134: 0 | N134: 0 | O134: 708
B135: Blake Proverbs | C135: 48$6 | D135: 60$6 | E135: 90$83 | F135: 250$7 | G135: 500$10 | I135: 3 | J135: 4 | K135: 90 | L135: 83 | M135: 250 | N135: 7 | O135: 237.5555556
B136: Mark Hensby | C136: 270$5 | D136: 330$10 | E136: 340$8 | I136: 4 | J136: 0 | K136: 340 | L136: 8 | M136: 0 | N136: 0 | O136: 348
B137: Jediah Morgan | C137: 270$5 | D137: 350$9 | E137: 1000$11 | I137: 5 | J137: 0 | K137: 1000 | L137: 11 | M137: 0 | N137: 0 | O137: 1110
B138: Linus Yip | C138: 270$5 | D138: 350$9 | E138: 1000$11 | I138: 5 | J138: 0 | K138: 1000 | L138: 11 | M138: 0 | N138: 0 | O138: 1110
B139: Andrew Evans | C139: 330$22 | D139: 350$9 | E139: 360$7 | I139: 4 | J139: 0 | K139: 360 | L139: 7 | M139: 0 | N139: 0 | O139: 367
B140: Sam An | C140: 270$5 | D140: 350$9 | E140: 1000$11 | I140: 5 | J140: 0 | K140: 1000 | L140: 11 | M140: 0 | N140: 0 | O140: 1110
B141: Matthew Lisk | C141: 270$5 | D141: 350$9 | E141: 1000$11 | I141: 5 | J141: 0 | K141: 1000 | L141: 11 | M141: 0 | N141: 0 | O141: 1110
B142: Anthony Choat | C142: 270$5 | D142: 350$9 | E142: 1000$11 | I142: 5 | J142: 0 | K142: 1000 | L142: 11 | M142: 0 | N142: 0 | O142: 1110
B143: Charlie Dann | C143: 330$33 | D143: 340$5 | E143: 360$6 | I143: 4 | J143: 0 | K143: 360 | L143: 6 | M143: 0 | N143: 0 | O143: 366
B144: Martin Dive | C144: 270$5 | D144: 350$9 | E144: 1000$11 | I144: 5 | J144: 0 | K144: 1000 | L144: 11 | M144: 0 | N144: 0 | O144: 1110
B145: Mitch Davis | C145: 270$5 | D145: 350$9 | E145: 600$18 | I145: 4 | J145: 0 | K145: 600 | L145: 18 | M145: 0 | N145: 0 | O145: 618
B146: Campbell Rawson | D146: 95$14 | E146: 100$10 | I146: 4 | J146: 0 | K146: 100 | L146: 10 | M146: 0 | N146: 0 | O146: 110
B147: About Betfair | J147: 0 | M147: 0 | N147: 0
J148: 0 | M148: 0 | N148: 0
B149: Help & Contact Us | J149: 0 | M149: 0 | N149: 0
J150: 0 | M150: 0 | N150: 0
B151: Affiliates | J151: 0 | M151: 0 | N151: 0
J152: 0 | M152: 0 | N152: 0
B153: The Hub | J153: 0 | M153: 0 | N153: 0
J154: 0 | M154: 0 | N154: 0
B155: Betfair Mobile | J155: 0 | M155: 0 | N155: 0
J156: 0 | M156: 0 | N156: 0
B157: Developers | J157: 0 | M157: 0 | N157: 0
I158: =FIND("$",E158) ->  | J158: =IF(ISBLANK(F158),0,FIND("$",F158)) -> 0 | K158: =VALUE(LEFT(E158,I158-1)) ->  | L158: =VALUE(RIGHT(E158,LEN(E158)-I158)) ->  | M158: =IF(J158,VALUE(LEFT(F158,J158-1)),0) -> 0 | N158: =IF(J158,VALUE(RIGHT(F158,LEN(F158)-J158)),0) -> 0
B161: Help & Contact Us
B163: Affiliates
B165: The Hub
B167: Betfair Mobile
B169: Developers
